{"text_format":"3","workbook":"xlsx","n_sheets":15,"sheets":["Cómo usar esta plantilla","Lista de alumnos","Agosto","Septiembre","Octubre","Noviembre","Diciembre","Enero","Febrero","Marzo","Abril","Mayo","Junio","Julio","Informe asistencia de alumnos"],"not_rendered":{"external_links":1,"defined_names":31},"read":"whole","date_system":"1900"}

{"sheet":"Cómo usar esta plantilla","index":0,"n_rows":25,"n_cols":5,"rows_kept":25,"merged":[[3,2,3,12],[4,4,4,12],[5,4,5,12],[6,4,6,12],[7,4,7,12],[8,4,8,7],[11,2,11,12],[12,4,12,12],[13,4,13,12],[14,4,14,12],[17,2,17,12],[18,4,18,12],[19,4,19,12],[20,4,20,12],[21,4,21,12],[24,2,24,12]]}
["CÓMO USAR ESTA PLANTILLA"]
[]
[null,"¿POR DÓNDE COMIENZO?"]
[null,null,"Debe seguir algunos pasos antes de poder empezar a realizar el seguimiento de la asistencia de un alumno:"]
[{"$nulls":3},"1.","Agregue a los estudiantes: En la hoja Lista de alumnos, escriba la información de cada alumno, como los nombres del tutor y los datos de contacto. El Id. de alumno es una entrada importante, ya que proporciona un identificador único para cada alumno y se usa en todo el libro para las distintas listas desplegables de Id. de alumnos a fin de facilitar la entrada de datos. La información escrita en la Lista de alumnos también se usa en otras hojas, como el Informe de asistencia de los alumnos y los registros de asistencia mensuales."]
[{"$nulls":3},"2.","Cambie el calendario escolar: En la hoja de asistencia de agosto, haga clic en el control de giro en el borde superior derecho del encabezado para actualizar el calendario escolar. Este cambio actualizará el encabezado en todos los registros de asistencia mensual de este libro. (Tenga en cuenta que el botón de giro no imprimirá.)"]
[{"$nulls":3},"3.","(Opcional) Modifique los colores en todo el libro:  Vaya primero a la última hoja, Informe de asistencia de los alumnos, y en la pestaña Revisar, en el grupo Cambios, haga clic en Desproteger hoja. A continuación, en la pestaña Diseño de página, en el grupo Temas, haga clic en Colores y seleccione otro conjunto de colores para temas de la galería de colores. Después de realizar los cambios de colores, y cualquier otro cambio de tema, vuelva a la hoja Informe de asistencia de los alumnos y en la pestaña Revisar, en el grupo Cambios, haga clic en Proteger hojay, a continuación, haga clic en Aceptar."]
[{"$nulls":4},"Sugerencia: Cree un conjunto de colores para temas personalizado para que coincide con los colores de la escuela. Para ello, en la pestaña Diseño de página, en el grupo Temas, haga clic en Colores y, a continuación, cerca de la parte inferior de la galería de colores, haga clic en Crear nuevos colores del tema. Para más información sobre cómo crear un conjunto de colores para temas, vea el siguiente tema de la Ayuda: "]
[{"$nulls":4},"Personalice un tema de documento."]
[]
[null,"HE AGREGADO A LOS ALUMNOS, ¿QUÉ ES LO SIGUIENTE?"]
[null,null,"Una vez que haya escrito los alumnos en la hoja Lista de alumnos, puede realizar un seguimiento de la asistencia a clase siguiendo estos pasos:"]
[{"$nulls":3},"1.","Para agregar un alumno a un registro de asistencia, haga clic en una celda debajo de la columna Id. de alumno y seleccione un Id. de la lista. El nombre del alumno se mostrará automáticamente después de seleccionar un Id. "]
[{"$nulls":4},"Sugerencia: Guarde los pasos de entrada de datos. Después de agregar a los alumnos para un mes, seleccione los Id. de alumno, cópielos y péguelos en la columna Id. de alumno para los meses restantes. "]
[{"$nulls":3},"2.","A continuación, escriba el registro de asistencia para cada día del mes usando los tipos de asistencia proporcionados en la Clave de color. La asistencia de los alumnos se calcula automáticamente por tipo de asistencia para cada alumno en la columna Totales. Las ausencias totales de cada día se calculan automáticamente al final de la tabla en la fila Total."]
[]
[null,"¿CÓMO AGREGO A MÁS ALUMNOS A UN REGISTRO DE ASISTENCIA MENSUAL?"]
[null,null,"Las hojas de registro de asistencia mensual y la Lista de alumnos son tablas de Excel. Para agregar nuevas filas a una tabla de Excel, siga uno de estos pasos:"]
[{"$nulls":3},"● ","Si la tabla no tiene una fila Total, empiece a escribir debajo de la tabla y se expandirá automáticamente cuando presione la tecla ENTRAR o TAB."]
[{"$nulls":3},"● ","Coloque el  puntero de celda en la última celda encima de la fila Total, como la celda Días ausente para el último alumno, y presione la tecla TAB."]
[{"$nulls":3},"● ","Haga clic con el botón secundario en la tabla y, en el menú emergente, elija Insertar y, a continuación, haga clic en Filas de la tabla arriba o Filas de la tabla abajo. "]
[{"$nulls":3},"● ","En la esquina inferior derecha de la tabla, coloque el mouse en el controlador de tamaño de la tabla y arrástrelo para aumentar el número de filas de tabla disponibles."]
[]
[null,"¿PUEDO VER LA ASISTENCIA DE UN ALUMNO DURANTE TODO EL AÑO ESCOLAR?"]
[null,null,"La última hoja de este libro, Informe de asistencia de los alumnos, realiza un seguimiento de la asistencia del año hasta la fecha. Para ver el informe de un alumno específico, haga clic en la celda debajo de Id. de alumno y, a continuación, seleccione un Id. de la lista desplegable. La información que escribió previamente en la hoja Lista de alumnos del alumno seleccionado se mostrará automáticamente. Tenga en cuenta que la primera vez que use el Informe de asistencia de los alumnos, debe escribir la escuela, el curso, el maestro y la clase. Estos datos no cambiarán si selecciona otro alumno. "]

{"sheet":"Lista de alumnos","index":1,"n_rows":8,"n_cols":19,"rows_kept":8}
["LISTA DE ALUMNOS"]
[]
[null,"Id. de alumno","Nombre del alumno","Apellido del alumno","Sexo","Fecha de nacimiento","Padre o tutor 1","Relación con el padre/tutor 1","Número del trabajo del padre/tutor 1","Número particular del padre/tutor 1","Padre/tutor 2","Relación con el padre/tutor 2","Número del trabajo del padre/tutor 2","Número particular del padre/tutor 2","Contacto de emergencia","Relación del contacto de emergencia","Número del trabajo del contacto de emergencia","Número particular del contacto de emergencia","Nombre completo del alumno"]
[null,"S001","David","Alexander","H","1997-03-28","Michelle","Alexander",1235550134,2345550134,"Michael Alexander","Padre",1235550134,2345550134,"Reed Koch","Abuelo",7895550189,7895550134,{"$f":"ListaDeAlumnos[[#This Row],[Nombre del alumno]]&\" \" &ListaDeAlumnos[[#This Row],[Apellido del alumno]]","v":"David Alexander"}]
[null,"S002","Alumno",2,{"$nulls":14},{"$f":"ListaDeAlumnos[[#This Row],[Nombre del alumno]]&\" \" &ListaDeAlumnos[[#This Row],[Apellido del alumno]]","v":"Alumno 2"}]
[null,"S003","Alumno",3,{"$nulls":14},{"$f":"ListaDeAlumnos[[#This Row],[Nombre del alumno]]&\" \" &ListaDeAlumnos[[#This Row],[Apellido del alumno]]","v":"Alumno 3"}]
[null,"S004","Alumno",4,{"$nulls":14},{"$f":"ListaDeAlumnos[[#This Row],[Nombre del alumno]]&\" \" &ListaDeAlumnos[[#This Row],[Apellido del alumno]]","v":"Alumno 4"}]
[null,"S005","Alumno",5,{"$nulls":14},{"$f":"ListaDeAlumnos[[#This Row],[Nombre del alumno]]&\" \" &ListaDeAlumnos[[#This Row],[Apellido del alumno]]","v":"Alumno 5"}]

{"sheet":"Agosto","index":2,"n_rows":12,"n_cols":39,"rows_kept":12,"merged":[[4,34,4,38]]}
["REGISTRO DE ASISTENCIA DE LOS ALUMNOS",{"$nulls":36},"Inicio del año escolar:",2012]
[]
[null,null,"CLAVE DE COLOR ","T","Tarde",null,null,"J","Justificado",null,null,"I","Injustificado",null,null,"P","Presente",null,null,"N","No hay escuela"]
[]
[null,{"$f":"DATE(AñoNatural,8,1)","v":"2012-08-01"},null,{"$f":"TEXT(WEEKDAY(DATE(AñoNatural,8,1),1),\"[$-c0a]aaa\")","v":"mié"},{"$f":"TEXT(WEEKDAY(DATE(AñoNatural,8,2),1),\"[$-c0a]aaa\")","v":"jue"},{"$f":"TEXT(WEEKDAY(DATE(AñoNatural,8,3),1),\"[$-c0a]aaa\")","v":"vie"},{"$f":"TEXT(WEEKDAY(DATE(AñoNatural,8,4),1),\"[$-c0a]aaa\")","v":"sáb"},{"$f":"TEXT(WEEKDAY(DATE(AñoNatural,8,5),1),\"[$-c0a]aaa\")","v":"dom"},{"$f":"TEXT(WEEKDAY(DATE(AñoNatural,8,6),1),\"[$-c0a]aaa\")","v":"lun"},{"$f":"TEXT(WEEKDAY(DATE(AñoNatural,8,7),1),\"[$-c0a]aaa\")","v":"mar"},{"$f":"TEXT(WEEKDAY(DATE(AñoNatural,8,8),1),\"[$-c0a]aaa\")","v":"mié"},{"$f":"TEXT(WEEKDAY(DATE(AñoNatural,8,9),1),\"[$-c0a]aaa\")","v":"jue"},{"$f":"TEXT(WEEKDAY(DATE(AñoNatural,8,10),1),\"[$-c0a]aaa\")","v":"vie"},{"$f":"TEXT(WEEKDAY(DATE(AñoNatural,8,11),1),\"[$-c0a]aaa\")","v":"sáb"},{"$f":"TEXT(WEEKDAY(DATE(AñoNatural,8,12),1),\"[$-c0a]aaa\")","v":"dom"},{"$f":"TEXT(WEEKDAY(DATE(AñoNatural,8,13),1),\"[$-c0a]aaa\")","v":"lun"},{"$f":"TEXT(WEEKDAY(DATE(AñoNatural,8,14),1),\"[$-c0a]aaa\")","v":"mar"},{"$f":"TEXT(WEEKDAY(DATE(AñoNatural,8,15),1),\"[$-c0a]aaa\")","v":"mié"},{"$f":"TEXT(WEEKDAY(DATE(AñoNatural,8,16),1),\"[$-c0a]aaa\")","v":"jue"},{"$f":"TEXT(WEEKDAY(DATE(AñoNatural,8,17),1),\"[$-c0a]aaa\")","v":"vie"},{"$f":"TEXT(WEEKDAY(DATE(AñoNatural,8,18),1),\"[$-c0a]aaa\")","v":"sáb"},{"$f":"TEXT(WEEKDAY(DATE(AñoNatural,8,19),1),\"[$-c0a]aaa\")","v":"dom"},{"$f":"TEXT(WEEKDAY(DATE(AñoNatural,8,20),1),\"[$-c0a]aaa\")","v":"lun"},{"$f":"TEXT(WEEKDAY(DATE(AñoNatural,8,21),1),\"[$-c0a]aaa\")","v":"mar"},{"$f":"TEXT(WEEKDAY(DATE(AñoNatural,8,22),1),\"[$-C0a]aaa\")","v":"mié"},{"$f":"TEXT(WEEKDAY(DATE(AñoNatural,8,23),1),\"[$-c0a]aaa\")","v":"jue"},{"$f":"TEXT(WEEKDAY(DATE(AñoNatural,8,24),1),\"[$-c0a]aaa\")","v":"vie"},{"$f":"TEXT(WEEKDAY(DATE(AñoNatural,8,25),1),\"[$-c0a]aaa\")","v":"sáb"},{"$f":"TEXT(WEEKDAY(DATE(AñoNatural,8,26),1),\"[$-c0a]aaa\")","v":"dom"},{"$f":"TEXT(WEEKDAY(DATE(AñoNatural,8,27),1),\"[$-c0a]aaa\")","v":"lun"},{"$f":"TEXT(WEEKDAY(DATE(AñoNatural,8,28),1),\"[$-c0a]aaa\")","v":"mar"},{"$f":"TEXT(WEEKDAY(DATE(AñoNatural,8,29),1),\"[$-c0a]aaa\")","v":"mié"},{"$f":"TEXT(WEEKDAY(DATE(AñoNatural,8,30),1),\"[$-c0a]aaa\")","v":"jue"},{"$f":"TEXT(WEEKDAY(DATE(AñoNatural,8,31),1),\"[$-c0a]aaa\")","v":"vie"},"Totales"]
[null,"Id. de alumno","Nombre del alumno","1","2","3","4","5","6","7","8","9","10","11","12","13","14","15","16","17","18","19","20","21","22","23","24","25","26","27","28","29","30","31","T","J","I","P","Días ausente"]
[null,"S001",{"$f":"IFERROR(VLOOKUP(AsistenciaDeAgosto[[#This Row],[Id. de alumno]],ListaDeAlumnos[],18,FALSE),\"\")","v":"David Alexander"},"P","P","T","T","P","N","N","P","P","J","P","P","N","N","P","P","P","P","P","N","N","P","P","P","P","P","N","N","P","P","P",{"$f":"COUNTIF(AsistenciaDeAgosto[[#This Row],[1]:[31]],Código1)","v":2},{"$f":"COUNTIF(AsistenciaDeAgosto[[#This Row],[1]:[31]],Código2)","v":1},{"$f":"COUNTIF(AsistenciaDeAgosto[[#This Row],[1]:[31]],Código3)","v":0},{"$f":"COUNTIF(AsistenciaDeAgosto[[#This Row],[1]:[31]],Código4)","v":20},{"$f":"SUM(AsistenciaDeAgosto[[#This Row],[J]:[I]])","v":1}]
[null,"S002",{"$f":"IFERROR(VLOOKUP(AsistenciaDeAgosto[[#This Row],[Id. de alumno]],ListaDeAlumnos[],18,FALSE),\"\")","v":"Alumno 2"},"P","I","P","P","P","N","N","P","J","J","J","J","N","N","P","P","P","P","P","N","N","P","P","P","T","T","N","N","P","P","P",{"$f":"COUNTIF(AsistenciaDeAgosto[[#This Row],[1]:[31]],Código1)","v":2},{"$f":"COUNTIF(AsistenciaDeAgosto[[#This Row],[1]:[31]],Código2)","v":4},{"$f":"COUNTIF(AsistenciaDeAgosto[[#This Row],[1]:[31]],Código3)","v":1},{"$f":"COUNTIF(AsistenciaDeAgosto[[#This Row],[1]:[31]],Código4)","v":16},{"$f":"SUM(AsistenciaDeAgosto[[#This Row],[J]:[I]])","v":5}]
[null,"S003",{"$f":"IFERROR(VLOOKUP(AsistenciaDeAgosto[[#This Row],[Id. de alumno]],ListaDeAlumnos[],18,FALSE),\"\")","v":"Alumno 3"},"P","J","P","P","P","N","N","P","P","I","P","P","N","N","P","P","P","P","P","N","N","P","P","J","J","P","N","N","P","P","P",{"$f":"COUNTIF(AsistenciaDeAgosto[[#This Row],[1]:[31]],Código1)","v":0},{"$f":"COUNTIF(AsistenciaDeAgosto[[#This Row],[1]:[31]],Código2)","v":3},{"$f":"COUNTIF(AsistenciaDeAgosto[[#This Row],[1]:[31]],Código3)","v":1},{"$f":"COUNTIF(AsistenciaDeAgosto[[#This Row],[1]:[31]],Código4)","v":19},{"$f":"SUM(AsistenciaDeAgosto[[#This Row],[J]:[I]])","v":4}]
[null,"S004",{"$f":"IFERROR(VLOOKUP(AsistenciaDeAgosto[[#This Row],[Id. de alumno]],ListaDeAlumnos[],18,FALSE),\"\")","v":"Alumno 4"},"P","P","P","P","P","N","N","P","P","P","P","P","N","N","P","P","P","P","P","N","N","P","I","P","P","J","N","N","P","J","P",{"$f":"COUNTIF(AsistenciaDeAgosto[[#This Row],[1]:[31]],Código1)","v":0},{"$f":"COUNTIF(AsistenciaDeAgosto[[#This Row],[1]:[31]],Código2)","v":2},{"$f":"COUNTIF(AsistenciaDeAgosto[[#This Row],[1]:[31]],Código3)","v":1},{"$f":"COUNTIF(AsistenciaDeAgosto[[#This Row],[1]:[31]],Código4)","v":20},{"$f":"SUM(AsistenciaDeAgosto[[#This Row],[J]:[I]])","v":3}]
[null,"S005",{"$f":"IFERROR(VLOOKUP(AsistenciaDeAgosto[[#This Row],[Id. de alumno]],ListaDeAlumnos[],18,FALSE),\"\")","v":"Alumno 5"},"P","P","P","P","P","N","N","P","P","P","P","P","N","N","P","P","P","P","P","N","N","P","P","P","P","P","N","N","P","P","P",{"$f":"COUNTIF(AsistenciaDeAgosto[[#This Row],[1]:[31]],Código1)","v":0},{"$f":"COUNTIF(AsistenciaDeAgosto[[#This Row],[1]:[31]],Código2)","v":0},{"$f":"COUNTIF(AsistenciaDeAgosto[[#This Row],[1]:[31]],Código3)","v":0},{"$f":"COUNTIF(AsistenciaDeAgosto[[#This Row],[1]:[31]],Código4)","v":23},{"$f":"SUM(AsistenciaDeAgosto[[#This Row],[J]:[I]])","v":0}]
[null,null,"Total de días ausente",{"$f":"COUNTIF(AsistenciaDeAgosto[1],\"U\")+COUNTIF(AsistenciaDeAgosto[1],\"E\")","v":0},{"$f":"COUNTIF(AsistenciaDeAgosto[2],\"I\")+COUNTIF(AsistenciaDeAgosto[2],\"J\")","v":2},{"$f":"COUNTIF(AsistenciaDeAgosto[3],\"I\")+COUNTIF(AsistenciaDeAgosto[3],\"J\")","v":0},{"$f":"COUNTIF(AsistenciaDeAgosto[4],\"I\")+COUNTIF(AsistenciaDeAgosto[4],\"J\")","v":0},{"$f":"COUNTIF(AsistenciaDeAgosto[5],\"I\")+COUNTIF(AsistenciaDeAgosto[5],\"J\")","v":0},{"$f":"COUNTIF(AsistenciaDeAgosto[6],\"I\")+COUNTIF(AsistenciaDeAgosto[6],\"J\")","v":0},{"$f":"COUNTIF(AsistenciaDeAgosto[7],\"I\")+COUNTIF(AsistenciaDeAgosto[7],\"J\")","v":0},{"$f":"COUNTIF(AsistenciaDeAgosto[8],\"I\")+COUNTIF(AsistenciaDeAgosto[8],\"J\")","v":0},{"$f":"COUNTIF(AsistenciaDeAgosto[9],\"I\")+COUNTIF(AsistenciaDeAgosto[9],\"J\")","v":1},{"$f":"COUNTIF(AsistenciaDeAgosto[10],\"I\")+COUNTIF(AsistenciaDeAgosto[10],\"J\")","v":3},{"$f":"COUNTIF(AsistenciaDeAgosto[11],\"I\")+COUNTIF(AsistenciaDeAgosto[11],\"J\")","v":1},{"$f":"COUNTIF(AsistenciaDeAgosto[12],\"I\")+COUNTIF(AsistenciaDeAgosto[12],\"J\")","v":1},{"$f":"COUNTIF(AsistenciaDeAgosto[13],\"I\")+COUNTIF(AsistenciaDeAgosto[13],\"J\")","v":0},{"$f":"COUNTIF(AsistenciaDeAgosto[14],\"I\")+COUNTIF(AsistenciaDeAgosto[14],\"J\")","v":0},{"$f":"COUNTIF(AsistenciaDeAgosto[15],\"I\")+COUNTIF(AsistenciaDeAgosto[15],\"J\")","v":0},{"$f":"COUNTIF(AsistenciaDeAgosto[16],\"I\")+COUNTIF(AsistenciaDeAgosto[16],\"J\")","v":0},{"$f":"COUNTIF(AsistenciaDeAgosto[17],\"I\")+COUNTIF(AsistenciaDeAgosto[17],\"J\")","v":0},{"$f":"COUNTIF(AsistenciaDeAgosto[18],\"I\")+COUNTIF(AsistenciaDeAgosto[18],\"J\")","v":0},{"$f":"COUNTIF(AsistenciaDeAgosto[19],\"I\")+COUNTIF(AsistenciaDeAgosto[19],\"J\")","v":0},{"$f":"COUNTIF(AsistenciaDeAgosto[20],\"I\")+COUNTIF(AsistenciaDeAgosto[20],\"J\")","v":0},{"$f":"COUNTIF(AsistenciaDeAgosto[21],\"I\")+COUNTIF(AsistenciaDeAgosto[21],\"J\")","v":0},{"$f":"COUNTIF(AsistenciaDeAgosto[22],\"I\")+COUNTIF(AsistenciaDeAgosto[22],\"J\")","v":0},{"$f":"COUNTIF(AsistenciaDeAgosto[23],\"I\")+COUNTIF(AsistenciaDeAgosto[23],\"J\")","v":1},{"$f":"COUNTIF(AsistenciaDeAgosto[24],\"I\")+COUNTIF(AsistenciaDeAgosto[24],\"J\")","v":1},{"$f":"COUNTIF(AsistenciaDeAgosto[25],\"I\")+COUNTIF(AsistenciaDeAgosto[25],\"J\")","v":1},{"$f":"COUNTIF(AsistenciaDeAgosto[26],\"I\")+COUNTIF(AsistenciaDeAgosto[26],\"J\")","v":1},{"$f":"COUNTIF(AsistenciaDeAgosto[27],\"I\")+COUNTIF(AsistenciaDeAgosto[27],\"J\")","v":0},{"$f":"COUNTIF(AsistenciaDeAgosto[28],\"I\")+COUNTIF(AsistenciaDeAgosto[28],\"J\")","v":0},{"$f":"COUNTIF(AsistenciaDeAgosto[29],\"I\")+COUNTIF(AsistenciaDeAgosto[29],\"J\")","v":0},{"$f":"COUNTIF(AsistenciaDeAgosto[30],\"I\")+COUNTIF(AsistenciaDeAgosto[30],\"J\")","v":1},{"$f":"COUNTIF(AsistenciaDeAgosto[31],\"I\")+COUNTIF(AsistenciaDeAgosto[31],\"J\")","v":0},{"$f":"SUBTOTAL(109,AsistenciaDeAgosto[T])","v":4},{"$f":"SUBTOTAL(109,AsistenciaDeAgosto[J])","v":10},{"$f":"SUBTOTAL(109,AsistenciaDeAgosto[I])","v":3},{"$f":"SUBTOTAL(109,AsistenciaDeAgosto[P])","v":98},{"$f":"SUBTOTAL(109,AsistenciaDeAgosto[Días ausente])","v":13}]

{"sheet":"Septiembre","index":3,"n_rows":12,"n_cols":39,"rows_kept":12,"merged":[[4,34,4,38]]}
["REGISTRO DE ASISTENCIA DE LOS ALUMNOS",{"$nulls":36},"Inicio del año escolar:",{"$f":"AñoNatural","v":2012}]
[]
[null,null,{"$f":"TextoDeClaveDeColor","v":"CLAVE DE COLOR "},{"$f":"Código1","v":"T"},{"$f":"TextoDeCódigo1","v":"Tarde"},null,null,{"$f":"Código2","v":"J"},{"$f":"TextoDeCódigo2","v":"Justificado"},null,null,{"$f":"Código3","v":"I"},{"$f":"TextoDeCódigo3","v":"Injustificado"},null,null,{"$f":"Código4","v":"P"},{"$f":"TextoDeCódigo4","v":"Presente"},null,null,{"$f":"Código5","v":"N"},{"$f":"TextoDeCódigo5","v":"No hay escuela"}]
[]
[null,{"$f":"DATE(AñoNatural,9,1)","v":"2012-09-01"},null,{"$f":"TEXT(WEEKDAY(DATE(AñoNatural,9,1),1),\"[$-c0a]aaa\")","v":"sáb"},{"$f":"TEXT(WEEKDAY(DATE(AñoNatural,9,2),1),\"[$-c0a]aaa\")","v":"dom"},{"$f":"TEXT(WEEKDAY(DATE(AñoNatural,9,3),1),\"[$-c0a]aaa\")","v":"lun"},{"$f":"TEXT(WEEKDAY(DATE(AñoNatural,9,4),1),\"[$-c0a]aaa\")","v":"mar"},{"$f":"TEXT(WEEKDAY(DATE(AñoNatural,9,5),1),\"[$-c0a]aaa\")","v":"mié"},{"$f":"TEXT(WEEKDAY(DATE(AñoNatural,9,6),1),\"[$-c0a]aaa\")","v":"jue"},{"$f":"TEXT(WEEKDAY(DATE(AñoNatural,9,7),1),\"[$-c0a]aaa\")","v":"vie"},{"$f":"TEXT(WEEKDAY(DATE(AñoNatural,9,8),1),\"[$-c0a]aaa\")","v":"sáb"},{"$f":"TEXT(WEEKDAY(DATE(AñoNatural,9,9),1),\"[$-c0a]aaa\")","v":"dom"},{"$f":"TEXT(WEEKDAY(DATE(AñoNatural,9,10),1),\"[$-c0a]aaa\")","v":"lun"},{"$f":"TEXT(WEEKDAY(DATE(AñoNatural,9,11),1),\"[$-c0a]aaa\")","v":"mar"},{"$f":"TEXT(WEEKDAY(DATE(AñoNatural,9,12),1),\"[$-c0a]aaa\")","v":"mié"},{"$f":"TEXT(WEEKDAY(DATE(AñoNatural,9,13),1),\"[$-c0a]aaa\")","v":"jue"},{"$f":"TEXT(WEEKDAY(DATE(AñoNatural,9,14),1),\"[$-c0a]aaa\")","v":"vie"},{"$f":"TEXT(WEEKDAY(DATE(AñoNatural,9,15),1),\"[$-c0a]aaa\")","v":"sáb"},{"$f":"TEXT(WEEKDAY(DATE(AñoNatural,9,16),1),\"[$-c0a]aaa\")","v":"dom"},{"$f":"TEXT(WEEKDAY(DATE(AñoNatural,9,17),1),\"[$-c0a]aaa\")","v":"lun"},{"$f":"TEXT(WEEKDAY(DATE(AñoNatural,9,18),1),\"[$-c0a]aaa\")","v":"mar"},{"$f":"TEXT(WEEKDAY(DATE(AñoNatural,9,19),1),\"[$-c0a]aaa\")","v":"mié"},{"$f":"TEXT(WEEKDAY(DATE(AñoNatural,9,20),1),\"[$-c0a]aaa\")","v":"jue"},{"$f":"TEXT(WEEKDAY(DATE(AñoNatural,9,21),1),\"[$-c0a]aaa\")","v":"vie"},{"$f":"TEXT(WEEKDAY(DATE(AñoNatural,9,22),1),\"[$-c0a]aaa\")","v":"sáb"},{"$f":"TEXT(WEEKDAY(DATE(AñoNatural,9,23),1),\"[$-c0a]aaa\")","v":"dom"},{"$f":"TEXT(WEEKDAY(DATE(AñoNatural,9,24),1),\"[$-c0a]aaa\")","v":"lun"},{"$f":"TEXT(WEEKDAY(DATE(AñoNatural,9,25),1),\"[$-c0a]aaa\")","v":"mar"},{"$f":"TEXT(WEEKDAY(DATE(AñoNatural,9,26),1),\"[$-c0a]aaa\")","v":"mié"},{"$f":"TEXT(WEEKDAY(DATE(AñoNatural,9,27),1),\"[$-c0a]aaa\")","v":"jue"},{"$f":"TEXT(WEEKDAY(DATE(AñoNatural,9,28),1),\"[$-c0a]aaa\")","v":"vie"},{"$f":"TEXT(WEEKDAY(DATE(AñoNatural,9,29),1),\"[$-c0a]aaa\")","v":"sáb"},{"$f":"TEXT(WEEKDAY(DATE(AñoNatural,9,30),1),\"[$-c0a]aaa\")","v":"dom"},null,"Totales"]
[null,"Id. de alumno","Nombre del alumno","1","2","3","4","5","6","7","8","9","10","11","12","13","14","15","16","17","18","19","20","21","22","23","24","25","26","27","28","29","30"," ","T","J","I","P","Días ausente"]
[null,null,{"$f":"IFERROR(VLOOKUP(AsistenciaDeSeptiembre[[#This Row],[Id. de alumno]],ListaDeAlumnos[],18,FALSE),\"\")","v":""},{"$nulls":31},{"$f":"COUNTIF(AsistenciaDeSeptiembre[[#This Row],[1]:[ ]],Código1)","v":0},{"$f":"COUNTIF(AsistenciaDeSeptiembre[[#This Row],[1]:[ ]],Código2)","v":0},{"$f":"COUNTIF(AsistenciaDeSeptiembre[[#This Row],[1]:[ ]],Código3)","v":0},{"$f":"COUNTIF(AsistenciaDeSeptiembre[[#This Row],[1]:[ ]],Código4)","v":0},{"$f":"SUM(AsistenciaDeSeptiembre[[#This Row],[J]:[I]])","v":0}]
[null,null,{"$f":"IFERROR(VLOOKUP(AsistenciaDeSeptiembre[[#This Row],[Id. de alumno]],ListaDeAlumnos[],18,FALSE),\"\")","v":""},{"$nulls":31},{"$f":"COUNTIF(AsistenciaDeSeptiembre[[#This Row],[1]:[ ]],Código1)","v":0},{"$f":"COUNTIF(AsistenciaDeSeptiembre[[#This Row],[1]:[ ]],Código2)","v":0},{"$f":"COUNTIF(AsistenciaDeSeptiembre[[#This Row],[1]:[ ]],Código3)","v":0},{"$f":"COUNTIF(AsistenciaDeSeptiembre[[#This Row],[1]:[ ]],Código4)","v":0},{"$f":"SUM(AsistenciaDeSeptiembre[[#This Row],[J]:[I]])","v":0}]
[null,null,{"$f":"IFERROR(VLOOKUP(AsistenciaDeSeptiembre[[#This Row],[Id. de alumno]],ListaDeAlumnos[],18,FALSE),\"\")","v":""},{"$nulls":31},{"$f":"COUNTIF(AsistenciaDeSeptiembre[[#This Row],[1]:[ ]],Código1)","v":0},{"$f":"COUNTIF(AsistenciaDeSeptiembre[[#This Row],[1]:[ ]],Código2)","v":0},{"$f":"COUNTIF(AsistenciaDeSeptiembre[[#This Row],[1]:[ ]],Código3)","v":0},{"$f":"COUNTIF(AsistenciaDeSeptiembre[[#This Row],[1]:[ ]],Código4)","v":0},{"$f":"SUM(AsistenciaDeSeptiembre[[#This Row],[J]:[I]])","v":0}]
[null,null,{"$f":"IFERROR(VLOOKUP(AsistenciaDeSeptiembre[[#This Row],[Id. de alumno]],ListaDeAlumnos[],18,FALSE),\"\")","v":""},{"$nulls":31},{"$f":"COUNTIF(AsistenciaDeSeptiembre[[#This Row],[1]:[ ]],Código1)","v":0},{"$f":"COUNTIF(AsistenciaDeSeptiembre[[#This Row],[1]:[ ]],Código2)","v":0},{"$f":"COUNTIF(AsistenciaDeSeptiembre[[#This Row],[1]:[ ]],Código3)","v":0},{"$f":"COUNTIF(AsistenciaDeSeptiembre[[#This Row],[1]:[ ]],Código4)","v":0},{"$f":"SUM(AsistenciaDeSeptiembre[[#This Row],[J]:[I]])","v":0}]
[null,null,{"$f":"IFERROR(VLOOKUP(AsistenciaDeSeptiembre[[#This Row],[Id. de alumno]],ListaDeAlumnos[],18,FALSE),\"\")","v":""},{"$nulls":31},{"$f":"COUNTIF(AsistenciaDeSeptiembre[[#This Row],[1]:[ ]],Código1)","v":0},{"$f":"COUNTIF(AsistenciaDeSeptiembre[[#This Row],[1]:[ ]],Código2)","v":0},{"$f":"COUNTIF(AsistenciaDeSeptiembre[[#This Row],[1]:[ ]],Código3)","v":0},{"$f":"COUNTIF(AsistenciaDeSeptiembre[[#This Row],[1]:[ ]],Código4)","v":0},{"$f":"SUM(AsistenciaDeSeptiembre[[#This Row],[J]:[I]])","v":0}]
[null,null,"Total de días ausente",{"$f":"COUNTIF(AsistenciaDeSeptiembre[1],\"J\")+COUNTIF(AsistenciaDeSeptiembre[1],\"I\")","v":0},{"$f":"COUNTIF(AsistenciaDeSeptiembre[2],\"J\")+COUNTIF(AsistenciaDeSeptiembre[2],\"I\")","v":0},{"$f":"COUNTIF(AsistenciaDeSeptiembre[3],\"J\")+COUNTIF(AsistenciaDeSeptiembre[3],\"I\")","v":0},{"$f":"COUNTIF(AsistenciaDeSeptiembre[4],\"J\")+COUNTIF(AsistenciaDeSeptiembre[4],\"I\")","v":0},{"$f":"COUNTIF(AsistenciaDeSeptiembre[5],\"J\")+COUNTIF(AsistenciaDeSeptiembre[5],\"I\")","v":0},{"$f":"COUNTIF(AsistenciaDeSeptiembre[6],\"J\")+COUNTIF(AsistenciaDeSeptiembre[6],\"I\")","v":0},{"$f":"COUNTIF(AsistenciaDeSeptiembre[7],\"J\")+COUNTIF(AsistenciaDeSeptiembre[7],\"I\")","v":0},{"$f":"COUNTIF(AsistenciaDeSeptiembre[8],\"J\")+COUNTIF(AsistenciaDeSeptiembre[8],\"I\")","v":0},{"$f":"COUNTIF(AsistenciaDeSeptiembre[9],\"J\")+COUNTIF(AsistenciaDeSeptiembre[9],\"I\")","v":0},{"$f":"COUNTIF(AsistenciaDeSeptiembre[10],\"J\")+COUNTIF(AsistenciaDeSeptiembre[10],\"I\")","v":0},{"$f":"COUNTIF(AsistenciaDeSeptiembre[11],\"J\")+COUNTIF(AsistenciaDeSeptiembre[11],\"I\")","v":0},{"$f":"COUNTIF(AsistenciaDeSeptiembre[12],\"J\")+COUNTIF(AsistenciaDeSeptiembre[12],\"I\")","v":0},{"$f":"COUNTIF(AsistenciaDeSeptiembre[13],\"J\")+COUNTIF(AsistenciaDeSeptiembre[13],\"I\")","v":0},{"$f":"COUNTIF(AsistenciaDeSeptiembre[14],\"J\")+COUNTIF(AsistenciaDeSeptiembre[14],\"I\")","v":0},{"$f":"COUNTIF(AsistenciaDeSeptiembre[15],\"J\")+COUNTIF(AsistenciaDeSeptiembre[15],\"I\")","v":0},{"$f":"COUNTIF(AsistenciaDeSeptiembre[16],\"J\")+COUNTIF(AsistenciaDeSeptiembre[16],\"I\")","v":0},{"$f":"COUNTIF(AsistenciaDeSeptiembre[17],\"J\")+COUNTIF(AsistenciaDeSeptiembre[17],\"I\")","v":0},{"$f":"COUNTIF(AsistenciaDeSeptiembre[18],\"J\")+COUNTIF(AsistenciaDeSeptiembre[18],\"I\")","v":0},{"$f":"COUNTIF(AsistenciaDeSeptiembre[19],\"J\")+COUNTIF(AsistenciaDeSeptiembre[19],\"I\")","v":0},{"$f":"COUNTIF(AsistenciaDeSeptiembre[20],\"J\")+COUNTIF(AsistenciaDeSeptiembre[20],\"I\")","v":0},{"$f":"COUNTIF(AsistenciaDeSeptiembre[21],\"J\")+COUNTIF(AsistenciaDeSeptiembre[21],\"I\")","v":0},{"$f":"COUNTIF(AsistenciaDeSeptiembre[22],\"J\")+COUNTIF(AsistenciaDeSeptiembre[22],\"I\")","v":0},{"$f":"COUNTIF(AsistenciaDeSeptiembre[23],\"J\")+COUNTIF(AsistenciaDeSeptiembre[23],\"I\")","v":0},{"$f":"COUNTIF(AsistenciaDeSeptiembre[24],\"J\")+COUNTIF(AsistenciaDeSeptiembre[24],\"I\")","v":0},{"$f":"COUNTIF(AsistenciaDeSeptiembre[25],\"J\")+COUNTIF(AsistenciaDeSeptiembre[25],\"I\")","v":0},{"$f":"COUNTIF(AsistenciaDeSeptiembre[26],\"J\")+COUNTIF(AsistenciaDeSeptiembre[26],\"I\")","v":0},{"$f":"COUNTIF(AsistenciaDeSeptiembre[27],\"J\")+COUNTIF(AsistenciaDeSeptiembre[27],\"I\")","v":0},{"$f":"COUNTIF(AsistenciaDeSeptiembre[28],\"J\")+COUNTIF(AsistenciaDeSeptiembre[28],\"I\")","v":0},{"$f":"COUNTIF(AsistenciaDeSeptiembre[29],\"J\")+COUNTIF(AsistenciaDeSeptiembre[29],\"I\")","v":0},{"$f":"COUNTIF(AsistenciaDeSeptiembre[30],\"J\")+COUNTIF(AsistenciaDeSeptiembre[30],\"I\")","v":0},{"$f":"COUNTIF(AsistenciaDeSeptiembre[[ ]],\"J\")+COUNTIF(AsistenciaDeSeptiembre[[ ]],\"I\")","v":0},{"$f":"SUBTOTAL(109,AsistenciaDeSeptiembre[T])","v":0},{"$f":"SUBTOTAL(109,AsistenciaDeSeptiembre[J])","v":0},{"$f":"SUBTOTAL(109,AsistenciaDeSeptiembre[I])","v":0},{"$f":"SUBTOTAL(109,AsistenciaDeSeptiembre[P])","v":0},{"$f":"SUBTOTAL(109,AsistenciaDeSeptiembre[Días ausente])","v":0}]

{"sheet":"Octubre","index":4,"n_rows":12,"n_cols":39,"rows_kept":12,"merged":[[4,34,4,38]]}
["REGISTRO DE ASISTENCIA DE LOS ALUMNOS",{"$nulls":36},"Inicio del año escolar:",{"$f":"AñoNatural","v":2012}]
[]
[null,null,{"$f":"TextoDeClaveDeColor","v":"CLAVE DE COLOR "},{"$f":"Código1","v":"T"},{"$f":"TextoDeCódigo1","v":"Tarde"},null,null,{"$f":"Código2","v":"J"},{"$f":"TextoDeCódigo2","v":"Justificado"},null,null,{"$f":"Código3","v":"I"},{"$f":"TextoDeCódigo3","v":"Injustificado"},null,null,{"$f":"Código4","v":"P"},{"$f":"TextoDeCódigo4","v":"Presente"},null,null,{"$f":"Código5","v":"N"},{"$f":"TextoDeCódigo5","v":"No hay escuela"}]
[]
[null,{"$f":"DATE(AñoNatural,10,1)","v":"2012-10-01"},null,{"$f":"TEXT(WEEKDAY(DATE(AñoNatural,10,1),1),\"[$-c0a]aaa\")","v":"lun"},{"$f":"TEXT(WEEKDAY(DATE(AñoNatural,10,2),1),\"[$-c0a]aaa\")","v":"mar"},{"$f":"TEXT(WEEKDAY(DATE(AñoNatural,10,3),1),\"[$-c0a]aaa\")","v":"mié"},{"$f":"TEXT(WEEKDAY(DATE(AñoNatural,10,4),1),\"[$-c0a]aaa\")","v":"jue"},{"$f":"TEXT(WEEKDAY(DATE(AñoNatural,10,5),1),\"[$-c0a]aaa\")","v":"vie"},{"$f":"TEXT(WEEKDAY(DATE(AñoNatural,10,6),1),\"[$-c0a]aaa\")","v":"sáb"},{"$f":"TEXT(WEEKDAY(DATE(AñoNatural,10,7),1),\"[$-c0a]aaa\")","v":"dom"},{"$f":"TEXT(WEEKDAY(DATE(AñoNatural,10,8),1),\"[$-c0a]aaa\")","v":"lun"},{"$f":"TEXT(WEEKDAY(DATE(AñoNatural,10,9),1),\"[$-c0a]aaa\")","v":"mar"},{"$f":"TEXT(WEEKDAY(DATE(AñoNatural,10,10),1),\"[$-c0a]aaa\")","v":"mié"},{"$f":"TEXT(WEEKDAY(DATE(AñoNatural,10,11),1),\"[$-c0a]aaa\")","v":"jue"},{"$f":"TEXT(WEEKDAY(DATE(AñoNatural,10,12),1),\"[$-c0a]aaa\")","v":"vie"},{"$f":"TEXT(WEEKDAY(DATE(AñoNatural,10,13),1),\"[$-c0a]aaa\")","v":"sáb"},{"$f":"TEXT(WEEKDAY(DATE(AñoNatural,10,14),1),\"[$-c0a]aaa\")","v":"dom"},{"$f":"TEXT(WEEKDAY(DATE(AñoNatural,10,15),1),\"[$-c0a]aaa\")","v":"lun"},{"$f":"TEXT(WEEKDAY(DATE(AñoNatural,10,16),1),\"[$-c0a]aaa\")","v":"mar"},{"$f":"TEXT(WEEKDAY(DATE(AñoNatural,10,17),1),\"[$-c0a]aaa\")","v":"mié"},{"$f":"TEXT(WEEKDAY(DATE(AñoNatural,10,18),1),\"[$-c0a]aaa\")","v":"jue"},{"$f":"TEXT(WEEKDAY(DATE(AñoNatural,10,19),1),\"[$-c0a]aaa\")","v":"vie"},{"$f":"TEXT(WEEKDAY(DATE(AñoNatural,10,20),1),\"[$-c0a]aaa\")","v":"sáb"},{"$f":"TEXT(WEEKDAY(DATE(AñoNatural,10,21),1),\"[$-c0a]aaa\")","v":"dom"},{"$f":"TEXT(WEEKDAY(DATE(AñoNatural,10,22),1),\"[$-c0a]aaa\")","v":"lun"},{"$f":"TEXT(WEEKDAY(DATE(AñoNatural,10,23),1),\"[$-c0a]aaa\")","v":"mar"},{"$f":"TEXT(WEEKDAY(DATE(AñoNatural,10,24),1),\"[$-c0a]aaa\")","v":"mié"},{"$f":"TEXT(WEEKDAY(DATE(AñoNatural,10,25),1),\"[$-c0a]aaa\")","v":"jue"},{"$f":"TEXT(WEEKDAY(DATE(AñoNatural,10,26),1),\"[$-c0a]aaa\")","v":"vie"},{"$f":"TEXT(WEEKDAY(DATE(AñoNatural,10,27),1),\"[$-c0a]aaa\")","v":"sáb"},{"$f":"TEXT(WEEKDAY(DATE(AñoNatural,10,28),1),\"[$-c0a]aaa\")","v":"dom"},{"$f":"TEXT(WEEKDAY(DATE(AñoNatural,10,29),1),\"[$-c0a]aaa\")","v":"lun"},{"$f":"TEXT(WEEKDAY(DATE(AñoNatural,10,30),1),\"[$-c0a]aaa\")","v":"mar"},{"$f":"TEXT(WEEKDAY(DATE(AñoNatural,10,31),1),\"[$-c0a]aaa\")","v":"mié"},"Totales"]
[null,"Id. de alumno","Nombre del alumno","1","2","3","4","5","6","7","8","9","10","11","12","13","14","15","16","17","18","19","20","21","22","23","24","25","26","27","28","29","30","31","T","J","I","P","Días ausente"]
[null,null,{"$f":"IFERROR(VLOOKUP(AsistenciaDeOctubre[[#This Row],[Id. de alumno]],ListaDeAlumnos[],18,FALSE),\"\")","v":""},{"$nulls":31},{"$f":"COUNTIF(AsistenciaDeOctubre[[#This Row],[1]:[31]],Código1)","v":0},{"$f":"COUNTIF(AsistenciaDeOctubre[[#This Row],[1]:[31]],Código2)","v":0},{"$f":"COUNTIF(AsistenciaDeOctubre[[#This Row],[1]:[31]],Código3)","v":0},{"$f":"COUNTIF(AsistenciaDeOctubre[[#This Row],[1]:[31]],Código4)","v":0},{"$f":"SUM(AsistenciaDeOctubre[[#This Row],[J]:[I]])","v":0}]
[null,null,{"$f":"IFERROR(VLOOKUP(AsistenciaDeOctubre[[#This Row],[Id. de alumno]],ListaDeAlumnos[],18,FALSE),\"\")","v":""},{"$nulls":31},{"$f":"COUNTIF(AsistenciaDeOctubre[[#This Row],[1]:[31]],Código1)","v":0},{"$f":"COUNTIF(AsistenciaDeOctubre[[#This Row],[1]:[31]],Código2)","v":0},{"$f":"COUNTIF(AsistenciaDeOctubre[[#This Row],[1]:[31]],Código3)","v":0},{"$f":"COUNTIF(AsistenciaDeOctubre[[#This Row],[1]:[31]],Código4)","v":0},{"$f":"SUM(AsistenciaDeOctubre[[#This Row],[J]:[I]])","v":0}]
[null,null,{"$f":"IFERROR(VLOOKUP(AsistenciaDeOctubre[[#This Row],[Id. de alumno]],ListaDeAlumnos[],18,FALSE),\"\")","v":""},{"$nulls":31},{"$f":"COUNTIF(AsistenciaDeOctubre[[#This Row],[1]:[31]],Código1)","v":0},{"$f":"COUNTIF(AsistenciaDeOctubre[[#This Row],[1]:[31]],Código2)","v":0},{"$f":"COUNTIF(AsistenciaDeOctubre[[#This Row],[1]:[31]],Código3)","v":0},{"$f":"COUNTIF(AsistenciaDeOctubre[[#This Row],[1]:[31]],Código4)","v":0},{"$f":"SUM(AsistenciaDeOctubre[[#This Row],[J]:[I]])","v":0}]
[null,null,{"$f":"IFERROR(VLOOKUP(AsistenciaDeOctubre[[#This Row],[Id. de alumno]],ListaDeAlumnos[],18,FALSE),\"\")","v":""},{"$nulls":31},{"$f":"COUNTIF(AsistenciaDeOctubre[[#This Row],[1]:[31]],Código1)","v":0},{"$f":"COUNTIF(AsistenciaDeOctubre[[#This Row],[1]:[31]],Código2)","v":0},{"$f":"COUNTIF(AsistenciaDeOctubre[[#This Row],[1]:[31]],Código3)","v":0},{"$f":"COUNTIF(AsistenciaDeOctubre[[#This Row],[1]:[31]],Código4)","v":0},{"$f":"SUM(AsistenciaDeOctubre[[#This Row],[J]:[I]])","v":0}]
[null,null,{"$f":"IFERROR(VLOOKUP(AsistenciaDeOctubre[[#This Row],[Id. de alumno]],ListaDeAlumnos[],18,FALSE),\"\")","v":""},{"$nulls":31},{"$f":"COUNTIF(AsistenciaDeOctubre[[#This Row],[1]:[31]],Código1)","v":0},{"$f":"COUNTIF(AsistenciaDeOctubre[[#This Row],[1]:[31]],Código2)","v":0},{"$f":"COUNTIF(AsistenciaDeOctubre[[#This Row],[1]:[31]],Código3)","v":0},{"$f":"COUNTIF(AsistenciaDeOctubre[[#This Row],[1]:[31]],Código4)","v":0},{"$f":"SUM(AsistenciaDeOctubre[[#This Row],[J]:[I]])","v":0}]
[null,null,"Total de días ausente",{"$f":"COUNTIF(AsistenciaDeOctubre[1],\"J\")+COUNTIF(AsistenciaDeOctubre[1],\"I\")","v":0},{"$f":"COUNTIF(AsistenciaDeOctubre[2],\"J\")+COUNTIF(AsistenciaDeOctubre[2],\"I\")","v":0},{"$f":"COUNTIF(AsistenciaDeOctubre[3],\"J\")+COUNTIF(AsistenciaDeOctubre[3],\"I\")","v":0},{"$f":"COUNTIF(AsistenciaDeOctubre[4],\"J\")+COUNTIF(AsistenciaDeOctubre[4],\"I\")","v":0},{"$f":"COUNTIF(AsistenciaDeOctubre[5],\"J\")+COUNTIF(AsistenciaDeOctubre[5],\"I\")","v":0},{"$f":"COUNTIF(AsistenciaDeOctubre[6],\"J\")+COUNTIF(AsistenciaDeOctubre[6],\"I\")","v":0},{"$f":"COUNTIF(AsistenciaDeOctubre[7],\"J\")+COUNTIF(AsistenciaDeOctubre[7],\"I\")","v":0},{"$f":"COUNTIF(AsistenciaDeOctubre[8],\"J\")+COUNTIF(AsistenciaDeOctubre[8],\"I\")","v":0},{"$f":"COUNTIF(AsistenciaDeOctubre[9],\"J\")+COUNTIF(AsistenciaDeOctubre[9],\"I\")","v":0},{"$f":"COUNTIF(AsistenciaDeOctubre[10],\"J\")+COUNTIF(AsistenciaDeOctubre[10],\"I\")","v":0},{"$f":"COUNTIF(AsistenciaDeOctubre[11],\"J\")+COUNTIF(AsistenciaDeOctubre[11],\"I\")","v":0},{"$f":"COUNTIF(AsistenciaDeOctubre[12],\"J\")+COUNTIF(AsistenciaDeOctubre[12],\"I\")","v":0},{"$f":"COUNTIF(AsistenciaDeOctubre[13],\"J\")+COUNTIF(AsistenciaDeOctubre[13],\"I\")","v":0},{"$f":"COUNTIF(AsistenciaDeOctubre[14],\"J\")+COUNTIF(AsistenciaDeOctubre[14],\"I\")","v":0},{"$f":"COUNTIF(AsistenciaDeOctubre[15],\"J\")+COUNTIF(AsistenciaDeOctubre[15],\"I\")","v":0},{"$f":"COUNTIF(AsistenciaDeOctubre[16],\"J\")+COUNTIF(AsistenciaDeOctubre[16],\"I\")","v":0},{"$f":"COUNTIF(AsistenciaDeOctubre[17],\"J\")+COUNTIF(AsistenciaDeOctubre[17],\"I\")","v":0},{"$f":"COUNTIF(AsistenciaDeOctubre[18],\"J\")+COUNTIF(AsistenciaDeOctubre[18],\"I\")","v":0},{"$f":"COUNTIF(AsistenciaDeOctubre[19],\"J\")+COUNTIF(AsistenciaDeOctubre[19],\"I\")","v":0},{"$f":"COUNTIF(AsistenciaDeOctubre[20],\"J\")+COUNTIF(AsistenciaDeOctubre[20],\"I\")","v":0},{"$f":"COUNTIF(AsistenciaDeOctubre[21],\"J\")+COUNTIF(AsistenciaDeOctubre[21],\"I\")","v":0},{"$f":"COUNTIF(AsistenciaDeOctubre[22],\"J\")+COUNTIF(AsistenciaDeOctubre[22],\"I\")","v":0},{"$f":"COUNTIF(AsistenciaDeOctubre[23],\"J\")+COUNTIF(AsistenciaDeOctubre[23],\"I\")","v":0},{"$f":"COUNTIF(AsistenciaDeOctubre[24],\"J\")+COUNTIF(AsistenciaDeOctubre[24],\"I\")","v":0},{"$f":"COUNTIF(AsistenciaDeOctubre[25],\"J\")+COUNTIF(AsistenciaDeOctubre[25],\"I\")","v":0},{"$f":"COUNTIF(AsistenciaDeOctubre[26],\"J\")+COUNTIF(AsistenciaDeOctubre[26],\"I\")","v":0},{"$f":"COUNTIF(AsistenciaDeOctubre[27],\"J\")+COUNTIF(AsistenciaDeOctubre[27],\"I\")","v":0},{"$f":"COUNTIF(AsistenciaDeOctubre[28],\"J\")+COUNTIF(AsistenciaDeOctubre[28],\"I\")","v":0},{"$f":"COUNTIF(AsistenciaDeOctubre[29],\"J\")+COUNTIF(AsistenciaDeOctubre[29],\"I\")","v":0},{"$f":"COUNTIF(AsistenciaDeOctubre[30],\"J\")+COUNTIF(AsistenciaDeOctubre[30],\"I\")","v":0},{"$f":"COUNTIF(AsistenciaDeOctubre[31],\"J\")+COUNTIF(AsistenciaDeOctubre[31],\"I\")","v":0},{"$f":"SUBTOTAL(109,AsistenciaDeOctubre[T])","v":0},{"$f":"SUBTOTAL(109,AsistenciaDeOctubre[J])","v":0},{"$f":"SUBTOTAL(109,AsistenciaDeOctubre[I])","v":0},{"$f":"SUBTOTAL(109,AsistenciaDeOctubre[P])","v":0},{"$f":"SUBTOTAL(109,AsistenciaDeOctubre[Días ausente])","v":0}]

{"sheet":"Noviembre","index":5,"n_rows":12,"n_cols":39,"rows_kept":12,"merged":[[4,34,4,38]]}
["REGISTRO DE ASISTENCIA DE LOS ALUMNOS",{"$nulls":36},"Inicio del año escolar:",{"$f":"AñoNatural","v":2012}]
[]
[null,null,{"$f":"TextoDeClaveDeColor","v":"CLAVE DE COLOR "},{"$f":"Código1","v":"T"},{"$f":"TextoDeCódigo1","v":"Tarde"},null,null,{"$f":"Código2","v":"J"},{"$f":"TextoDeCódigo2","v":"Justificado"},null,null,{"$f":"Código3","v":"I"},{"$f":"TextoDeCódigo3","v":"Injustificado"},null,null,{"$f":"Código4","v":"P"},{"$f":"TextoDeCódigo4","v":"Presente"},null,null,{"$f":"Código5","v":"N"},{"$f":"TextoDeCódigo5","v":"No hay escuela"}]
[]
[null,{"$f":"DATE(AñoNatural,11,1)","v":"2012-11-01"},null,{"$f":"TEXT(WEEKDAY(DATE(AñoNatural,11,1),1),\"[$-c0a]aaa\")","v":"jue"},{"$f":"TEXT(WEEKDAY(DATE(AñoNatural,11,2),1),\"[$-c0a]aaa\")","v":"vie"},{"$f":"TEXT(WEEKDAY(DATE(AñoNatural,11,3),1),\"[$-c0a]aaa\")","v":"sáb"},{"$f":"TEXT(WEEKDAY(DATE(AñoNatural,11,4),1),\"[$-c0a]aaa\")","v":"dom"},{"$f":"TEXT(WEEKDAY(DATE(AñoNatural,11,5),1),\"[$-c0a]aaa\")","v":"lun"},{"$f":"TEXT(WEEKDAY(DATE(AñoNatural,11,6),1),\"[$-c0a]aaa\")","v":"mar"},{"$f":"TEXT(WEEKDAY(DATE(AñoNatural,11,7),1),\"[$-c0a]aaa\")","v":"mié"},{"$f":"TEXT(WEEKDAY(DATE(AñoNatural,11,8),1),\"[$-c0a]aaa\")","v":"jue"},{"$f":"TEXT(WEEKDAY(DATE(AñoNatural,11,9),1),\"[$-c0a]aaa\")","v":"vie"},{"$f":"TEXT(WEEKDAY(DATE(AñoNatural,11,10),1),\"[$-c0a]aaa\")","v":"sáb"},{"$f":"TEXT(WEEKDAY(DATE(AñoNatural,11,11),1),\"[$-c0a]aaa\")","v":"dom"},{"$f":"TEXT(WEEKDAY(DATE(AñoNatural,11,12),1),\"[$-c0a]aaa\")","v":"lun"},{"$f":"TEXT(WEEKDAY(DATE(AñoNatural,11,13),1),\"[$-c0a]aaa\")","v":"mar"},{"$f":"TEXT(WEEKDAY(DATE(AñoNatural,11,14),1),\"[$-c0a]aaa\")","v":"mié"},{"$f":"TEXT(WEEKDAY(DATE(AñoNatural,11,15),1),\"[$-c0a]aaa\")","v":"jue"},{"$f":"TEXT(WEEKDAY(DATE(AñoNatural,11,16),1),\"[$-c0a]aaa\")","v":"vie"},{"$f":"TEXT(WEEKDAY(DATE(AñoNatural,11,17),1),\"[$-c0a]aaa\")","v":"sáb"},{"$f":"TEXT(WEEKDAY(DATE(AñoNatural,11,18),1),\"[$-c0a]aaa\")","v":"dom"},{"$f":"TEXT(WEEKDAY(DATE(AñoNatural,11,19),1),\"[$-c0a]aaa\")","v":"lun"},{"$f":"TEXT(WEEKDAY(DATE(AñoNatural,11,20),1),\"[$-c0a]aaa\")","v":"mar"},{"$f":"TEXT(WEEKDAY(DATE(AñoNatural,11,21),1),\"[$-c0a]aaa\")","v":"mié"},{"$f":"TEXT(WEEKDAY(DATE(AñoNatural,11,22),1),\"[$-c0a]aaa\")","v":"jue"},{"$f":"TEXT(WEEKDAY(DATE(AñoNatural,11,23),1),\"[$-c0a]aaa\")","v":"vie"},{"$f":"TEXT(WEEKDAY(DATE(AñoNatural,11,24),1),\"[$-c0a]aaa\")","v":"sáb"},{"$f":"TEXT(WEEKDAY(DATE(AñoNatural,11,25),1),\"[$-c0a]aaa\")","v":"dom"},{"$f":"TEXT(WEEKDAY(DATE(AñoNatural,11,26),1),\"[$-c0a]aaa\")","v":"lun"},{"$f":"TEXT(WEEKDAY(DATE(AñoNatural,11,27),1),\"[$-c0a]aaa\")","v":"mar"},{"$f":"TEXT(WEEKDAY(DATE(AñoNatural,11,28),1),\"[$-c0a]aaa\")","v":"mié"},{"$f":"TEXT(WEEKDAY(DATE(AñoNatural,11,29),1),\"[$-c0a]aaa\")","v":"jue"},{"$f":"TEXT(WEEKDAY(DATE(AñoNatural,11,30),1),\"[$-c0a]aaa\")","v":"vie"},null,"Totales"]
[null,"Id. de alumno","Nombre del alumno","1","2","3","4","5","6","7","8","9","10","11","12","13","14","15","16","17","18","19","20","21","22","23","24","25","26","27","28","29","30"," ","T","J","I","P","Días ausente"]
[null,null,{"$f":"IFERROR(VLOOKUP(AsistenciaDeNoviembre[[#This Row],[Id. de alumno]],ListaDeAlumnos[],18,FALSE),\"\")","v":""},{"$nulls":31},{"$f":"COUNTIF(AsistenciaDeNoviembre[[#This Row],[1]:[ ]],Código1)","v":0},{"$f":"COUNTIF(AsistenciaDeNoviembre[[#This Row],[1]:[ ]],Código2)","v":0},{"$f":"COUNTIF(AsistenciaDeNoviembre[[#This Row],[1]:[ ]],Código3)","v":0},{"$f":"COUNTIF(AsistenciaDeNoviembre[[#This Row],[1]:[ ]],Código4)","v":0},{"$f":"SUM(AsistenciaDeNoviembre[[#This Row],[J]:[I]])","v":0}]
[null,null,{"$f":"IFERROR(VLOOKUP(AsistenciaDeNoviembre[[#This Row],[Id. de alumno]],ListaDeAlumnos[],18,FALSE),\"\")","v":""},{"$nulls":31},{"$f":"COUNTIF(AsistenciaDeNoviembre[[#This Row],[1]:[ ]],Código1)","v":0},{"$f":"COUNTIF(AsistenciaDeNoviembre[[#This Row],[1]:[ ]],Código2)","v":0},{"$f":"COUNTIF(AsistenciaDeNoviembre[[#This Row],[1]:[ ]],Código3)","v":0},{"$f":"COUNTIF(AsistenciaDeNoviembre[[#This Row],[1]:[ ]],Código4)","v":0},{"$f":"SUM(AsistenciaDeNoviembre[[#This Row],[J]:[I]])","v":0}]
[null,null,{"$f":"IFERROR(VLOOKUP(AsistenciaDeNoviembre[[#This Row],[Id. de alumno]],ListaDeAlumnos[],18,FALSE),\"\")","v":""},{"$nulls":31},{"$f":"COUNTIF(AsistenciaDeNoviembre[[#This Row],[1]:[ ]],Código1)","v":0},{"$f":"COUNTIF(AsistenciaDeNoviembre[[#This Row],[1]:[ ]],Código2)","v":0},{"$f":"COUNTIF(AsistenciaDeNoviembre[[#This Row],[1]:[ ]],Código3)","v":0},{"$f":"COUNTIF(AsistenciaDeNoviembre[[#This Row],[1]:[ ]],Código4)","v":0},{"$f":"SUM(AsistenciaDeNoviembre[[#This Row],[J]:[I]])","v":0}]
[null,null,{"$f":"IFERROR(VLOOKUP(AsistenciaDeNoviembre[[#This Row],[Id. de alumno]],ListaDeAlumnos[],18,FALSE),\"\")","v":""},{"$nulls":31},{"$f":"COUNTIF(AsistenciaDeNoviembre[[#This Row],[1]:[ ]],Código1)","v":0},{"$f":"COUNTIF(AsistenciaDeNoviembre[[#This Row],[1]:[ ]],Código2)","v":0},{"$f":"COUNTIF(AsistenciaDeNoviembre[[#This Row],[1]:[ ]],Código3)","v":0},{"$f":"COUNTIF(AsistenciaDeNoviembre[[#This Row],[1]:[ ]],Código4)","v":0},{"$f":"SUM(AsistenciaDeNoviembre[[#This Row],[J]:[I]])","v":0}]
[null,null,{"$f":"IFERROR(VLOOKUP(AsistenciaDeNoviembre[[#This Row],[Id. de alumno]],ListaDeAlumnos[],18,FALSE),\"\")","v":""},{"$nulls":31},{"$f":"COUNTIF(AsistenciaDeNoviembre[[#This Row],[1]:[ ]],Código1)","v":0},{"$f":"COUNTIF(AsistenciaDeNoviembre[[#This Row],[1]:[ ]],Código2)","v":0},{"$f":"COUNTIF(AsistenciaDeNoviembre[[#This Row],[1]:[ ]],Código3)","v":0},{"$f":"COUNTIF(AsistenciaDeNoviembre[[#This Row],[1]:[ ]],Código4)","v":0},{"$f":"SUM(AsistenciaDeNoviembre[[#This Row],[J]:[I]])","v":0}]
[null,null,"Total de días ausente",{"$f":"COUNTIF(AsistenciaDeNoviembre[1],\"J\")+COUNTIF(AsistenciaDeNoviembre[1],\"I\")","v":0},{"$f":"COUNTIF(AsistenciaDeNoviembre[2],\"J\")+COUNTIF(AsistenciaDeNoviembre[2],\"I\")","v":0},{"$f":"COUNTIF(AsistenciaDeNoviembre[3],\"J\")+COUNTIF(AsistenciaDeNoviembre[3],\"I\")","v":0},{"$f":"COUNTIF(AsistenciaDeNoviembre[4],\"J\")+COUNTIF(AsistenciaDeNoviembre[4],\"I\")","v":0},{"$f":"COUNTIF(AsistenciaDeNoviembre[5],\"J\")+COUNTIF(AsistenciaDeNoviembre[5],\"I\")","v":0},{"$f":"COUNTIF(AsistenciaDeNoviembre[6],\"J\")+COUNTIF(AsistenciaDeNoviembre[6],\"I\")","v":0},{"$f":"COUNTIF(AsistenciaDeNoviembre[7],\"J\")+COUNTIF(AsistenciaDeNoviembre[7],\"I\")","v":0},{"$f":"COUNTIF(AsistenciaDeNoviembre[8],\"J\")+COUNTIF(AsistenciaDeNoviembre[8],\"I\")","v":0},{"$f":"COUNTIF(AsistenciaDeNoviembre[9],\"J\")+COUNTIF(AsistenciaDeNoviembre[9],\"I\")","v":0},{"$f":"COUNTIF(AsistenciaDeNoviembre[10],\"J\")+COUNTIF(AsistenciaDeNoviembre[10],\"I\")","v":0},{"$f":"COUNTIF(AsistenciaDeNoviembre[11],\"J\")+COUNTIF(AsistenciaDeNoviembre[11],\"I\")","v":0},{"$f":"COUNTIF(AsistenciaDeNoviembre[12],\"J\")+COUNTIF(AsistenciaDeNoviembre[12],\"I\")","v":0},{"$f":"COUNTIF(AsistenciaDeNoviembre[13],\"J\")+COUNTIF(AsistenciaDeNoviembre[13],\"I\")","v":0},{"$f":"COUNTIF(AsistenciaDeNoviembre[14],\"J\")+COUNTIF(AsistenciaDeNoviembre[14],\"I\")","v":0},{"$f":"COUNTIF(AsistenciaDeNoviembre[15],\"J\")+COUNTIF(AsistenciaDeNoviembre[15],\"I\")","v":0},{"$f":"COUNTIF(AsistenciaDeNoviembre[16],\"J\")+COUNTIF(AsistenciaDeNoviembre[16],\"I\")","v":0},{"$f":"COUNTIF(AsistenciaDeNoviembre[17],\"J\")+COUNTIF(AsistenciaDeNoviembre[17],\"I\")","v":0},{"$f":"COUNTIF(AsistenciaDeNoviembre[18],\"J\")+COUNTIF(AsistenciaDeNoviembre[18],\"I\")","v":0},{"$f":"COUNTIF(AsistenciaDeNoviembre[19],\"J\")+COUNTIF(AsistenciaDeNoviembre[19],\"I\")","v":0},{"$f":"COUNTIF(AsistenciaDeNoviembre[20],\"J\")+COUNTIF(AsistenciaDeNoviembre[20],\"I\")","v":0},{"$f":"COUNTIF(AsistenciaDeNoviembre[21],\"J\")+COUNTIF(AsistenciaDeNoviembre[21],\"I\")","v":0},{"$f":"COUNTIF(AsistenciaDeNoviembre[22],\"J\")+COUNTIF(AsistenciaDeNoviembre[22],\"I\")","v":0},{"$f":"COUNTIF(AsistenciaDeNoviembre[23],\"J\")+COUNTIF(AsistenciaDeNoviembre[23],\"I\")","v":0},{"$f":"COUNTIF(AsistenciaDeNoviembre[24],\"J\")+COUNTIF(AsistenciaDeNoviembre[24],\"I\")","v":0},{"$f":"COUNTIF(AsistenciaDeNoviembre[25],\"J\")+COUNTIF(AsistenciaDeNoviembre[25],\"I\")","v":0},{"$f":"COUNTIF(AsistenciaDeNoviembre[26],\"J\")+COUNTIF(AsistenciaDeNoviembre[26],\"I\")","v":0},{"$f":"COUNTIF(AsistenciaDeNoviembre[27],\"J\")+COUNTIF(AsistenciaDeNoviembre[27],\"I\")","v":0},{"$f":"COUNTIF(AsistenciaDeNoviembre[28],\"J\")+COUNTIF(AsistenciaDeNoviembre[28],\"I\")","v":0},{"$f":"COUNTIF(AsistenciaDeNoviembre[29],\"J\")+COUNTIF(AsistenciaDeNoviembre[29],\"I\")","v":0},{"$f":"COUNTIF(AsistenciaDeNoviembre[30],\"J\")+COUNTIF(AsistenciaDeNoviembre[30],\"I\")","v":0},{"$f":"COUNTIF(AsistenciaDeNoviembre[[ ]],\"J\")+COUNTIF(AsistenciaDeNoviembre[[ ]],\"I\")","v":0},{"$f":"SUBTOTAL(109,AsistenciaDeNoviembre[T])","v":0},{"$f":"SUBTOTAL(109,AsistenciaDeNoviembre[J])","v":0},{"$f":"SUBTOTAL(109,AsistenciaDeNoviembre[I])","v":0},{"$f":"SUBTOTAL(109,AsistenciaDeNoviembre[P])","v":0},{"$f":"SUBTOTAL(109,AsistenciaDeNoviembre[Días ausente])","v":0}]

{"sheet":"Diciembre","index":6,"n_rows":12,"n_cols":39,"rows_kept":12,"merged":[[4,34,4,38]]}
["REGISTRO DE ASISTENCIA DE LOS ALUMNOS",{"$nulls":36},"Inicio del año escolar:",{"$f":"AñoNatural","v":2012}]
[]
[null,null,{"$f":"TextoDeClaveDeColor","v":"CLAVE DE COLOR "},{"$f":"Código1","v":"T"},{"$f":"TextoDeCódigo1","v":"Tarde"},null,null,{"$f":"Código2","v":"J"},{"$f":"TextoDeCódigo2","v":"Justificado"},null,null,{"$f":"Código3","v":"I"},{"$f":"TextoDeCódigo3","v":"Injustificado"},null,null,{"$f":"Código4","v":"P"},{"$f":"TextoDeCódigo4","v":"Presente"},null,null,{"$f":"Código5","v":"N"},{"$f":"TextoDeCódigo5","v":"No hay escuela"}]
[]
[null,{"$f":"DATE(AñoNatural,12,1)","v":"2012-12-01"},null,{"$f":"TEXT(WEEKDAY(DATE(AñoNatural,12,1),1),\"[$-c0a]aaa\")","v":"sáb"},{"$f":"TEXT(WEEKDAY(DATE(AñoNatural,12,2),1),\"[$-c0a]aaa\")","v":"dom"},{"$f":"TEXT(WEEKDAY(DATE(AñoNatural,12,3),1),\"[$-c0a]aaa\")","v":"lun"},{"$f":"TEXT(WEEKDAY(DATE(AñoNatural,12,4),1),\"[$-c0a]aaa\")","v":"mar"},{"$f":"TEXT(WEEKDAY(DATE(AñoNatural,12,5),1),\"[$-c0a]aaa\")","v":"mié"},{"$f":"TEXT(WEEKDAY(DATE(AñoNatural,12,6),1),\"[$-c0a]aaa\")","v":"jue"},{"$f":"TEXT(WEEKDAY(DATE(AñoNatural,12,7),1),\"[$-c0a]aaa\")","v":"vie"},{"$f":"TEXT(WEEKDAY(DATE(AñoNatural,12,8),1),\"[$-c0a]aaa\")","v":"sáb"},{"$f":"TEXT(WEEKDAY(DATE(AñoNatural,12,9),1),\"[$-c0a]aaa\")","v":"dom"},{"$f":"TEXT(WEEKDAY(DATE(AñoNatural,12,10),1),\"[$-c0a]aaa\")","v":"lun"},{"$f":"TEXT(WEEKDAY(DATE(AñoNatural,12,11),1),\"[$-c0a]aaa\")","v":"mar"},{"$f":"TEXT(WEEKDAY(DATE(AñoNatural,12,12),1),\"[$-c0a]aaa\")","v":"mié"},{"$f":"TEXT(WEEKDAY(DATE(AñoNatural,12,13),1),\"[$-c0a]aaa\")","v":"jue"},{"$f":"TEXT(WEEKDAY(DATE(AñoNatural,12,14),1),\"[$-c0a]aaa\")","v":"vie"},{"$f":"TEXT(WEEKDAY(DATE(AñoNatural,12,15),1),\"[$-c0a]aaa\")","v":"sáb"},{"$f":"TEXT(WEEKDAY(DATE(AñoNatural,12,16),1),\"[$-c0a]aaa\")","v":"dom"},{"$f":"TEXT(WEEKDAY(DATE(AñoNatural,12,17),1),\"[$-c0a]aaa\")","v":"lun"},{"$f":"TEXT(WEEKDAY(DATE(AñoNatural,12,18),1),\"[$-c0a]aaa\")","v":"mar"},{"$f":"TEXT(WEEKDAY(DATE(AñoNatural,12,19),1),\"[$-c0a]aaa\")","v":"mié"},{"$f":"TEXT(WEEKDAY(DATE(AñoNatural,12,20),1),\"[$-c0a]aaa\")","v":"jue"},{"$f":"TEXT(WEEKDAY(DATE(AñoNatural,12,21),1),\"[$-c0a]aaa\")","v":"vie"},{"$f":"TEXT(WEEKDAY(DATE(AñoNatural,12,22),1),\"[$-c0a]aaa\")","v":"sáb"},{"$f":"TEXT(WEEKDAY(DATE(AñoNatural,12,23),1),\"[$-c0a]aaa\")","v":"dom"},{"$f":"TEXT(WEEKDAY(DATE(AñoNatural,12,24),1),\"[$-c0a]aaa\")","v":"lun"},{"$f":"TEXT(WEEKDAY(DATE(AñoNatural,12,25),1),\"[$-c0a]aaa\")","v":"mar"},{"$f":"TEXT(WEEKDAY(DATE(AñoNatural,12,26),1),\"[$-c0a]aaa\")","v":"mié"},{"$f":"TEXT(WEEKDAY(DATE(AñoNatural,12,27),1),\"[$-c0a]aaa\")","v":"jue"},{"$f":"TEXT(WEEKDAY(DATE(AñoNatural,12,28),1),\"[$-c0a]aaa\")","v":"vie"},{"$f":"TEXT(WEEKDAY(DATE(AñoNatural,12,29),1),\"[$-c0a]aaa\")","v":"sáb"},{"$f":"TEXT(WEEKDAY(DATE(AñoNatural,12,30),1),\"[$-c0a]aaa\")","v":"dom"},{"$f":"TEXT(WEEKDAY(DATE(AñoNatural,12,31),1),\"[$-c0a]aaa\")","v":"lun"},"Totales"]
[null,"Id. de alumno","Nombre del alumno","1","2","3","4","5","6","7","8","9","10","11","12","13","14","15","16","17","18","19","20","21","22","23","24","25","26","27","28","29","30","31","T","J","I","P","Días ausente"]
[null,null,{"$f":"IFERROR(VLOOKUP(AsistenciaDeDiciembre[[#This Row],[Id. de alumno]],ListaDeAlumnos[],18,FALSE),\"\")","v":""},{"$nulls":31},{"$f":"COUNTIF(AsistenciaDeDiciembre[[#This Row],[1]:[31]],Código1)","v":0},{"$f":"COUNTIF(AsistenciaDeDiciembre[[#This Row],[1]:[31]],Código2)","v":0},{"$f":"COUNTIF(AsistenciaDeDiciembre[[#This Row],[1]:[31]],Código3)","v":0},{"$f":"COUNTIF(AsistenciaDeDiciembre[[#This Row],[1]:[31]],Código4)","v":0},{"$f":"SUM(AsistenciaDeDiciembre[[#This Row],[J]:[I]])","v":0}]
[null,null,{"$f":"IFERROR(VLOOKUP(AsistenciaDeDiciembre[[#This Row],[Id. de alumno]],ListaDeAlumnos[],18,FALSE),\"\")","v":""},{"$nulls":31},{"$f":"COUNTIF(AsistenciaDeDiciembre[[#This Row],[1]:[31]],Código1)","v":0},{"$f":"COUNTIF(AsistenciaDeDiciembre[[#This Row],[1]:[31]],Código2)","v":0},{"$f":"COUNTIF(AsistenciaDeDiciembre[[#This Row],[1]:[31]],Código3)","v":0},{"$f":"COUNTIF(AsistenciaDeDiciembre[[#This Row],[1]:[31]],Código4)","v":0},{"$f":"SUM(AsistenciaDeDiciembre[[#This Row],[J]:[I]])","v":0}]
[null,null,{"$f":"IFERROR(VLOOKUP(AsistenciaDeDiciembre[[#This Row],[Id. de alumno]],ListaDeAlumnos[],18,FALSE),\"\")","v":""},{"$nulls":31},{"$f":"COUNTIF(AsistenciaDeDiciembre[[#This Row],[1]:[31]],Código1)","v":0},{"$f":"COUNTIF(AsistenciaDeDiciembre[[#This Row],[1]:[31]],Código2)","v":0},{"$f":"COUNTIF(AsistenciaDeDiciembre[[#This Row],[1]:[31]],Código3)","v":0},{"$f":"COUNTIF(AsistenciaDeDiciembre[[#This Row],[1]:[31]],Código4)","v":0},{"$f":"SUM(AsistenciaDeDiciembre[[#This Row],[J]:[I]])","v":0}]
[null,null,{"$f":"IFERROR(VLOOKUP(AsistenciaDeDiciembre[[#This Row],[Id. de alumno]],ListaDeAlumnos[],18,FALSE),\"\")","v":""},{"$nulls":31},{"$f":"COUNTIF(AsistenciaDeDiciembre[[#This Row],[1]:[31]],Código1)","v":0},{"$f":"COUNTIF(AsistenciaDeDiciembre[[#This Row],[1]:[31]],Código2)","v":0},{"$f":"COUNTIF(AsistenciaDeDiciembre[[#This Row],[1]:[31]],Código3)","v":0},{"$f":"COUNTIF(AsistenciaDeDiciembre[[#This Row],[1]:[31]],Código4)","v":0},{"$f":"SUM(AsistenciaDeDiciembre[[#This Row],[J]:[I]])","v":0}]
[null,null,{"$f":"IFERROR(VLOOKUP(AsistenciaDeDiciembre[[#This Row],[Id. de alumno]],ListaDeAlumnos[],18,FALSE),\"\")","v":""},{"$nulls":31},{"$f":"COUNTIF(AsistenciaDeDiciembre[[#This Row],[1]:[31]],Código1)","v":0},{"$f":"COUNTIF(AsistenciaDeDiciembre[[#This Row],[1]:[31]],Código2)","v":0},{"$f":"COUNTIF(AsistenciaDeDiciembre[[#This Row],[1]:[31]],Código3)","v":0},{"$f":"COUNTIF(AsistenciaDeDiciembre[[#This Row],[1]:[31]],Código4)","v":0},{"$f":"SUM(AsistenciaDeDiciembre[[#This Row],[J]:[I]])","v":0}]
[null,null,"Total de días ausente",{"$f":"COUNTIF(AsistenciaDeDiciembre[1],\"J\")+COUNTIF(AsistenciaDeDiciembre[1],\"I\")","v":0},{"$f":"COUNTIF(AsistenciaDeDiciembre[2],\"J\")+COUNTIF(AsistenciaDeDiciembre[2],\"I\")","v":0},{"$f":"COUNTIF(AsistenciaDeDiciembre[3],\"J\")+COUNTIF(AsistenciaDeDiciembre[3],\"I\")","v":0},{"$f":"COUNTIF(AsistenciaDeDiciembre[4],\"J\")+COUNTIF(AsistenciaDeDiciembre[4],\"I\")","v":0},{"$f":"COUNTIF(AsistenciaDeDiciembre[5],\"J\")+COUNTIF(AsistenciaDeDiciembre[5],\"I\")","v":0},{"$f":"COUNTIF(AsistenciaDeDiciembre[6],\"J\")+COUNTIF(AsistenciaDeDiciembre[6],\"I\")","v":0},{"$f":"COUNTIF(AsistenciaDeDiciembre[7],\"J\")+COUNTIF(AsistenciaDeDiciembre[7],\"I\")","v":0},{"$f":"COUNTIF(AsistenciaDeDiciembre[8],\"J\")+COUNTIF(AsistenciaDeDiciembre[8],\"I\")","v":0},{"$f":"COUNTIF(AsistenciaDeDiciembre[9],\"J\")+COUNTIF(AsistenciaDeDiciembre[9],\"I\")","v":0},{"$f":"COUNTIF(AsistenciaDeDiciembre[10],\"J\")+COUNTIF(AsistenciaDeDiciembre[10],\"I\")","v":0},{"$f":"COUNTIF(AsistenciaDeDiciembre[11],\"J\")+COUNTIF(AsistenciaDeDiciembre[11],\"I\")","v":0},{"$f":"COUNTIF(AsistenciaDeDiciembre[12],\"J\")+COUNTIF(AsistenciaDeDiciembre[12],\"I\")","v":0},{"$f":"COUNTIF(AsistenciaDeDiciembre[13],\"J\")+COUNTIF(AsistenciaDeDiciembre[13],\"I\")","v":0},{"$f":"COUNTIF(AsistenciaDeDiciembre[14],\"J\")+COUNTIF(AsistenciaDeDiciembre[14],\"I\")","v":0},{"$f":"COUNTIF(AsistenciaDeDiciembre[15],\"J\")+COUNTIF(AsistenciaDeDiciembre[15],\"I\")","v":0},{"$f":"COUNTIF(AsistenciaDeDiciembre[16],\"J\")+COUNTIF(AsistenciaDeDiciembre[16],\"I\")","v":0},{"$f":"COUNTIF(AsistenciaDeDiciembre[17],\"J\")+COUNTIF(AsistenciaDeDiciembre[17],\"I\")","v":0},{"$f":"COUNTIF(AsistenciaDeDiciembre[18],\"J\")+COUNTIF(AsistenciaDeDiciembre[18],\"I\")","v":0},{"$f":"COUNTIF(AsistenciaDeDiciembre[19],\"J\")+COUNTIF(AsistenciaDeDiciembre[19],\"I\")","v":0},{"$f":"COUNTIF(AsistenciaDeDiciembre[20],\"J\")+COUNTIF(AsistenciaDeDiciembre[20],\"I\")","v":0},{"$f":"COUNTIF(AsistenciaDeDiciembre[21],\"J\")+COUNTIF(AsistenciaDeDiciembre[21],\"I\")","v":0},{"$f":"COUNTIF(AsistenciaDeDiciembre[22],\"J\")+COUNTIF(AsistenciaDeDiciembre[22],\"I\")","v":0},{"$f":"COUNTIF(AsistenciaDeDiciembre[23],\"J\")+COUNTIF(AsistenciaDeDiciembre[23],\"I\")","v":0},{"$f":"COUNTIF(AsistenciaDeDiciembre[24],\"J\")+COUNTIF(AsistenciaDeDiciembre[24],\"I\")","v":0},{"$f":"COUNTIF(AsistenciaDeDiciembre[25],\"J\")+COUNTIF(AsistenciaDeDiciembre[25],\"I\")","v":0},{"$f":"COUNTIF(AsistenciaDeDiciembre[26],\"J\")+COUNTIF(AsistenciaDeDiciembre[26],\"I\")","v":0},{"$f":"COUNTIF(AsistenciaDeDiciembre[27],\"J\")+COUNTIF(AsistenciaDeDiciembre[27],\"I\")","v":0},{"$f":"COUNTIF(AsistenciaDeDiciembre[28],\"J\")+COUNTIF(AsistenciaDeDiciembre[28],\"I\")","v":0},{"$f":"COUNTIF(AsistenciaDeDiciembre[29],\"J\")+COUNTIF(AsistenciaDeDiciembre[29],\"I\")","v":0},{"$f":"COUNTIF(AsistenciaDeDiciembre[30],\"J\")+COUNTIF(AsistenciaDeDiciembre[30],\"I\")","v":0},{"$f":"COUNTIF(AsistenciaDeDiciembre[31],\"J\")+COUNTIF(AsistenciaDeDiciembre[31],\"I\")","v":0},{"$f":"SUBTOTAL(109,AsistenciaDeDiciembre[T])","v":0},{"$f":"SUBTOTAL(109,AsistenciaDeDiciembre[J])","v":0},{"$f":"SUBTOTAL(109,AsistenciaDeDiciembre[I])","v":0},{"$f":"SUBTOTAL(109,AsistenciaDeDiciembre[P])","v":0},{"$f":"SUBTOTAL(109,AsistenciaDeDiciembre[Días ausente])","v":0}]

{"sheet":"Enero","index":7,"n_rows":12,"n_cols":39,"rows_kept":12,"merged":[[4,34,4,38]]}
["REGISTRO DE ASISTENCIA DE LOS ALUMNOS",{"$nulls":36},"Inicio del año escolar:",{"$f":"AñoNatural","v":2012}]
[]
[null,null,{"$f":"TextoDeClaveDeColor","v":"CLAVE DE COLOR "},{"$f":"Código1","v":"T"},{"$f":"TextoDeCódigo1","v":"Tarde"},null,null,{"$f":"Código2","v":"J"},{"$f":"TextoDeCódigo2","v":"Justificado"},null,null,{"$f":"Código3","v":"I"},{"$f":"TextoDeCódigo3","v":"Injustificado"},null,null,{"$f":"Código4","v":"P"},{"$f":"TextoDeCódigo4","v":"Presente"},null,null,{"$f":"Código5","v":"N"},{"$f":"TextoDeCódigo5","v":"No hay escuela"}]
[]
[null,{"$f":"DATE(AñoNatural+1,1,1)","v":"2013-01-01"},null,{"$f":"TEXT(WEEKDAY(DATE(AñoNatural+1,1,1),1),\"[$-c0a]aaa\")","v":"mar"},{"$f":"TEXT(WEEKDAY(DATE(AñoNatural+1,1,2),1),\"[$-c0a]aaa\")","v":"mié"},{"$f":"TEXT(WEEKDAY(DATE(AñoNatural+1,1,3),1),\"[$-c0a]aaa\")","v":"jue"},{"$f":"TEXT(WEEKDAY(DATE(AñoNatural+1,1,4),1),\"[$-c0a]aaa\")","v":"vie"},{"$f":"TEXT(WEEKDAY(DATE(AñoNatural+1,1,5),1),\"[$-c0a]aaa\")","v":"sáb"},{"$f":"TEXT(WEEKDAY(DATE(AñoNatural+1,1,6),1),\"[$-c0a]aaa\")","v":"dom"},{"$f":"TEXT(WEEKDAY(DATE(AñoNatural+1,1,7),1),\"[$-c0a]aaa\")","v":"lun"},{"$f":"TEXT(WEEKDAY(DATE(AñoNatural+1,1,8),1),\"[$-c0a]aaa\")","v":"mar"},{"$f":"TEXT(WEEKDAY(DATE(AñoNatural+1,1,9),1),\"[$-c0a]aaa\")","v":"mié"},{"$f":"TEXT(WEEKDAY(DATE(AñoNatural+1,1,10),1),\"[$-c0a]aaa\")","v":"jue"},{"$f":"TEXT(WEEKDAY(DATE(AñoNatural+1,1,11),1),\"[$-c0a]aaa\")","v":"vie"},{"$f":"TEXT(WEEKDAY(DATE(AñoNatural+1,1,12),1),\"[$-c0a]aaa\")","v":"sáb"},{"$f":"TEXT(WEEKDAY(DATE(AñoNatural+1,1,13),1),\"[$-c0a]aaa\")","v":"dom"},{"$f":"TEXT(WEEKDAY(DATE(AñoNatural+1,1,14),1),\"[$-c0a]aaa\")","v":"lun"},{"$f":"TEXT(WEEKDAY(DATE(AñoNatural+1,1,15),1),\"[$-c0a]aaa\")","v":"mar"},{"$f":"TEXT(WEEKDAY(DATE(AñoNatural+1,1,16),1),\"[$-c0a]aaa\")","v":"mié"},{"$f":"TEXT(WEEKDAY(DATE(AñoNatural+1,1,17),1),\"[$-c0a]aaa\")","v":"jue"},{"$f":"TEXT(WEEKDAY(DATE(AñoNatural+1,1,18),1),\"[$-c0a]aaa\")","v":"vie"},{"$f":"TEXT(WEEKDAY(DATE(AñoNatural+1,1,19),1),\"[$-c0a]aaa\")","v":"sáb"},{"$f":"TEXT(WEEKDAY(DATE(AñoNatural+1,1,20),1),\"[$-c0a]aaa\")","v":"dom"},{"$f":"TEXT(WEEKDAY(DATE(AñoNatural+1,1,21),1),\"[$-c0a]aaa\")","v":"lun"},{"$f":"TEXT(WEEKDAY(DATE(AñoNatural+1,1,22),1),\"[$-c0a]aaa\")","v":"mar"},{"$f":"TEXT(WEEKDAY(DATE(AñoNatural+1,1,23),1),\"[$-c0a]aaa\")","v":"mié"},{"$f":"TEXT(WEEKDAY(DATE(AñoNatural+1,1,24),1),\"[$-c0a]aaa\")","v":"jue"},{"$f":"TEXT(WEEKDAY(DATE(AñoNatural+1,1,25),1),\"[$-c0a]aaa\")","v":"vie"},{"$f":"TEXT(WEEKDAY(DATE(AñoNatural+1,1,26),1),\"[$-c0a]aaa\")","v":"sáb"},{"$f":"TEXT(WEEKDAY(DATE(AñoNatural+1,1,27),1),\"[$-c0a]aaa\")","v":"dom"},{"$f":"TEXT(WEEKDAY(DATE(AñoNatural+1,1,28),1),\"[$-c0a]aaa\")","v":"lun"},{"$f":"TEXT(WEEKDAY(DATE(AñoNatural+1,1,29),1),\"[$-c0a]aaa\")","v":"mar"},{"$f":"TEXT(WEEKDAY(DATE(AñoNatural+1,1,30),1),\"[$-c0a]aaa\")","v":"mié"},{"$f":"TEXT(WEEKDAY(DATE(AñoNatural+1,1,31),1),\"[$-c0a]aaa\")","v":"jue"},"Totales"]
[null,"Id. de alumno","Nombre del alumno","1","2","3","4","5","6","7","8","9","10","11","12","13","14","15","16","17","18","19","20","21","22","23","24","25","26","27","28","29","30","31","T","J","I","P","Días ausente"]
[null,null,{"$f":"IFERROR(VLOOKUP(AsistenciaDeEnero[[#This Row],[Id. de alumno]],ListaDeAlumnos[],18,FALSE),\"\")","v":""},{"$nulls":31},{"$f":"COUNTIF(AsistenciaDeEnero[[#This Row],[1]:[31]],Código1)","v":0},{"$f":"COUNTIF(AsistenciaDeEnero[[#This Row],[1]:[31]],Código2)","v":0},{"$f":"COUNTIF(AsistenciaDeEnero[[#This Row],[1]:[31]],Código3)","v":0},{"$f":"COUNTIF(AsistenciaDeEnero[[#This Row],[1]:[31]],Código4)","v":0},{"$f":"SUM(AsistenciaDeEnero[[#This Row],[J]:[I]])","v":0}]
[null,null,{"$f":"IFERROR(VLOOKUP(AsistenciaDeEnero[[#This Row],[Id. de alumno]],ListaDeAlumnos[],18,FALSE),\"\")","v":""},{"$nulls":31},{"$f":"COUNTIF(AsistenciaDeEnero[[#This Row],[1]:[31]],Código1)","v":0},{"$f":"COUNTIF(AsistenciaDeEnero[[#This Row],[1]:[31]],Código2)","v":0},{"$f":"COUNTIF(AsistenciaDeEnero[[#This Row],[1]:[31]],Código3)","v":0},{"$f":"COUNTIF(AsistenciaDeEnero[[#This Row],[1]:[31]],Código4)","v":0},{"$f":"SUM(AsistenciaDeEnero[[#This Row],[J]:[I]])","v":0}]
[null,null,{"$f":"IFERROR(VLOOKUP(AsistenciaDeEnero[[#This Row],[Id. de alumno]],ListaDeAlumnos[],18,FALSE),\"\")","v":""},{"$nulls":31},{"$f":"COUNTIF(AsistenciaDeEnero[[#This Row],[1]:[31]],Código1)","v":0},{"$f":"COUNTIF(AsistenciaDeEnero[[#This Row],[1]:[31]],Código2)","v":0},{"$f":"COUNTIF(AsistenciaDeEnero[[#This Row],[1]:[31]],Código3)","v":0},{"$f":"COUNTIF(AsistenciaDeEnero[[#This Row],[1]:[31]],Código4)","v":0},{"$f":"SUM(AsistenciaDeEnero[[#This Row],[J]:[I]])","v":0}]
[null,null,{"$f":"IFERROR(VLOOKUP(AsistenciaDeEnero[[#This Row],[Id. de alumno]],ListaDeAlumnos[],18,FALSE),\"\")","v":""},{"$nulls":31},{"$f":"COUNTIF(AsistenciaDeEnero[[#This Row],[1]:[31]],Código1)","v":0},{"$f":"COUNTIF(AsistenciaDeEnero[[#This Row],[1]:[31]],Código2)","v":0},{"$f":"COUNTIF(AsistenciaDeEnero[[#This Row],[1]:[31]],Código3)","v":0},{"$f":"COUNTIF(AsistenciaDeEnero[[#This Row],[1]:[31]],Código4)","v":0},{"$f":"SUM(AsistenciaDeEnero[[#This Row],[J]:[I]])","v":0}]
[null,null,{"$f":"IFERROR(VLOOKUP(AsistenciaDeEnero[[#This Row],[Id. de alumno]],ListaDeAlumnos[],18,FALSE),\"\")","v":""},{"$nulls":31},{"$f":"COUNTIF(AsistenciaDeEnero[[#This Row],[1]:[31]],Código1)","v":0},{"$f":"COUNTIF(AsistenciaDeEnero[[#This Row],[1]:[31]],Código2)","v":0},{"$f":"COUNTIF(AsistenciaDeEnero[[#This Row],[1]:[31]],Código3)","v":0},{"$f":"COUNTIF(AsistenciaDeEnero[[#This Row],[1]:[31]],Código4)","v":0},{"$f":"SUM(AsistenciaDeEnero[[#This Row],[J]:[I]])","v":0}]
[null,null,"Total de días ausente",{"$f":"COUNTIF(AsistenciaDeEnero[1],\"I\")+COUNTIF(AsistenciaDeEnero[1],\"J\")","v":0},{"$f":"COUNTIF(AsistenciaDeEnero[2],\"I\")+COUNTIF(AsistenciaDeEnero[2],\"J\")","v":0},{"$f":"COUNTIF(AsistenciaDeEnero[3],\"I\")+COUNTIF(AsistenciaDeEnero[3],\"J\")","v":0},{"$f":"COUNTIF(AsistenciaDeEnero[4],\"I\")+COUNTIF(AsistenciaDeEnero[4],\"J\")","v":0},{"$f":"COUNTIF(AsistenciaDeEnero[5],\"I\")+COUNTIF(AsistenciaDeEnero[5],\"J\")","v":0},{"$f":"COUNTIF(AsistenciaDeEnero[6],\"I\")+COUNTIF(AsistenciaDeEnero[6],\"J\")","v":0},{"$f":"COUNTIF(AsistenciaDeEnero[7],\"I\")+COUNTIF(AsistenciaDeEnero[7],\"J\")","v":0},{"$f":"COUNTIF(AsistenciaDeEnero[8],\"I\")+COUNTIF(AsistenciaDeEnero[8],\"J\")","v":0},{"$f":"COUNTIF(AsistenciaDeEnero[9],\"I\")+COUNTIF(AsistenciaDeEnero[9],\"J\")","v":0},{"$f":"COUNTIF(AsistenciaDeEnero[10],\"I\")+COUNTIF(AsistenciaDeEnero[10],\"J\")","v":0},{"$f":"COUNTIF(AsistenciaDeEnero[11],\"I\")+COUNTIF(AsistenciaDeEnero[11],\"J\")","v":0},{"$f":"COUNTIF(AsistenciaDeEnero[12],\"I\")+COUNTIF(AsistenciaDeEnero[12],\"J\")","v":0},{"$f":"COUNTIF(AsistenciaDeEnero[13],\"I\")+COUNTIF(AsistenciaDeEnero[13],\"J\")","v":0},{"$f":"COUNTIF(AsistenciaDeEnero[14],\"I\")+COUNTIF(AsistenciaDeEnero[14],\"J\")","v":0},{"$f":"COUNTIF(AsistenciaDeEnero[15],\"I\")+COUNTIF(AsistenciaDeEnero[15],\"J\")","v":0},{"$f":"COUNTIF(AsistenciaDeEnero[16],\"I\")+COUNTIF(AsistenciaDeEnero[16],\"J\")","v":0},{"$f":"COUNTIF(AsistenciaDeEnero[17],\"I\")+COUNTIF(AsistenciaDeEnero[17],\"J\")","v":0},{"$f":"COUNTIF(AsistenciaDeEnero[18],\"I\")+COUNTIF(AsistenciaDeEnero[18],\"J\")","v":0},{"$f":"COUNTIF(AsistenciaDeEnero[19],\"I\")+COUNTIF(AsistenciaDeEnero[19],\"J\")","v":0},{"$f":"COUNTIF(AsistenciaDeEnero[20],\"I\")+COUNTIF(AsistenciaDeEnero[20],\"J\")","v":0},{"$f":"COUNTIF(AsistenciaDeEnero[21],\"I\")+COUNTIF(AsistenciaDeEnero[21],\"J\")","v":0},{"$f":"COUNTIF(AsistenciaDeEnero[22],\"I\")+COUNTIF(AsistenciaDeEnero[22],\"J\")","v":0},{"$f":"COUNTIF(AsistenciaDeEnero[23],\"I\")+COUNTIF(AsistenciaDeEnero[23],\"J\")","v":0},{"$f":"COUNTIF(AsistenciaDeEnero[24],\"I\")+COUNTIF(AsistenciaDeEnero[24],\"J\")","v":0},{"$f":"COUNTIF(AsistenciaDeEnero[25],\"I\")+COUNTIF(AsistenciaDeEnero[25],\"J\")","v":0},{"$f":"COUNTIF(AsistenciaDeEnero[26],\"I\")+COUNTIF(AsistenciaDeEnero[26],\"J\")","v":0},{"$f":"COUNTIF(AsistenciaDeEnero[27],\"I\")+COUNTIF(AsistenciaDeEnero[27],\"J\")","v":0},{"$f":"COUNTIF(AsistenciaDeEnero[28],\"I\")+COUNTIF(AsistenciaDeEnero[28],\"J\")","v":0},{"$f":"COUNTIF(AsistenciaDeEnero[29],\"I\")+COUNTIF(AsistenciaDeEnero[29],\"J\")","v":0},{"$f":"COUNTIF(AsistenciaDeEnero[30],\"I\")+COUNTIF(AsistenciaDeEnero[30],\"J\")","v":0},{"$f":"COUNTIF(AsistenciaDeEnero[31],\"I\")+COUNTIF(AsistenciaDeEnero[31],\"J\")","v":0},{"$f":"SUBTOTAL(109,AsistenciaDeEnero[T])","v":0},{"$f":"SUBTOTAL(109,AsistenciaDeEnero[J])","v":0},{"$f":"SUBTOTAL(109,AsistenciaDeEnero[I])","v":0},{"$f":"SUBTOTAL(109,AsistenciaDeEnero[P])","v":0},{"$f":"SUBTOTAL(109,AsistenciaDeEnero[Días ausente])","v":0}]

{"sheet":"Febrero","index":8,"n_rows":12,"n_cols":39,"rows_kept":12,"merged":[[4,34,4,38]]}
["REGISTRO DE ASISTENCIA DE LOS ALUMNOS",{"$nulls":36},"Inicio del año escolar:",{"$f":"AñoNatural","v":2012}]
[]
[null,null,{"$f":"TextoDeClaveDeColor","v":"CLAVE DE COLOR "},{"$f":"Código1","v":"T"},{"$f":"TextoDeCódigo1","v":"Tarde"},null,null,{"$f":"Código2","v":"J"},{"$f":"TextoDeCódigo2","v":"Justificado"},null,null,{"$f":"Código3","v":"I"},{"$f":"TextoDeCódigo3","v":"Injustificado"},null,null,{"$f":"Código4","v":"P"},{"$f":"TextoDeCódigo4","v":"Presente"},null,null,{"$f":"Código5","v":"N"},{"$f":"TextoDeCódigo5","v":"No hay escuela"}]
[]
[null,{"$f":"DATE(AñoNatural+1,2,1)","v":"2013-02-01"},null,{"$f":"TEXT(WEEKDAY(DATE(AñoNatural+1,2,1),1),\"[$-c0a]aaa\")","v":"vie"},{"$f":"TEXT(WEEKDAY(DATE(AñoNatural+1,2,2),1),\"[$-c0a]aaa\")","v":"sáb"},{"$f":"TEXT(WEEKDAY(DATE(AñoNatural+1,2,3),1),\"[$-c0a]aaa\")","v":"dom"},{"$f":"TEXT(WEEKDAY(DATE(AñoNatural+1,2,4),1),\"[$-c0a]aaa\")","v":"lun"},{"$f":"TEXT(WEEKDAY(DATE(AñoNatural+1,2,5),1),\"[$-c0a]aaa\")","v":"mar"},{"$f":"TEXT(WEEKDAY(DATE(AñoNatural+1,2,6),1),\"[$-c0a]aaa\")","v":"mié"},{"$f":"TEXT(WEEKDAY(DATE(AñoNatural+1,2,7),1),\"[$-c0a]aaa\")","v":"jue"},{"$f":"TEXT(WEEKDAY(DATE(AñoNatural+1,2,8),1),\"[$-c0a]aaa\")","v":"vie"},{"$f":"TEXT(WEEKDAY(DATE(AñoNatural+1,2,9),1),\"[$-c0a]aaa\")","v":"sáb"},{"$f":"TEXT(WEEKDAY(DATE(AñoNatural+1,2,10),1),\"[$-c0a]aaa\")","v":"dom"},{"$f":"TEXT(WEEKDAY(DATE(AñoNatural+1,2,11),1),\"[$-c0a]aaa\")","v":"lun"},{"$f":"TEXT(WEEKDAY(DATE(AñoNatural+1,2,12),1),\"[$-c0a]aaa\")","v":"mar"},{"$f":"TEXT(WEEKDAY(DATE(AñoNatural+1,2,13),1),\"[$-c0a]aaa\")","v":"mié"},{"$f":"TEXT(WEEKDAY(DATE(AñoNatural+1,2,14),1),\"[$-c0a]aaa\")","v":"jue"},{"$f":"TEXT(WEEKDAY(DATE(AñoNatural+1,2,15),1),\"[$-c0a]aaa\")","v":"vie"},{"$f":"TEXT(WEEKDAY(DATE(AñoNatural+1,2,16),1),\"[$-c0a]aaa\")","v":"sáb"},{"$f":"TEXT(WEEKDAY(DATE(AñoNatural+1,2,17),1),\"[$-c0a]aaa\")","v":"dom"},{"$f":"TEXT(WEEKDAY(DATE(AñoNatural+1,2,18),1),\"[$-c0a]aaa\")","v":"lun"},{"$f":"TEXT(WEEKDAY(DATE(AñoNatural+1,2,19),1),\"[$-c0a]aaa\")","v":"mar"},{"$f":"TEXT(WEEKDAY(DATE(AñoNatural+1,2,20),1),\"[$-c0a]aaa\")","v":"mié"},{"$f":"TEXT(WEEKDAY(DATE(AñoNatural+1,2,21),1),\"[$-c0a]aaa\")","v":"jue"},{"$f":"TEXT(WEEKDAY(DATE(AñoNatural+1,2,22),1),\"[$-c0a]aaa\")","v":"vie"},{"$f":"TEXT(WEEKDAY(DATE(AñoNatural+1,2,23),1),\"[$-c0a]aaa\")","v":"sáb"},{"$f":"TEXT(WEEKDAY(DATE(AñoNatural+1,2,24),1),\"[$-c0a]aaa\")","v":"dom"},{"$f":"TEXT(WEEKDAY(DATE(AñoNatural+1,2,25),1),\"[$-c0a]aaa\")","v":"lun"},{"$f":"TEXT(WEEKDAY(DATE(AñoNatural+1,2,26),1),\"[$-c0a]aaa\")","v":"mar"},{"$f":"TEXT(WEEKDAY(DATE(AñoNatural+1,2,27),1),\"[$-c0a]aaa\")","v":"mié"},{"$f":"TEXT(WEEKDAY(DATE(AñoNatural+1,2,28),1),\"[$-c0a]aaa\")","v":"jue"},{"$f":"TEXT(WEEKDAY(DATE(AñoNatural+1,2,29),1),\"aaa\")","v":"Fri"},null,null,"Totales"]
[null,"Id. de alumno","Nombre del alumno","1","2","3","4","5","6","7","8","9","10","11","12","13","14","15","16","17","18","19","20","21","22","23","24","25","26","27","28","29","30","31","T","J","I","P","Días ausente"]
[null,null,{"$f":"IFERROR(VLOOKUP(AsistenciaDeFebrero[[#This Row],[Id. de alumno]],ListaDeAlumnos[],18,FALSE),\"\")","v":""},{"$nulls":31},{"$f":"COUNTIF(AsistenciaDeFebrero[[#This Row],[1]:[31]],Código1)","v":0},{"$f":"COUNTIF(AsistenciaDeFebrero[[#This Row],[1]:[31]],Código2)","v":0},{"$f":"COUNTIF(AsistenciaDeFebrero[[#This Row],[1]:[31]],Código3)","v":0},{"$f":"COUNTIF(AsistenciaDeFebrero[[#This Row],[1]:[31]],Código4)","v":0},{"$f":"SUM(AsistenciaDeFebrero[[#This Row],[J]:[I]])","v":0}]
[null,null,{"$f":"IFERROR(VLOOKUP(AsistenciaDeFebrero[[#This Row],[Id. de alumno]],ListaDeAlumnos[],18,FALSE),\"\")","v":""},{"$nulls":31},{"$f":"COUNTIF(AsistenciaDeFebrero[[#This Row],[1]:[31]],Código1)","v":0},{"$f":"COUNTIF(AsistenciaDeFebrero[[#This Row],[1]:[31]],Código2)","v":0},{"$f":"COUNTIF(AsistenciaDeFebrero[[#This Row],[1]:[31]],Código3)","v":0},{"$f":"COUNTIF(AsistenciaDeFebrero[[#This Row],[1]:[31]],Código4)","v":0},{"$f":"SUM(AsistenciaDeFebrero[[#This Row],[J]:[I]])","v":0}]
[null,null,{"$f":"IFERROR(VLOOKUP(AsistenciaDeFebrero[[#This Row],[Id. de alumno]],ListaDeAlumnos[],18,FALSE),\"\")","v":""},{"$nulls":31},{"$f":"COUNTIF(AsistenciaDeFebrero[[#This Row],[1]:[31]],Código1)","v":0},{"$f":"COUNTIF(AsistenciaDeFebrero[[#This Row],[1]:[31]],Código2)","v":0},{"$f":"COUNTIF(AsistenciaDeFebrero[[#This Row],[1]:[31]],Código3)","v":0},{"$f":"COUNTIF(AsistenciaDeFebrero[[#This Row],[1]:[31]],Código4)","v":0},{"$f":"SUM(AsistenciaDeFebrero[[#This Row],[J]:[I]])","v":0}]
[null,null,{"$f":"IFERROR(VLOOKUP(AsistenciaDeFebrero[[#This Row],[Id. de alumno]],ListaDeAlumnos[],18,FALSE),\"\")","v":""},{"$nulls":31},{"$f":"COUNTIF(AsistenciaDeFebrero[[#This Row],[1]:[31]],Código1)","v":0},{"$f":"COUNTIF(AsistenciaDeFebrero[[#This Row],[1]:[31]],Código2)","v":0},{"$f":"COUNTIF(AsistenciaDeFebrero[[#This Row],[1]:[31]],Código3)","v":0},{"$f":"COUNTIF(AsistenciaDeFebrero[[#This Row],[1]:[31]],Código4)","v":0},{"$f":"SUM(AsistenciaDeFebrero[[#This Row],[J]:[I]])","v":0}]
[null,null,{"$f":"IFERROR(VLOOKUP(AsistenciaDeFebrero[[#This Row],[Id. de alumno]],ListaDeAlumnos[],18,FALSE),\"\")","v":""},{"$nulls":31},{"$f":"COUNTIF(AsistenciaDeFebrero[[#This Row],[1]:[31]],Código1)","v":0},{"$f":"COUNTIF(AsistenciaDeFebrero[[#This Row],[1]:[31]],Código2)","v":0},{"$f":"COUNTIF(AsistenciaDeFebrero[[#This Row],[1]:[31]],Código3)","v":0},{"$f":"COUNTIF(AsistenciaDeFebrero[[#This Row],[1]:[31]],Código4)","v":0},{"$f":"SUM(AsistenciaDeFebrero[[#This Row],[J]:[I]])","v":0}]
[null,null,"Total de días ausente",{"$f":"COUNTIF(AsistenciaDeFebrero[1],\"J\")+COUNTIF(AsistenciaDeFebrero[1],\"I\")","v":0},{"$f":"COUNTIF(AsistenciaDeFebrero[2],\"J\")+COUNTIF(AsistenciaDeFebrero[2],\"I\")","v":0},{"$f":"COUNTIF(AsistenciaDeFebrero[3],\"J\")+COUNTIF(AsistenciaDeFebrero[3],\"I\")","v":0},{"$f":"COUNTIF(AsistenciaDeFebrero[4],\"J\")+COUNTIF(AsistenciaDeFebrero[4],\"I\")","v":0},{"$f":"COUNTIF(AsistenciaDeFebrero[5],\"J\")+COUNTIF(AsistenciaDeFebrero[5],\"I\")","v":0},{"$f":"COUNTIF(AsistenciaDeFebrero[6],\"J\")+COUNTIF(AsistenciaDeFebrero[6],\"I\")","v":0},{"$f":"COUNTIF(AsistenciaDeFebrero[7],\"J\")+COUNTIF(AsistenciaDeFebrero[7],\"I\")","v":0},{"$f":"COUNTIF(AsistenciaDeFebrero[8],\"J\")+COUNTIF(AsistenciaDeFebrero[8],\"I\")","v":0},{"$f":"COUNTIF(AsistenciaDeFebrero[9],\"J\")+COUNTIF(AsistenciaDeFebrero[9],\"I\")","v":0},{"$f":"COUNTIF(AsistenciaDeFebrero[10],\"J\")+COUNTIF(AsistenciaDeFebrero[10],\"I\")","v":0},{"$f":"COUNTIF(AsistenciaDeFebrero[11],\"J\")+COUNTIF(AsistenciaDeFebrero[11],\"I\")","v":0},{"$f":"COUNTIF(AsistenciaDeFebrero[12],\"J\")+COUNTIF(AsistenciaDeFebrero[12],\"I\")","v":0},{"$f":"COUNTIF(AsistenciaDeFebrero[13],\"J\")+COUNTIF(AsistenciaDeFebrero[13],\"I\")","v":0},{"$f":"COUNTIF(AsistenciaDeFebrero[14],\"J\")+COUNTIF(AsistenciaDeFebrero[14],\"I\")","v":0},{"$f":"COUNTIF(AsistenciaDeFebrero[15],\"J\")+COUNTIF(AsistenciaDeFebrero[15],\"I\")","v":0},{"$f":"COUNTIF(AsistenciaDeFebrero[16],\"J\")+COUNTIF(AsistenciaDeFebrero[16],\"I\")","v":0},{"$f":"COUNTIF(AsistenciaDeFebrero[17],\"J\")+COUNTIF(AsistenciaDeFebrero[17],\"I\")","v":0},{"$f":"COUNTIF(AsistenciaDeFebrero[18],\"J\")+COUNTIF(AsistenciaDeFebrero[18],\"I\")","v":0},{"$f":"COUNTIF(AsistenciaDeFebrero[19],\"J\")+COUNTIF(AsistenciaDeFebrero[19],\"I\")","v":0},{"$f":"COUNTIF(AsistenciaDeFebrero[20],\"J\")+COUNTIF(AsistenciaDeFebrero[20],\"I\")","v":0},{"$f":"COUNTIF(AsistenciaDeFebrero[21],\"J\")+COUNTIF(AsistenciaDeFebrero[21],\"I\")","v":0},{"$f":"COUNTIF(AsistenciaDeFebrero[22],\"J\")+COUNTIF(AsistenciaDeFebrero[22],\"I\")","v":0},{"$f":"COUNTIF(AsistenciaDeFebrero[23],\"J\")+COUNTIF(AsistenciaDeFebrero[23],\"I\")","v":0},{"$f":"COUNTIF(AsistenciaDeFebrero[24],\"J\")+COUNTIF(AsistenciaDeFebrero[24],\"I\")","v":0},{"$f":"COUNTIF(AsistenciaDeFebrero[25],\"J\")+COUNTIF(AsistenciaDeFebrero[25],\"I\")","v":0},{"$f":"COUNTIF(AsistenciaDeFebrero[26],\"J\")+COUNTIF(AsistenciaDeFebrero[26],\"I\")","v":0},{"$f":"COUNTIF(AsistenciaDeFebrero[27],\"J\")+COUNTIF(AsistenciaDeFebrero[27],\"I\")","v":0},{"$f":"COUNTIF(AsistenciaDeFebrero[28],\"J\")+COUNTIF(AsistenciaDeFebrero[28],\"I\")","v":0},{"$f":"COUNTIF(AsistenciaDeFebrero[29],\"J\")+COUNTIF(AsistenciaDeFebrero[29],\"I\")","v":0},{"$f":"COUNTIF(AsistenciaDeFebrero[30],\"J\")+COUNTIF(AsistenciaDeFebrero[30],\"I\")","v":0},{"$f":"COUNTIF(AsistenciaDeFebrero[31],\"J\")+COUNTIF(AsistenciaDeFebrero[31],\"I\")","v":0},{"$f":"SUBTOTAL(109,AsistenciaDeFebrero[T])","v":0},{"$f":"SUBTOTAL(109,AsistenciaDeFebrero[J])","v":0},{"$f":"SUBTOTAL(109,AsistenciaDeFebrero[I])","v":0},{"$f":"SUBTOTAL(109,AsistenciaDeFebrero[P])","v":0},{"$f":"SUBTOTAL(109,AsistenciaDeFebrero[Días ausente])","v":0}]

{"sheet":"Marzo","index":9,"n_rows":12,"n_cols":39,"rows_kept":12,"merged":[[4,34,4,38]]}
["REGISTRO DE ASISTENCIA DE LOS ALUMNOS",{"$nulls":36},"Inicio del año escolar:",{"$f":"AñoNatural","v":2012}]
[]
[null,null,{"$f":"TextoDeClaveDeColor","v":"CLAVE DE COLOR "},{"$f":"Código1","v":"T"},{"$f":"TextoDeCódigo1","v":"Tarde"},null,null,{"$f":"Código2","v":"J"},{"$f":"TextoDeCódigo2","v":"Justificado"},null,null,{"$f":"Código3","v":"I"},{"$f":"TextoDeCódigo3","v":"Injustificado"},null,null,{"$f":"Código4","v":"P"},{"$f":"TextoDeCódigo4","v":"Presente"},null,null,{"$f":"Código5","v":"N"},{"$f":"TextoDeCódigo5","v":"No hay escuela"}]
[]
[null,{"$f":"DATE(AñoNatural+1,3,1)","v":"2013-03-01"},null,{"$f":"TEXT(WEEKDAY(DATE(AñoNatural+1,3,1),1),\"[$-c0a]aaa\")","v":"vie"},{"$f":"TEXT(WEEKDAY(DATE(AñoNatural+1,3,2),1),\"[$-c0a]aaa\")","v":"sáb"},{"$f":"TEXT(WEEKDAY(DATE(AñoNatural+1,3,3),1),\"[$-c0a]aaa\")","v":"dom"},{"$f":"TEXT(WEEKDAY(DATE(AñoNatural+1,3,4),1),\"[$-c0a]aaa\")","v":"lun"},{"$f":"TEXT(WEEKDAY(DATE(AñoNatural+1,3,5),1),\"[$-c0a]aaa\")","v":"mar"},{"$f":"TEXT(WEEKDAY(DATE(AñoNatural+1,3,6),1),\"[$-c0a]aaa\")","v":"mié"},{"$f":"TEXT(WEEKDAY(DATE(AñoNatural+1,3,7),1),\"[$-c0a]aaa\")","v":"jue"},{"$f":"TEXT(WEEKDAY(DATE(AñoNatural+1,3,8),1),\"[$-c0a]aaa\")","v":"vie"},{"$f":"TEXT(WEEKDAY(DATE(AñoNatural+1,3,9),1),\"[$-c0a]aaa\")","v":"sáb"},{"$f":"TEXT(WEEKDAY(DATE(AñoNatural+1,3,10),1),\"[$-c0a]aaa\")","v":"dom"},{"$f":"TEXT(WEEKDAY(DATE(AñoNatural+1,3,11),1),\"[$-c0a]aaa\")","v":"lun"},{"$f":"TEXT(WEEKDAY(DATE(AñoNatural+1,3,12),1),\"[$-c0a]aaa\")","v":"mar"},{"$f":"TEXT(WEEKDAY(DATE(AñoNatural+1,3,13),1),\"[$-c0a]aaa\")","v":"mié"},{"$f":"TEXT(WEEKDAY(DATE(AñoNatural+1,3,14),1),\"[$-c0a]aaa\")","v":"jue"},{"$f":"TEXT(WEEKDAY(DATE(AñoNatural+1,3,15),1),\"[$-c0a]aaa\")","v":"vie"},{"$f":"TEXT(WEEKDAY(DATE(AñoNatural+1,3,16),1),\"[$-c0a]aaa\")","v":"sáb"},{"$f":"TEXT(WEEKDAY(DATE(AñoNatural+1,3,17),1),\"[$-c0a]aaa\")","v":"dom"},{"$f":"TEXT(WEEKDAY(DATE(AñoNatural+1,3,18),1),\"[$-c0a]aaa\")","v":"lun"},{"$f":"TEXT(WEEKDAY(DATE(AñoNatural+1,3,19),1),\"[$-c0a]aaa\")","v":"mar"},{"$f":"TEXT(WEEKDAY(DATE(AñoNatural+1,3,20),1),\"[$-c0a]aaa\")","v":"mié"},{"$f":"TEXT(WEEKDAY(DATE(AñoNatural+1,3,21),1),\"[$-c0a]aaa\")","v":"jue"},{"$f":"TEXT(WEEKDAY(DATE(AñoNatural+1,3,22),1),\"[$-c0a]aaa\")","v":"vie"},{"$f":"TEXT(WEEKDAY(DATE(AñoNatural+1,3,23),1),\"[$-c0a]aaa\")","v":"sáb"},{"$f":"TEXT(WEEKDAY(DATE(AñoNatural+1,3,24),1),\"[$-c0a]aaa\")","v":"dom"},{"$f":"TEXT(WEEKDAY(DATE(AñoNatural+1,3,25),1),\"[$-c0a]aaa\")","v":"lun"},{"$f":"TEXT(WEEKDAY(DATE(AñoNatural+1,3,26),1),\"[$-c0a]aaa\")","v":"mar"},{"$f":"TEXT(WEEKDAY(DATE(AñoNatural+1,3,27),1),\"[$-c0a]aaa\")","v":"mié"},{"$f":"TEXT(WEEKDAY(DATE(AñoNatural+1,3,28),1),\"[$-c0a]aaa\")","v":"jue"},{"$f":"TEXT(WEEKDAY(DATE(AñoNatural+1,3,29),1),\"[$-c0a]aaa\")","v":"vie"},{"$f":"TEXT(WEEKDAY(DATE(AñoNatural+1,3,30),1),\"[$-c0a]aaa\")","v":"sáb"},{"$f":"TEXT(WEEKDAY(DATE(AñoNatural+1,3,31),1),\"[$-c0a]aaa\")","v":"dom"},"Totales"]
[null,"Id. de alumno","Nombre del alumno","1","2","3","4","5","6","7","8","9","10","11","12","13","14","15","16","17","18","19","20","21","22","23","24","25","26","27","28","29","30","31","T","J","I","P","Días ausente"]
[null,null,{"$f":"IFERROR(VLOOKUP(AsistenciaDeMarzo[[#This Row],[Id. de alumno]],ListaDeAlumnos[],18,FALSE),\"\")","v":""},{"$nulls":31},{"$f":"COUNTIF(AsistenciaDeMarzo[[#This Row],[1]:[31]],Código1)","v":0},{"$f":"COUNTIF(AsistenciaDeMarzo[[#This Row],[1]:[31]],Código2)","v":0},{"$f":"COUNTIF(AsistenciaDeMarzo[[#This Row],[1]:[31]],Código3)","v":0},{"$f":"COUNTIF(AsistenciaDeMarzo[[#This Row],[1]:[31]],Código4)","v":0},{"$f":"SUM(AsistenciaDeMarzo[[#This Row],[J]:[I]])","v":0}]
[null,null,{"$f":"IFERROR(VLOOKUP(AsistenciaDeMarzo[[#This Row],[Id. de alumno]],ListaDeAlumnos[],18,FALSE),\"\")","v":""},{"$nulls":31},{"$f":"COUNTIF(AsistenciaDeMarzo[[#This Row],[1]:[31]],Código1)","v":0},{"$f":"COUNTIF(AsistenciaDeMarzo[[#This Row],[1]:[31]],Código2)","v":0},{"$f":"COUNTIF(AsistenciaDeMarzo[[#This Row],[1]:[31]],Código3)","v":0},{"$f":"COUNTIF(AsistenciaDeMarzo[[#This Row],[1]:[31]],Código4)","v":0},{"$f":"SUM(AsistenciaDeMarzo[[#This Row],[J]:[I]])","v":0}]
[null,null,{"$f":"IFERROR(VLOOKUP(AsistenciaDeMarzo[[#This Row],[Id. de alumno]],ListaDeAlumnos[],18,FALSE),\"\")","v":""},{"$nulls":31},{"$f":"COUNTIF(AsistenciaDeMarzo[[#This Row],[1]:[31]],Código1)","v":0},{"$f":"COUNTIF(AsistenciaDeMarzo[[#This Row],[1]:[31]],Código2)","v":0},{"$f":"COUNTIF(AsistenciaDeMarzo[[#This Row],[1]:[31]],Código3)","v":0},{"$f":"COUNTIF(AsistenciaDeMarzo[[#This Row],[1]:[31]],Código4)","v":0},{"$f":"SUM(AsistenciaDeMarzo[[#This Row],[J]:[I]])","v":0}]
[null,null,{"$f":"IFERROR(VLOOKUP(AsistenciaDeMarzo[[#This Row],[Id. de alumno]],ListaDeAlumnos[],18,FALSE),\"\")","v":""},{"$nulls":31},{"$f":"COUNTIF(AsistenciaDeMarzo[[#This Row],[1]:[31]],Código1)","v":0},{"$f":"COUNTIF(AsistenciaDeMarzo[[#This Row],[1]:[31]],Código2)","v":0},{"$f":"COUNTIF(AsistenciaDeMarzo[[#This Row],[1]:[31]],Código3)","v":0},{"$f":"COUNTIF(AsistenciaDeMarzo[[#This Row],[1]:[31]],Código4)","v":0},{"$f":"SUM(AsistenciaDeMarzo[[#This Row],[J]:[I]])","v":0}]
[null,null,{"$f":"IFERROR(VLOOKUP(AsistenciaDeMarzo[[#This Row],[Id. de alumno]],ListaDeAlumnos[],18,FALSE),\"\")","v":""},{"$nulls":31},{"$f":"COUNTIF(AsistenciaDeMarzo[[#This Row],[1]:[31]],Código1)","v":0},{"$f":"COUNTIF(AsistenciaDeMarzo[[#This Row],[1]:[31]],Código2)","v":0},{"$f":"COUNTIF(AsistenciaDeMarzo[[#This Row],[1]:[31]],Código3)","v":0},{"$f":"COUNTIF(AsistenciaDeMarzo[[#This Row],[1]:[31]],Código4)","v":0},{"$f":"SUM(AsistenciaDeMarzo[[#This Row],[J]:[I]])","v":0}]
[null,null,"Total de días ausente",{"$f":"COUNTIF(AsistenciaDeMarzo[1],\"J\")+COUNTIF(AsistenciaDeMarzo[1],\"I\")","v":0},{"$f":"COUNTIF(AsistenciaDeMarzo[2],\"J\")+COUNTIF(AsistenciaDeMarzo[2],\"I\")","v":0},{"$f":"COUNTIF(AsistenciaDeMarzo[3],\"J\")+COUNTIF(AsistenciaDeMarzo[3],\"I\")","v":0},{"$f":"COUNTIF(AsistenciaDeMarzo[4],\"J\")+COUNTIF(AsistenciaDeMarzo[4],\"I\")","v":0},{"$f":"COUNTIF(AsistenciaDeMarzo[5],\"J\")+COUNTIF(AsistenciaDeMarzo[5],\"I\")","v":0},{"$f":"COUNTIF(AsistenciaDeMarzo[6],\"J\")+COUNTIF(AsistenciaDeMarzo[6],\"I\")","v":0},{"$f":"COUNTIF(AsistenciaDeMarzo[7],\"J\")+COUNTIF(AsistenciaDeMarzo[7],\"I\")","v":0},{"$f":"COUNTIF(AsistenciaDeMarzo[8],\"J\")+COUNTIF(AsistenciaDeMarzo[8],\"I\")","v":0},{"$f":"COUNTIF(AsistenciaDeMarzo[9],\"J\")+COUNTIF(AsistenciaDeMarzo[9],\"I\")","v":0},{"$f":"COUNTIF(AsistenciaDeMarzo[10],\"J\")+COUNTIF(AsistenciaDeMarzo[10],\"I\")","v":0},{"$f":"COUNTIF(AsistenciaDeMarzo[11],\"J\")+COUNTIF(AsistenciaDeMarzo[11],\"I\")","v":0},{"$f":"COUNTIF(AsistenciaDeMarzo[12],\"J\")+COUNTIF(AsistenciaDeMarzo[12],\"I\")","v":0},{"$f":"COUNTIF(AsistenciaDeMarzo[13],\"J\")+COUNTIF(AsistenciaDeMarzo[13],\"I\")","v":0},{"$f":"COUNTIF(AsistenciaDeMarzo[14],\"J\")+COUNTIF(AsistenciaDeMarzo[14],\"I\")","v":0},{"$f":"COUNTIF(AsistenciaDeMarzo[15],\"J\")+COUNTIF(AsistenciaDeMarzo[15],\"I\")","v":0},{"$f":"COUNTIF(AsistenciaDeMarzo[16],\"J\")+COUNTIF(AsistenciaDeMarzo[16],\"I\")","v":0},{"$f":"COUNTIF(AsistenciaDeMarzo[17],\"J\")+COUNTIF(AsistenciaDeMarzo[17],\"I\")","v":0},{"$f":"COUNTIF(AsistenciaDeMarzo[18],\"J\")+COUNTIF(AsistenciaDeMarzo[18],\"I\")","v":0},{"$f":"COUNTIF(AsistenciaDeMarzo[19],\"J\")+COUNTIF(AsistenciaDeMarzo[19],\"I\")","v":0},{"$f":"COUNTIF(AsistenciaDeMarzo[20],\"J\")+COUNTIF(AsistenciaDeMarzo[20],\"I\")","v":0},{"$f":"COUNTIF(AsistenciaDeMarzo[21],\"J\")+COUNTIF(AsistenciaDeMarzo[21],\"I\")","v":0},{"$f":"COUNTIF(AsistenciaDeMarzo[22],\"J\")+COUNTIF(AsistenciaDeMarzo[22],\"I\")","v":0},{"$f":"COUNTIF(AsistenciaDeMarzo[23],\"J\")+COUNTIF(AsistenciaDeMarzo[23],\"I\")","v":0},{"$f":"COUNTIF(AsistenciaDeMarzo[24],\"J\")+COUNTIF(AsistenciaDeMarzo[24],\"I\")","v":0},{"$f":"COUNTIF(AsistenciaDeMarzo[25],\"J\")+COUNTIF(AsistenciaDeMarzo[25],\"I\")","v":0},{"$f":"COUNTIF(AsistenciaDeMarzo[26],\"J\")+COUNTIF(AsistenciaDeMarzo[26],\"I\")","v":0},{"$f":"COUNTIF(AsistenciaDeMarzo[27],\"J\")+COUNTIF(AsistenciaDeMarzo[27],\"I\")","v":0},{"$f":"COUNTIF(AsistenciaDeMarzo[28],\"J\")+COUNTIF(AsistenciaDeMarzo[28],\"I\")","v":0},{"$f":"COUNTIF(AsistenciaDeMarzo[29],\"J\")+COUNTIF(AsistenciaDeMarzo[29],\"I\")","v":0},{"$f":"COUNTIF(AsistenciaDeMarzo[30],\"J\")+COUNTIF(AsistenciaDeMarzo[30],\"I\")","v":0},{"$f":"COUNTIF(AsistenciaDeMarzo[31],\"J\")+COUNTIF(AsistenciaDeMarzo[31],\"I\")","v":0},{"$f":"SUBTOTAL(109,AsistenciaDeMarzo[T])","v":0},{"$f":"SUBTOTAL(109,AsistenciaDeMarzo[J])","v":0},{"$f":"SUBTOTAL(109,AsistenciaDeMarzo[I])","v":0},{"$f":"SUBTOTAL(109,AsistenciaDeMarzo[P])","v":0},{"$f":"SUBTOTAL(109,AsistenciaDeMarzo[Días ausente])","v":0}]

{"sheet":"Abril","index":10,"n_rows":12,"n_cols":39,"rows_kept":12,"merged":[[4,34,4,38]]}
["REGISTRO DE ASISTENCIA DE LOS ALUMNOS",{"$nulls":36},"Inicio del año escolar:",{"$f":"AñoNatural","v":2012}]
[]
[null,null,{"$f":"TextoDeClaveDeColor","v":"CLAVE DE COLOR "},{"$f":"Código1","v":"T"},{"$f":"TextoDeCódigo1","v":"Tarde"},null,null,{"$f":"Código2","v":"J"},{"$f":"TextoDeCódigo2","v":"Justificado"},null,null,{"$f":"Código3","v":"I"},{"$f":"TextoDeCódigo3","v":"Injustificado"},null,null,{"$f":"Código4","v":"P"},{"$f":"TextoDeCódigo4","v":"Presente"},null,null,{"$f":"Código5","v":"N"},{"$f":"TextoDeCódigo5","v":"No hay escuela"}]
[]
[null,{"$f":"DATE(AñoNatural+1,4,1)","v":"2013-04-01"},null,{"$f":"TEXT(WEEKDAY(DATE(AñoNatural+1,4,1),1),\"[$-c0a]aaa\")","v":"lun"},{"$f":"TEXT(WEEKDAY(DATE(AñoNatural+1,4,2),1),\"[$-c0a]aaa\")","v":"mar"},{"$f":"TEXT(WEEKDAY(DATE(AñoNatural+1,4,3),1),\"[$-c0a]aaa\")","v":"mié"},{"$f":"TEXT(WEEKDAY(DATE(AñoNatural+1,4,4),1),\"[$-c0a]aaa\")","v":"jue"},{"$f":"TEXT(WEEKDAY(DATE(AñoNatural+1,4,5),1),\"[$-c0a]aaa\")","v":"vie"},{"$f":"TEXT(WEEKDAY(DATE(AñoNatural+1,4,6),1),\"[$-c0a]aaa\")","v":"sáb"},{"$f":"TEXT(WEEKDAY(DATE(AñoNatural+1,4,7),1),\"[$-c0a]aaa\")","v":"dom"},{"$f":"TEXT(WEEKDAY(DATE(AñoNatural+1,4,8),1),\"[$-c0a]aaa\")","v":"lun"},{"$f":"TEXT(WEEKDAY(DATE(AñoNatural+1,4,9),1),\"[$-c0a]aaa\")","v":"mar"},{"$f":"TEXT(WEEKDAY(DATE(AñoNatural+1,4,10),1),\"[$-c0a]aaa\")","v":"mié"},{"$f":"TEXT(WEEKDAY(DATE(AñoNatural+1,4,11),1),\"[$-c0a]aaa\")","v":"jue"},{"$f":"TEXT(WEEKDAY(DATE(AñoNatural+1,4,12),1),\"[$-c0a]aaa\")","v":"vie"},{"$f":"TEXT(WEEKDAY(DATE(AñoNatural+1,4,13),1),\"[$-c0a]aaa\")","v":"sáb"},{"$f":"TEXT(WEEKDAY(DATE(AñoNatural+1,4,14),1),\"[$-c0a]aaa\")","v":"dom"},{"$f":"TEXT(WEEKDAY(DATE(AñoNatural+1,4,15),1),\"[$-c0a]aaa\")","v":"lun"},{"$f":"TEXT(WEEKDAY(DATE(AñoNatural+1,4,16),1),\"[$-c0a]aaa\")","v":"mar"},{"$f":"TEXT(WEEKDAY(DATE(AñoNatural+1,4,17),1),\"[$-c0a]aaa\")","v":"mié"},{"$f":"TEXT(WEEKDAY(DATE(AñoNatural+1,4,18),1),\"[$-c0a]aaa\")","v":"jue"},{"$f":"TEXT(WEEKDAY(DATE(AñoNatural+1,4,19),1),\"[$-c0a]aaa\")","v":"vie"},{"$f":"TEXT(WEEKDAY(DATE(AñoNatural+1,4,20),1),\"[$-c0a]aaa\")","v":"sáb"},{"$f":"TEXT(WEEKDAY(DATE(AñoNatural+1,4,21),1),\"[$-c0a]aaa\")","v":"dom"},{"$f":"TEXT(WEEKDAY(DATE(AñoNatural+1,4,22),1),\"[$-c0a]aaa\")","v":"lun"},{"$f":"TEXT(WEEKDAY(DATE(AñoNatural+1,4,23),1),\"[$-c0a]aaa\")","v":"mar"},{"$f":"TEXT(WEEKDAY(DATE(AñoNatural+1,4,24),1),\"[$-c0a]aaa\")","v":"mié"},{"$f":"TEXT(WEEKDAY(DATE(AñoNatural+1,4,25),1),\"[$-c0a]aaa\")","v":"jue"},{"$f":"TEXT(WEEKDAY(DATE(AñoNatural+1,4,26),1),\"[$-c0a]aaa\")","v":"vie"},{"$f":"TEXT(WEEKDAY(DATE(AñoNatural+1,4,27),1),\"[$-c0a]aaa\")","v":"sáb"},{"$f":"TEXT(WEEKDAY(DATE(AñoNatural+1,4,28),1),\"[$-c0a]aaa\")","v":"dom"},{"$f":"TEXT(WEEKDAY(DATE(AñoNatural+1,4,29),1),\"[$-c0a]aaa\")","v":"lun"},{"$f":"TEXT(WEEKDAY(DATE(AñoNatural+1,4,30),1),\"[$-c0a]aaa\")","v":"mar"},null,"Totales"]
[null,"Id. de alumno","Nombre del alumno","1","2","3","4","5","6","7","8","9","10","11","12","13","14","15","16","17","18","19","20","21","22","23","24","25","26","27","28","29","30"," ","T","J","I","P","Días ausente"]
[null,null,{"$f":"IFERROR(VLOOKUP(AsistenciaDeAbril[[#This Row],[Id. de alumno]],ListaDeAlumnos[],18,FALSE),\"\")","v":""},{"$nulls":31},{"$f":"COUNTIF(AsistenciaDeAbril[[#This Row],[1]:[ ]],Código1)","v":0},{"$f":"COUNTIF(AsistenciaDeAbril[[#This Row],[1]:[ ]],Código2)","v":0},{"$f":"COUNTIF(AsistenciaDeAbril[[#This Row],[1]:[ ]],Código3)","v":0},{"$f":"COUNTIF(AsistenciaDeAbril[[#This Row],[1]:[ ]],Código4)","v":0},{"$f":"SUM(AsistenciaDeAbril[[#This Row],[J]:[I]])","v":0}]
[null,null,{"$f":"IFERROR(VLOOKUP(AsistenciaDeAbril[[#This Row],[Id. de alumno]],ListaDeAlumnos[],18,FALSE),\"\")","v":""},{"$nulls":31},{"$f":"COUNTIF(AsistenciaDeAbril[[#This Row],[1]:[ ]],Código1)","v":0},{"$f":"COUNTIF(AsistenciaDeAbril[[#This Row],[1]:[ ]],Código2)","v":0},{"$f":"COUNTIF(AsistenciaDeAbril[[#This Row],[1]:[ ]],Código3)","v":0},{"$f":"COUNTIF(AsistenciaDeAbril[[#This Row],[1]:[ ]],Código4)","v":0},{"$f":"SUM(AsistenciaDeAbril[[#This Row],[J]:[I]])","v":0}]
[null,null,{"$f":"IFERROR(VLOOKUP(AsistenciaDeAbril[[#This Row],[Id. de alumno]],ListaDeAlumnos[],18,FALSE),\"\")","v":""},{"$nulls":31},{"$f":"COUNTIF(AsistenciaDeAbril[[#This Row],[1]:[ ]],Código1)","v":0},{"$f":"COUNTIF(AsistenciaDeAbril[[#This Row],[1]:[ ]],Código2)","v":0},{"$f":"COUNTIF(AsistenciaDeAbril[[#This Row],[1]:[ ]],Código3)","v":0},{"$f":"COUNTIF(AsistenciaDeAbril[[#This Row],[1]:[ ]],Código4)","v":0},{"$f":"SUM(AsistenciaDeAbril[[#This Row],[J]:[I]])","v":0}]
[null,null,{"$f":"IFERROR(VLOOKUP(AsistenciaDeAbril[[#This Row],[Id. de alumno]],ListaDeAlumnos[],18,FALSE),\"\")","v":""},{"$nulls":31},{"$f":"COUNTIF(AsistenciaDeAbril[[#This Row],[1]:[ ]],Código1)","v":0},{"$f":"COUNTIF(AsistenciaDeAbril[[#This Row],[1]:[ ]],Código2)","v":0},{"$f":"COUNTIF(AsistenciaDeAbril[[#This Row],[1]:[ ]],Código3)","v":0},{"$f":"COUNTIF(AsistenciaDeAbril[[#This Row],[1]:[ ]],Código4)","v":0},{"$f":"SUM(AsistenciaDeAbril[[#This Row],[J]:[I]])","v":0}]
[null,null,{"$f":"IFERROR(VLOOKUP(AsistenciaDeAbril[[#This Row],[Id. de alumno]],ListaDeAlumnos[],18,FALSE),\"\")","v":""},{"$nulls":31},{"$f":"COUNTIF(AsistenciaDeAbril[[#This Row],[1]:[ ]],Código1)","v":0},{"$f":"COUNTIF(AsistenciaDeAbril[[#This Row],[1]:[ ]],Código2)","v":0},{"$f":"COUNTIF(AsistenciaDeAbril[[#This Row],[1]:[ ]],Código3)","v":0},{"$f":"COUNTIF(AsistenciaDeAbril[[#This Row],[1]:[ ]],Código4)","v":0},{"$f":"SUM(AsistenciaDeAbril[[#This Row],[J]:[I]])","v":0}]
[null,null,"Total de días ausente",{"$f":"COUNTIF(AsistenciaDeAbril[1],\"J\")+COUNTIF(AsistenciaDeAbril[1],\"I\")","v":0},{"$f":"COUNTIF(AsistenciaDeAbril[2],\"J\")+COUNTIF(AsistenciaDeAbril[2],\"I\")","v":0},{"$f":"COUNTIF(AsistenciaDeAbril[3],\"J\")+COUNTIF(AsistenciaDeAbril[3],\"I\")","v":0},{"$f":"COUNTIF(AsistenciaDeAbril[4],\"J\")+COUNTIF(AsistenciaDeAbril[4],\"I\")","v":0},{"$f":"COUNTIF(AsistenciaDeAbril[5],\"J\")+COUNTIF(AsistenciaDeAbril[5],\"I\")","v":0},{"$f":"COUNTIF(AsistenciaDeAbril[6],\"J\")+COUNTIF(AsistenciaDeAbril[6],\"I\")","v":0},{"$f":"COUNTIF(AsistenciaDeAbril[7],\"J\")+COUNTIF(AsistenciaDeAbril[7],\"I\")","v":0},{"$f":"COUNTIF(AsistenciaDeAbril[8],\"J\")+COUNTIF(AsistenciaDeAbril[8],\"I\")","v":0},{"$f":"COUNTIF(AsistenciaDeAbril[9],\"J\")+COUNTIF(AsistenciaDeAbril[9],\"I\")","v":0},{"$f":"COUNTIF(AsistenciaDeAbril[10],\"J\")+COUNTIF(AsistenciaDeAbril[10],\"I\")","v":0},{"$f":"COUNTIF(AsistenciaDeAbril[11],\"J\")+COUNTIF(AsistenciaDeAbril[11],\"I\")","v":0},{"$f":"COUNTIF(AsistenciaDeAbril[12],\"J\")+COUNTIF(AsistenciaDeAbril[12],\"I\")","v":0},{"$f":"COUNTIF(AsistenciaDeAbril[13],\"J\")+COUNTIF(AsistenciaDeAbril[13],\"I\")","v":0},{"$f":"COUNTIF(AsistenciaDeAbril[14],\"J\")+COUNTIF(AsistenciaDeAbril[14],\"I\")","v":0},{"$f":"COUNTIF(AsistenciaDeAbril[15],\"J\")+COUNTIF(AsistenciaDeAbril[15],\"I\")","v":0},{"$f":"COUNTIF(AsistenciaDeAbril[16],\"J\")+COUNTIF(AsistenciaDeAbril[16],\"I\")","v":0},{"$f":"COUNTIF(AsistenciaDeAbril[17],\"J\")+COUNTIF(AsistenciaDeAbril[17],\"I\")","v":0},{"$f":"COUNTIF(AsistenciaDeAbril[18],\"J\")+COUNTIF(AsistenciaDeAbril[18],\"I\")","v":0},{"$f":"COUNTIF(AsistenciaDeAbril[19],\"J\")+COUNTIF(AsistenciaDeAbril[19],\"I\")","v":0},{"$f":"COUNTIF(AsistenciaDeAbril[20],\"J\")+COUNTIF(AsistenciaDeAbril[20],\"I\")","v":0},{"$f":"COUNTIF(AsistenciaDeAbril[21],\"J\")+COUNTIF(AsistenciaDeAbril[21],\"I\")","v":0},{"$f":"COUNTIF(AsistenciaDeAbril[22],\"J\")+COUNTIF(AsistenciaDeAbril[22],\"I\")","v":0},{"$f":"COUNTIF(AsistenciaDeAbril[23],\"J\")+COUNTIF(AsistenciaDeAbril[23],\"I\")","v":0},{"$f":"COUNTIF(AsistenciaDeAbril[24],\"J\")+COUNTIF(AsistenciaDeAbril[24],\"I\")","v":0},{"$f":"COUNTIF(AsistenciaDeAbril[25],\"J\")+COUNTIF(AsistenciaDeAbril[25],\"I\")","v":0},{"$f":"COUNTIF(AsistenciaDeAbril[26],\"J\")+COUNTIF(AsistenciaDeAbril[26],\"I\")","v":0},{"$f":"COUNTIF(AsistenciaDeAbril[27],\"J\")+COUNTIF(AsistenciaDeAbril[27],\"I\")","v":0},{"$f":"COUNTIF(AsistenciaDeAbril[28],\"J\")+COUNTIF(AsistenciaDeAbril[28],\"I\")","v":0},{"$f":"COUNTIF(AsistenciaDeAbril[29],\"J\")+COUNTIF(AsistenciaDeAbril[29],\"I\")","v":0},{"$f":"COUNTIF(AsistenciaDeAbril[30],\"J\")+COUNTIF(AsistenciaDeAbril[30],\"I\")","v":0},{"$f":"COUNTIF(AsistenciaDeAbril[[ ]],\"J\")+COUNTIF(AsistenciaDeAbril[[ ]],\"I\")","v":0},{"$f":"SUBTOTAL(109,AsistenciaDeAbril[T])","v":0},{"$f":"SUBTOTAL(109,AsistenciaDeAbril[J])","v":0},{"$f":"SUBTOTAL(109,AsistenciaDeAbril[I])","v":0},{"$f":"SUBTOTAL(109,AsistenciaDeAbril[P])","v":0},{"$f":"SUBTOTAL(109,AsistenciaDeAbril[Días ausente])","v":0}]

{"sheet":"Mayo","index":11,"n_rows":12,"n_cols":39,"rows_kept":12,"merged":[[4,34,4,38]]}
["REGISTRO DE ASISTENCIA DE LOS ALUMNOS",{"$nulls":36},"Inicio del año escolar:",{"$f":"AñoNatural","v":2012}]
[]
[null,null,{"$f":"TextoDeClaveDeColor","v":"CLAVE DE COLOR "},{"$f":"Código1","v":"T"},{"$f":"TextoDeCódigo1","v":"Tarde"},null,null,{"$f":"Código2","v":"J"},{"$f":"TextoDeCódigo2","v":"Justificado"},null,null,{"$f":"Código3","v":"I"},{"$f":"TextoDeCódigo3","v":"Injustificado"},null,null,{"$f":"Código4","v":"P"},{"$f":"TextoDeCódigo4","v":"Presente"},null,null,{"$f":"Código5","v":"N"},{"$f":"TextoDeCódigo5","v":"No hay escuela"}]
[]
[null,{"$f":"DATE(AñoNatural+1,5,1)","v":"2013-05-01"},null,{"$f":"TEXT(WEEKDAY(DATE(AñoNatural+1,5,1),1),\"[$-c0a]aaa\")","v":"mié"},{"$f":"TEXT(WEEKDAY(DATE(AñoNatural+1,5,2),1),\"[$-c0a]aaa\")","v":"jue"},{"$f":"TEXT(WEEKDAY(DATE(AñoNatural+1,5,3),1),\"[$-c0a]aaa\")","v":"vie"},{"$f":"TEXT(WEEKDAY(DATE(AñoNatural+1,5,4),1),\"[$-c0a]aaa\")","v":"sáb"},{"$f":"TEXT(WEEKDAY(DATE(AñoNatural+1,5,5),1),\"[$-c0a]aaa\")","v":"dom"},{"$f":"TEXT(WEEKDAY(DATE(AñoNatural+1,5,6),1),\"[$-c0a]aaa\")","v":"lun"},{"$f":"TEXT(WEEKDAY(DATE(AñoNatural+1,5,7),1),\"[$-c0a]aaa\")","v":"mar"},{"$f":"TEXT(WEEKDAY(DATE(AñoNatural+1,5,8),1),\"[$-c0a]aaa\")","v":"mié"},{"$f":"TEXT(WEEKDAY(DATE(AñoNatural+1,5,9),1),\"[$-c0a]aaa\")","v":"jue"},{"$f":"TEXT(WEEKDAY(DATE(AñoNatural+1,5,10),1),\"[$-c0a]aaa\")","v":"vie"},{"$f":"TEXT(WEEKDAY(DATE(AñoNatural+1,5,11),1),\"[$-c0a]aaa\")","v":"sáb"},{"$f":"TEXT(WEEKDAY(DATE(AñoNatural+1,5,12),1),\"[$-c0a]aaa\")","v":"dom"},{"$f":"TEXT(WEEKDAY(DATE(AñoNatural+1,5,13),1),\"[$-c0a]aaa\")","v":"lun"},{"$f":"TEXT(WEEKDAY(DATE(AñoNatural+1,5,14),1),\"[$-c0a]aaa\")","v":"mar"},{"$f":"TEXT(WEEKDAY(DATE(AñoNatural+1,5,15),1),\"[$-c0a]aaa\")","v":"mié"},{"$f":"TEXT(WEEKDAY(DATE(AñoNatural+1,5,16),1),\"[$-c0a]aaa\")","v":"jue"},{"$f":"TEXT(WEEKDAY(DATE(AñoNatural+1,5,17),1),\"[$-c0a]aaa\")","v":"vie"},{"$f":"TEXT(WEEKDAY(DATE(AñoNatural+1,5,18),1),\"[$-c0a]aaa\")","v":"sáb"},{"$f":"TEXT(WEEKDAY(DATE(AñoNatural+1,5,19),1),\"[$-c0a]aaa\")","v":"dom"},{"$f":"TEXT(WEEKDAY(DATE(AñoNatural+1,5,20),1),\"[$-c0a]aaa\")","v":"lun"},{"$f":"TEXT(WEEKDAY(DATE(AñoNatural+1,5,21),1),\"[$-c0a]aaa\")","v":"mar"},{"$f":"TEXT(WEEKDAY(DATE(AñoNatural+1,5,22),1),\"[$-c0a]aaa\")","v":"mié"},{"$f":"TEXT(WEEKDAY(DATE(AñoNatural+1,5,23),1),\"[$-c0a]aaa\")","v":"jue"},{"$f":"TEXT(WEEKDAY(DATE(AñoNatural+1,5,24),1),\"[$-c0a]aaa\")","v":"vie"},{"$f":"TEXT(WEEKDAY(DATE(AñoNatural+1,5,25),1),\"[$-c0a]aaa\")","v":"sáb"},{"$f":"TEXT(WEEKDAY(DATE(AñoNatural+1,5,26),1),\"[$-c0a]aaa\")","v":"dom"},{"$f":"TEXT(WEEKDAY(DATE(AñoNatural+1,5,27),1),\"[$-c0a]aaa\")","v":"lun"},{"$f":"TEXT(WEEKDAY(DATE(AñoNatural+1,5,28),1),\"[$-c0a]aaa\")","v":"mar"},{"$f":"TEXT(WEEKDAY(DATE(AñoNatural+1,5,29),1),\"[$-c0a]aaa\")","v":"mié"},{"$f":"TEXT(WEEKDAY(DATE(AñoNatural+1,5,30),1),\"[$-c0a]aaa\")","v":"jue"},{"$f":"TEXT(WEEKDAY(DATE(AñoNatural+1,5,31),1),\"[$-c0a]aaa\")","v":"vie"},"Totales"]
[null,"Id. de alumno","Nombre del alumno","1","2","3","4","5","6","7","8","9","10","11","12","13","14","15","16","17","18","19","20","21","22","23","24","25","26","27","28","29","30","31","T","J","I","P","Días ausente"]
[null,null,{"$f":"IFERROR(VLOOKUP(AsistenciaDeMayo[[#This Row],[Id. de alumno]],ListaDeAlumnos[],18,FALSE),\"\")","v":""},{"$nulls":31},{"$f":"COUNTIF(AsistenciaDeMayo[[#This Row],[1]:[31]],Código1)","v":0},{"$f":"COUNTIF(AsistenciaDeMayo[[#This Row],[1]:[31]],Código2)","v":0},{"$f":"COUNTIF(AsistenciaDeMayo[[#This Row],[1]:[31]],Código3)","v":0},{"$f":"COUNTIF(AsistenciaDeMayo[[#This Row],[1]:[31]],Código4)","v":0},{"$f":"SUM(AsistenciaDeMayo[[#This Row],[J]:[I]])","v":0}]
[null,null,{"$f":"IFERROR(VLOOKUP(AsistenciaDeMayo[[#This Row],[Id. de alumno]],ListaDeAlumnos[],18,FALSE),\"\")","v":""},{"$nulls":31},{"$f":"COUNTIF(AsistenciaDeMayo[[#This Row],[1]:[31]],Código1)","v":0},{"$f":"COUNTIF(AsistenciaDeMayo[[#This Row],[1]:[31]],Código2)","v":0},{"$f":"COUNTIF(AsistenciaDeMayo[[#This Row],[1]:[31]],Código3)","v":0},{"$f":"COUNTIF(AsistenciaDeMayo[[#This Row],[1]:[31]],Código4)","v":0},{"$f":"SUM(AsistenciaDeMayo[[#This Row],[J]:[I]])","v":0}]
[null,null,{"$f":"IFERROR(VLOOKUP(AsistenciaDeMayo[[#This Row],[Id. de alumno]],ListaDeAlumnos[],18,FALSE),\"\")","v":""},{"$nulls":31},{"$f":"COUNTIF(AsistenciaDeMayo[[#This Row],[1]:[31]],Código1)","v":0},{"$f":"COUNTIF(AsistenciaDeMayo[[#This Row],[1]:[31]],Código2)","v":0},{"$f":"COUNTIF(AsistenciaDeMayo[[#This Row],[1]:[31]],Código3)","v":0},{"$f":"COUNTIF(AsistenciaDeMayo[[#This Row],[1]:[31]],Código4)","v":0},{"$f":"SUM(AsistenciaDeMayo[[#This Row],[J]:[I]])","v":0}]
[null,null,{"$f":"IFERROR(VLOOKUP(AsistenciaDeMayo[[#This Row],[Id. de alumno]],ListaDeAlumnos[],18,FALSE),\"\")","v":""},{"$nulls":31},{"$f":"COUNTIF(AsistenciaDeMayo[[#This Row],[1]:[31]],Código1)","v":0},{"$f":"COUNTIF(AsistenciaDeMayo[[#This Row],[1]:[31]],Código2)","v":0},{"$f":"COUNTIF(AsistenciaDeMayo[[#This Row],[1]:[31]],Código3)","v":0},{"$f":"COUNTIF(AsistenciaDeMayo[[#This Row],[1]:[31]],Código4)","v":0},{"$f":"SUM(AsistenciaDeMayo[[#This Row],[J]:[I]])","v":0}]
[null,null,{"$f":"IFERROR(VLOOKUP(AsistenciaDeMayo[[#This Row],[Id. de alumno]],ListaDeAlumnos[],18,FALSE),\"\")","v":""},{"$nulls":31},{"$f":"COUNTIF(AsistenciaDeMayo[[#This Row],[1]:[31]],Código1)","v":0},{"$f":"COUNTIF(AsistenciaDeMayo[[#This Row],[1]:[31]],Código2)","v":0},{"$f":"COUNTIF(AsistenciaDeMayo[[#This Row],[1]:[31]],Código3)","v":0},{"$f":"COUNTIF(AsistenciaDeMayo[[#This Row],[1]:[31]],Código4)","v":0},{"$f":"SUM(AsistenciaDeMayo[[#This Row],[J]:[I]])","v":0}]
[null,null,"Total de días ausente",{"$f":"COUNTIF(AsistenciaDeMayo[1],\"J\")+COUNTIF(AsistenciaDeMayo[1],\"I\")","v":0},{"$f":"COUNTIF(AsistenciaDeMayo[2],\"J\")+COUNTIF(AsistenciaDeMayo[2],\"I\")","v":0},{"$f":"COUNTIF(AsistenciaDeMayo[3],\"J\")+COUNTIF(AsistenciaDeMayo[3],\"I\")","v":0},{"$f":"COUNTIF(AsistenciaDeMayo[4],\"J\")+COUNTIF(AsistenciaDeMayo[4],\"I\")","v":0},{"$f":"COUNTIF(AsistenciaDeMayo[5],\"J\")+COUNTIF(AsistenciaDeMayo[5],\"I\")","v":0},{"$f":"COUNTIF(AsistenciaDeMayo[6],\"J\")+COUNTIF(AsistenciaDeMayo[6],\"I\")","v":0},{"$f":"COUNTIF(AsistenciaDeMayo[7],\"J\")+COUNTIF(AsistenciaDeMayo[7],\"I\")","v":0},{"$f":"COUNTIF(AsistenciaDeMayo[8],\"J\")+COUNTIF(AsistenciaDeMayo[8],\"I\")","v":0},{"$f":"COUNTIF(AsistenciaDeMayo[9],\"J\")+COUNTIF(AsistenciaDeMayo[9],\"I\")","v":0},{"$f":"COUNTIF(AsistenciaDeMayo[10],\"J\")+COUNTIF(AsistenciaDeMayo[10],\"I\")","v":0},{"$f":"COUNTIF(AsistenciaDeMayo[11],\"J\")+COUNTIF(AsistenciaDeMayo[11],\"I\")","v":0},{"$f":"COUNTIF(AsistenciaDeMayo[12],\"J\")+COUNTIF(AsistenciaDeMayo[12],\"I\")","v":0},{"$f":"COUNTIF(AsistenciaDeMayo[13],\"J\")+COUNTIF(AsistenciaDeMayo[13],\"I\")","v":0},{"$f":"COUNTIF(AsistenciaDeMayo[14],\"J\")+COUNTIF(AsistenciaDeMayo[14],\"I\")","v":0},{"$f":"COUNTIF(AsistenciaDeMayo[15],\"J\")+COUNTIF(AsistenciaDeMayo[15],\"I\")","v":0},{"$f":"COUNTIF(AsistenciaDeMayo[16],\"J\")+COUNTIF(AsistenciaDeMayo[16],\"I\")","v":0},{"$f":"COUNTIF(AsistenciaDeMayo[17],\"J\")+COUNTIF(AsistenciaDeMayo[17],\"I\")","v":0},{"$f":"COUNTIF(AsistenciaDeMayo[18],\"J\")+COUNTIF(AsistenciaDeMayo[18],\"I\")","v":0},{"$f":"COUNTIF(AsistenciaDeMayo[19],\"J\")+COUNTIF(AsistenciaDeMayo[19],\"I\")","v":0},{"$f":"COUNTIF(AsistenciaDeMayo[20],\"J\")+COUNTIF(AsistenciaDeMayo[20],\"I\")","v":0},{"$f":"COUNTIF(AsistenciaDeMayo[21],\"J\")+COUNTIF(AsistenciaDeMayo[21],\"I\")","v":0},{"$f":"COUNTIF(AsistenciaDeMayo[22],\"J\")+COUNTIF(AsistenciaDeMayo[22],\"I\")","v":0},{"$f":"COUNTIF(AsistenciaDeMayo[23],\"J\")+COUNTIF(AsistenciaDeMayo[23],\"I\")","v":0},{"$f":"COUNTIF(AsistenciaDeMayo[24],\"J\")+COUNTIF(AsistenciaDeMayo[24],\"I\")","v":0},{"$f":"COUNTIF(AsistenciaDeMayo[25],\"J\")+COUNTIF(AsistenciaDeMayo[25],\"I\")","v":0},{"$f":"COUNTIF(AsistenciaDeMayo[26],\"J\")+COUNTIF(AsistenciaDeMayo[26],\"I\")","v":0},{"$f":"COUNTIF(AsistenciaDeMayo[27],\"J\")+COUNTIF(AsistenciaDeMayo[27],\"I\")","v":0},{"$f":"COUNTIF(AsistenciaDeMayo[28],\"J\")+COUNTIF(AsistenciaDeMayo[28],\"I\")","v":0},{"$f":"COUNTIF(AsistenciaDeMayo[29],\"J\")+COUNTIF(AsistenciaDeMayo[29],\"I\")","v":0},{"$f":"COUNTIF(AsistenciaDeMayo[30],\"J\")+COUNTIF(AsistenciaDeMayo[30],\"I\")","v":0},{"$f":"COUNTIF(AsistenciaDeMayo[31],\"J\")+COUNTIF(AsistenciaDeMayo[31],\"I\")","v":0},{"$f":"SUBTOTAL(109,AsistenciaDeMayo[T])","v":0},{"$f":"SUBTOTAL(109,AsistenciaDeMayo[J])","v":0},{"$f":"SUBTOTAL(109,AsistenciaDeMayo[I])","v":0},{"$f":"SUBTOTAL(109,AsistenciaDeMayo[P])","v":0},{"$f":"SUBTOTAL(109,AsistenciaDeMayo[Días ausente])","v":0}]

{"sheet":"Junio","index":12,"n_rows":12,"n_cols":39,"rows_kept":12,"merged":[[4,34,4,38]]}
["REGISTRO DE ASISTENCIA DE LOS ALUMNOS",{"$nulls":36},"Inicio del año escolar:",{"$f":"AñoNatural","v":2012}]
[]
[null,null,{"$f":"TextoDeClaveDeColor","v":"CLAVE DE COLOR "},{"$f":"Código1","v":"T"},{"$f":"TextoDeCódigo1","v":"Tarde"},null,null,{"$f":"Código2","v":"J"},{"$f":"TextoDeCódigo2","v":"Justificado"},null,null,{"$f":"Código3","v":"I"},{"$f":"TextoDeCódigo3","v":"Injustificado"},null,null,{"$f":"Código4","v":"P"},{"$f":"TextoDeCódigo4","v":"Presente"},null,null,{"$f":"Código5","v":"N"},{"$f":"TextoDeCódigo5","v":"No hay escuela"}]
[]
[null,{"$f":"DATE(AñoNatural+1,6,1)","v":"2013-06-01"},null,{"$f":"TEXT(WEEKDAY(DATE(AñoNatural+1,6,1),1),\"[$-c0a]aaa\")","v":"sáb"},{"$f":"TEXT(WEEKDAY(DATE(AñoNatural+1,6,2),1),\"[$-c0a]aaa\")","v":"dom"},{"$f":"TEXT(WEEKDAY(DATE(AñoNatural+1,6,3),1),\"[$-c0a]aaa\")","v":"lun"},{"$f":"TEXT(WEEKDAY(DATE(AñoNatural+1,6,4),1),\"[$-c0a]aaa\")","v":"mar"},{"$f":"TEXT(WEEKDAY(DATE(AñoNatural+1,6,5),1),\"[$-c0a]aaa\")","v":"mié"},{"$f":"TEXT(WEEKDAY(DATE(AñoNatural+1,6,6),1),\"[$-c0a]aaa\")","v":"jue"},{"$f":"TEXT(WEEKDAY(DATE(AñoNatural+1,6,7),1),\"[$-c0a]aaa\")","v":"vie"},{"$f":"TEXT(WEEKDAY(DATE(AñoNatural+1,6,8),1),\"[$-c0a]aaa\")","v":"sáb"},{"$f":"TEXT(WEEKDAY(DATE(AñoNatural+1,6,9),1),\"[$-c0a]aaa\")","v":"dom"},{"$f":"TEXT(WEEKDAY(DATE(AñoNatural+1,6,10),1),\"[$-c0a]aaa\")","v":"lun"},{"$f":"TEXT(WEEKDAY(DATE(AñoNatural+1,6,11),1),\"[$-c0a]aaa\")","v":"mar"},{"$f":"TEXT(WEEKDAY(DATE(AñoNatural+1,6,12),1),\"[$-c0a]aaa\")","v":"mié"},{"$f":"TEXT(WEEKDAY(DATE(AñoNatural+1,6,13),1),\"[$-c0a]aaa\")","v":"jue"},{"$f":"TEXT(WEEKDAY(DATE(AñoNatural+1,6,14),1),\"[$-c0a]aaa\")","v":"vie"},{"$f":"TEXT(WEEKDAY(DATE(AñoNatural+1,6,15),1),\"[$-c0a]aaa\")","v":"sáb"},{"$f":"TEXT(WEEKDAY(DATE(AñoNatural+1,6,16),1),\"[$-c0a]aaa\")","v":"dom"},{"$f":"TEXT(WEEKDAY(DATE(AñoNatural+1,6,17),1),\"[$-c0a]aaa\")","v":"lun"},{"$f":"TEXT(WEEKDAY(DATE(AñoNatural+1,6,18),1),\"[$-c0a]aaa\")","v":"mar"},{"$f":"TEXT(WEEKDAY(DATE(AñoNatural+1,6,19),1),\"[$-c0a]aaa\")","v":"mié"},{"$f":"TEXT(WEEKDAY(DATE(AñoNatural+1,6,20),1),\"[$-c0a]aaa\")","v":"jue"},{"$f":"TEXT(WEEKDAY(DATE(AñoNatural+1,6,21),1),\"[$-c0a]aaa\")","v":"vie"},{"$f":"TEXT(WEEKDAY(DATE(AñoNatural+1,6,22),1),\"[$-c0a]aaa\")","v":"sáb"},{"$f":"TEXT(WEEKDAY(DATE(AñoNatural+1,6,23),1),\"[$-c0a]aaa\")","v":"dom"},{"$f":"TEXT(WEEKDAY(DATE(AñoNatural+1,6,24),1),\"[$-c0a]aaa\")","v":"lun"},{"$f":"TEXT(WEEKDAY(DATE(AñoNatural+1,6,25),1),\"[$-c0a]aaa\")","v":"mar"},{"$f":"TEXT(WEEKDAY(DATE(AñoNatural+1,6,26),1),\"[$-c0a]aaa\")","v":"mié"},{"$f":"TEXT(WEEKDAY(DATE(AñoNatural+1,6,27),1),\"[$-c0a]aaa\")","v":"jue"},{"$f":"TEXT(WEEKDAY(DATE(AñoNatural+1,6,28),1),\"[$-c0a]aaa\")","v":"vie"},{"$f":"TEXT(WEEKDAY(DATE(AñoNatural+1,6,29),1),\"[$-c0a]aaa\")","v":"sáb"},{"$f":"TEXT(WEEKDAY(DATE(AñoNatural+1,6,30),1),\"[$-c0a]aaa\")","v":"dom"},null,"Totales"]
[null,"Id. de alumno","Nombre del alumno","1","2","3","4","5","6","7","8","9","10","11","12","13","14","15","16","17","18","19","20","21","22","23","24","25","26","27","28","29","30"," ","T","J","I","P","Días ausente"]
[null,null,{"$f":"IFERROR(VLOOKUP(AsistenciaDeJunio[[#This Row],[Id. de alumno]],ListaDeAlumnos[],18,FALSE),\"\")","v":""},{"$nulls":31},{"$f":"COUNTIF(AsistenciaDeJunio[[#This Row],[1]:[ ]],Código1)","v":0},{"$f":"COUNTIF(AsistenciaDeJunio[[#This Row],[1]:[ ]],Código2)","v":0},{"$f":"COUNTIF(AsistenciaDeJunio[[#This Row],[1]:[ ]],Código3)","v":0},{"$f":"COUNTIF(AsistenciaDeJunio[[#This Row],[1]:[ ]],Código4)","v":0},{"$f":"SUM(AsistenciaDeJunio[[#This Row],[J]:[I]])","v":0}]
[null,null,{"$f":"IFERROR(VLOOKUP(AsistenciaDeJunio[[#This Row],[Id. de alumno]],ListaDeAlumnos[],18,FALSE),\"\")","v":""},{"$nulls":31},{"$f":"COUNTIF(AsistenciaDeJunio[[#This Row],[1]:[ ]],Código1)","v":0},{"$f":"COUNTIF(AsistenciaDeJunio[[#This Row],[1]:[ ]],Código2)","v":0},{"$f":"COUNTIF(AsistenciaDeJunio[[#This Row],[1]:[ ]],Código3)","v":0},{"$f":"COUNTIF(AsistenciaDeJunio[[#This Row],[1]:[ ]],Código4)","v":0},{"$f":"SUM(AsistenciaDeJunio[[#This Row],[J]:[I]])","v":0}]
[null,null,{"$f":"IFERROR(VLOOKUP(AsistenciaDeJunio[[#This Row],[Id. de alumno]],ListaDeAlumnos[],18,FALSE),\"\")","v":""},{"$nulls":31},{"$f":"COUNTIF(AsistenciaDeJunio[[#This Row],[1]:[ ]],Código1)","v":0},{"$f":"COUNTIF(AsistenciaDeJunio[[#This Row],[1]:[ ]],Código2)","v":0},{"$f":"COUNTIF(AsistenciaDeJunio[[#This Row],[1]:[ ]],Código3)","v":0},{"$f":"COUNTIF(AsistenciaDeJunio[[#This Row],[1]:[ ]],Código4)","v":0},{"$f":"SUM(AsistenciaDeJunio[[#This Row],[J]:[I]])","v":0}]
[null,null,{"$f":"IFERROR(VLOOKUP(AsistenciaDeJunio[[#This Row],[Id. de alumno]],ListaDeAlumnos[],18,FALSE),\"\")","v":""},{"$nulls":31},{"$f":"COUNTIF(AsistenciaDeJunio[[#This Row],[1]:[ ]],Código1)","v":0},{"$f":"COUNTIF(AsistenciaDeJunio[[#This Row],[1]:[ ]],Código2)","v":0},{"$f":"COUNTIF(AsistenciaDeJunio[[#This Row],[1]:[ ]],Código3)","v":0},{"$f":"COUNTIF(AsistenciaDeJunio[[#This Row],[1]:[ ]],Código4)","v":0},{"$f":"SUM(AsistenciaDeJunio[[#This Row],[J]:[I]])","v":0}]
[null,null,{"$f":"IFERROR(VLOOKUP(AsistenciaDeJunio[[#This Row],[Id. de alumno]],ListaDeAlumnos[],18,FALSE),\"\")","v":""},{"$nulls":31},{"$f":"COUNTIF(AsistenciaDeJunio[[#This Row],[1]:[ ]],Código1)","v":0},{"$f":"COUNTIF(AsistenciaDeJunio[[#This Row],[1]:[ ]],Código2)","v":0},{"$f":"COUNTIF(AsistenciaDeJunio[[#This Row],[1]:[ ]],Código3)","v":0},{"$f":"COUNTIF(AsistenciaDeJunio[[#This Row],[1]:[ ]],Código4)","v":0},{"$f":"SUM(AsistenciaDeJunio[[#This Row],[J]:[I]])","v":0}]
[null,null,"Total de días ausente",{"$f":"COUNTIF(AsistenciaDeJunio[1],\"J\")+COUNTIF(AsistenciaDeJunio[1],\"I\")","v":0},{"$f":"COUNTIF(AsistenciaDeJunio[2],\"J\")+COUNTIF(AsistenciaDeJunio[2],\"I\")","v":0},{"$f":"COUNTIF(AsistenciaDeJunio[3],\"J\")+COUNTIF(AsistenciaDeJunio[3],\"I\")","v":0},{"$f":"COUNTIF(AsistenciaDeJunio[4],\"J\")+COUNTIF(AsistenciaDeJunio[4],\"I\")","v":0},{"$f":"COUNTIF(AsistenciaDeJunio[5],\"J\")+COUNTIF(AsistenciaDeJunio[5],\"I\")","v":0},{"$f":"COUNTIF(AsistenciaDeJunio[6],\"J\")+COUNTIF(AsistenciaDeJunio[6],\"I\")","v":0},{"$f":"COUNTIF(AsistenciaDeJunio[7],\"J\")+COUNTIF(AsistenciaDeJunio[7],\"I\")","v":0},{"$f":"COUNTIF(AsistenciaDeJunio[8],\"J\")+COUNTIF(AsistenciaDeJunio[8],\"I\")","v":0},{"$f":"COUNTIF(AsistenciaDeJunio[9],\"J\")+COUNTIF(AsistenciaDeJunio[9],\"I\")","v":0},{"$f":"COUNTIF(AsistenciaDeJunio[10],\"J\")+COUNTIF(AsistenciaDeJunio[10],\"I\")","v":0},{"$f":"COUNTIF(AsistenciaDeJunio[11],\"J\")+COUNTIF(AsistenciaDeJunio[11],\"I\")","v":0},{"$f":"COUNTIF(AsistenciaDeJunio[12],\"J\")+COUNTIF(AsistenciaDeJunio[12],\"I\")","v":0},{"$f":"COUNTIF(AsistenciaDeJunio[13],\"J\")+COUNTIF(AsistenciaDeJunio[13],\"I\")","v":0},{"$f":"COUNTIF(AsistenciaDeJunio[14],\"J\")+COUNTIF(AsistenciaDeJunio[14],\"I\")","v":0},{"$f":"COUNTIF(AsistenciaDeJunio[15],\"J\")+COUNTIF(AsistenciaDeJunio[15],\"I\")","v":0},{"$f":"COUNTIF(AsistenciaDeJunio[16],\"J\")+COUNTIF(AsistenciaDeJunio[16],\"I\")","v":0},{"$f":"COUNTIF(AsistenciaDeJunio[17],\"J\")+COUNTIF(AsistenciaDeJunio[17],\"I\")","v":0},{"$f":"COUNTIF(AsistenciaDeJunio[18],\"J\")+COUNTIF(AsistenciaDeJunio[18],\"I\")","v":0},{"$f":"COUNTIF(AsistenciaDeJunio[19],\"J\")+COUNTIF(AsistenciaDeJunio[19],\"I\")","v":0},{"$f":"COUNTIF(AsistenciaDeJunio[20],\"J\")+COUNTIF(AsistenciaDeJunio[20],\"I\")","v":0},{"$f":"COUNTIF(AsistenciaDeJunio[21],\"J\")+COUNTIF(AsistenciaDeJunio[21],\"I\")","v":0},{"$f":"COUNTIF(AsistenciaDeJunio[22],\"J\")+COUNTIF(AsistenciaDeJunio[22],\"I\")","v":0},{"$f":"COUNTIF(AsistenciaDeJunio[23],\"J\")+COUNTIF(AsistenciaDeJunio[23],\"I\")","v":0},{"$f":"COUNTIF(AsistenciaDeJunio[24],\"J\")+COUNTIF(AsistenciaDeJunio[24],\"I\")","v":0},{"$f":"COUNTIF(AsistenciaDeJunio[25],\"J\")+COUNTIF(AsistenciaDeJunio[25],\"I\")","v":0},{"$f":"COUNTIF(AsistenciaDeJunio[26],\"J\")+COUNTIF(AsistenciaDeJunio[26],\"I\")","v":0},{"$f":"COUNTIF(AsistenciaDeJunio[27],\"J\")+COUNTIF(AsistenciaDeJunio[27],\"I\")","v":0},{"$f":"COUNTIF(AsistenciaDeJunio[28],\"J\")+COUNTIF(AsistenciaDeJunio[28],\"I\")","v":0},{"$f":"COUNTIF(AsistenciaDeJunio[29],\"J\")+COUNTIF(AsistenciaDeJunio[29],\"I\")","v":0},{"$f":"COUNTIF(AsistenciaDeJunio[30],\"J\")+COUNTIF(AsistenciaDeJunio[30],\"I\")","v":0},{"$f":"COUNTIF(AsistenciaDeJunio[[ ]],\"J\")+COUNTIF(AsistenciaDeJunio[[ ]],\"I\")","v":0},{"$f":"SUBTOTAL(109,AsistenciaDeJunio[T])","v":0},{"$f":"SUBTOTAL(109,AsistenciaDeJunio[J])","v":0},{"$f":"SUBTOTAL(109,AsistenciaDeJunio[I])","v":0},{"$f":"SUBTOTAL(109,AsistenciaDeJunio[P])","v":0},{"$f":"SUBTOTAL(109,AsistenciaDeJunio[Días ausente])","v":0}]

{"sheet":"Julio","index":13,"n_rows":12,"n_cols":39,"rows_kept":12,"merged":[[4,34,4,38]]}
["REGISTRO DE ASISTENCIA DE LOS ALUMNOS",{"$nulls":36},"Inicio del año escolar:",{"$f":"AñoNatural","v":2012}]
[]
[null,null,{"$f":"TextoDeClaveDeColor","v":"CLAVE DE COLOR "},{"$f":"Código1","v":"T"},{"$f":"TextoDeCódigo1","v":"Tarde"},null,null,{"$f":"Código2","v":"J"},{"$f":"TextoDeCódigo2","v":"Justificado"},null,null,{"$f":"Código3","v":"I"},{"$f":"TextoDeCódigo3","v":"Injustificado"},null,null,{"$f":"Código4","v":"P"},{"$f":"TextoDeCódigo4","v":"Presente"},null,null,{"$f":"Código5","v":"N"},{"$f":"TextoDeCódigo5","v":"No hay escuela"}]
[]
[null,{"$f":"DATE(AñoNatural+1,7,1)","v":"2013-07-01"},null,{"$f":"TEXT(WEEKDAY(DATE(AñoNatural+1,7,1),1),\"[$-c0a]aaa\")","v":"lun"},{"$f":"TEXT(WEEKDAY(DATE(AñoNatural+1,7,2),1),\"[$-c0a]aaa\")","v":"mar"},{"$f":"TEXT(WEEKDAY(DATE(AñoNatural+1,7,3),1),\"[$-c0a]aaa\")","v":"mié"},{"$f":"TEXT(WEEKDAY(DATE(AñoNatural+1,7,4),1),\"[$-c0a]aaa\")","v":"jue"},{"$f":"TEXT(WEEKDAY(DATE(AñoNatural+1,7,5),1),\"[$-c0a]aaa\")","v":"vie"},{"$f":"TEXT(WEEKDAY(DATE(AñoNatural+1,7,6),1),\"[$-c0a]aaa\")","v":"sáb"},{"$f":"TEXT(WEEKDAY(DATE(AñoNatural+1,7,7),1),\"[$-c0a]aaa\")","v":"dom"},{"$f":"TEXT(WEEKDAY(DATE(AñoNatural+1,7,8),1),\"[$-c0a]aaa\")","v":"lun"},{"$f":"TEXT(WEEKDAY(DATE(AñoNatural+1,7,9),1),\"[$-c0a]aaa\")","v":"mar"},{"$f":"TEXT(WEEKDAY(DATE(AñoNatural+1,7,10),1),\"[$-c0a]aaa\")","v":"mié"},{"$f":"TEXT(WEEKDAY(DATE(AñoNatural+1,7,11),1),\"[$-c0a]aaa\")","v":"jue"},{"$f":"TEXT(WEEKDAY(DATE(AñoNatural+1,7,12),1),\"[$-c0a]aaa\")","v":"vie"},{"$f":"TEXT(WEEKDAY(DATE(AñoNatural+1,7,13),1),\"[$-c0a]aaa\")","v":"sáb"},{"$f":"TEXT(WEEKDAY(DATE(AñoNatural+1,7,14),1),\"[$-c0a]aaa\")","v":"dom"},{"$f":"TEXT(WEEKDAY(DATE(AñoNatural+1,7,15),1),\"[$-c0a]aaa\")","v":"lun"},{"$f":"TEXT(WEEKDAY(DATE(AñoNatural+1,7,16),1),\"[$-c0a]aaa\")","v":"mar"},{"$f":"TEXT(WEEKDAY(DATE(AñoNatural+1,7,17),1),\"[$-c0a]aaa\")","v":"mié"},{"$f":"TEXT(WEEKDAY(DATE(AñoNatural+1,7,18),1),\"[$-c0a]aaa\")","v":"jue"},{"$f":"TEXT(WEEKDAY(DATE(AñoNatural+1,7,19),1),\"[$-c0a]aaa\")","v":"vie"},{"$f":"TEXT(WEEKDAY(DATE(AñoNatural+1,7,20),1),\"[$-c0a]aaa\")","v":"sáb"},{"$f":"TEXT(WEEKDAY(DATE(AñoNatural+1,7,21),1),\"[$-c0a]aaa\")","v":"dom"},{"$f":"TEXT(WEEKDAY(DATE(AñoNatural+1,7,22),1),\"[$-c0a]aaa\")","v":"lun"},{"$f":"TEXT(WEEKDAY(DATE(AñoNatural+1,7,23),1),\"[$-c0a]aaa\")","v":"mar"},{"$f":"TEXT(WEEKDAY(DATE(AñoNatural+1,7,24),1),\"[$-c0a]aaa\")","v":"mié"},{"$f":"TEXT(WEEKDAY(DATE(AñoNatural+1,7,25),1),\"[$-c0a]aaa\")","v":"jue"},{"$f":"TEXT(WEEKDAY(DATE(AñoNatural+1,7,26),1),\"[$-c0a]aaa\")","v":"vie"},{"$f":"TEXT(WEEKDAY(DATE(AñoNatural+1,7,27),1),\"[$-c0a]aaa\")","v":"sáb"},{"$f":"TEXT(WEEKDAY(DATE(AñoNatural+1,7,28),1),\"[$-c0a]aaa\")","v":"dom"},{"$f":"TEXT(WEEKDAY(DATE(AñoNatural+1,7,29),1),\"[$-c0a]aaa\")","v":"lun"},{"$f":"TEXT(WEEKDAY(DATE(AñoNatural+1,7,30),1),\"[$-c0a]aaa\")","v":"mar"},{"$f":"TEXT(WEEKDAY(DATE(AñoNatural+1,7,31),1),\"[$-c0a]aaa\")","v":"mié"},"Totales"]
[null,"Id. de alumno","Nombre del alumno","1","2","3","4","5","6","7","8","9","10","11","12","13","14","15","16","17","18","19","20","21","22","23","24","25","26","27","28","29","30","31","T","J","I","P","Días ausente"]
[null,null,{"$f":"IFERROR(VLOOKUP(AsistenciaDeJulio[[#This Row],[Id. de alumno]],ListaDeAlumnos[],18,FALSE),\"\")","v":""},{"$nulls":31},{"$f":"COUNTIF(AsistenciaDeJulio[[#This Row],[1]:[31]],Código1)","v":0},{"$f":"COUNTIF(AsistenciaDeJulio[[#This Row],[1]:[31]],Código2)","v":0},{"$f":"COUNTIF(AsistenciaDeJulio[[#This Row],[1]:[31]],Código3)","v":0},{"$f":"COUNTIF(AsistenciaDeJulio[[#This Row],[1]:[31]],Código4)","v":0},{"$f":"SUM(AsistenciaDeJulio[[#This Row],[J]:[I]])","v":0}]
[null,null,{"$f":"IFERROR(VLOOKUP(AsistenciaDeJulio[[#This Row],[Id. de alumno]],ListaDeAlumnos[],18,FALSE),\"\")","v":""},{"$nulls":31},{"$f":"COUNTIF(AsistenciaDeJulio[[#This Row],[1]:[31]],Código1)","v":0},{"$f":"COUNTIF(AsistenciaDeJulio[[#This Row],[1]:[31]],Código2)","v":0},{"$f":"COUNTIF(AsistenciaDeJulio[[#This Row],[1]:[31]],Código3)","v":0},{"$f":"COUNTIF(AsistenciaDeJulio[[#This Row],[1]:[31]],Código4)","v":0},{"$f":"SUM(AsistenciaDeJulio[[#This Row],[J]:[I]])","v":0}]
[null,null,{"$f":"IFERROR(VLOOKUP(AsistenciaDeJulio[[#This Row],[Id. de alumno]],ListaDeAlumnos[],18,FALSE),\"\")","v":""},{"$nulls":31},{"$f":"COUNTIF(AsistenciaDeJulio[[#This Row],[1]:[31]],Código1)","v":0},{"$f":"COUNTIF(AsistenciaDeJulio[[#This Row],[1]:[31]],Código2)","v":0},{"$f":"COUNTIF(AsistenciaDeJulio[[#This Row],[1]:[31]],Código3)","v":0},{"$f":"COUNTIF(AsistenciaDeJulio[[#This Row],[1]:[31]],Código4)","v":0},{"$f":"SUM(AsistenciaDeJulio[[#This Row],[J]:[I]])","v":0}]
[null,null,{"$f":"IFERROR(VLOOKUP(AsistenciaDeJulio[[#This Row],[Id. de alumno]],ListaDeAlumnos[],18,FALSE),\"\")","v":""},{"$nulls":31},{"$f":"COUNTIF(AsistenciaDeJulio[[#This Row],[1]:[31]],Código1)","v":0},{"$f":"COUNTIF(AsistenciaDeJulio[[#This Row],[1]:[31]],Código2)","v":0},{"$f":"COUNTIF(AsistenciaDeJulio[[#This Row],[1]:[31]],Código3)","v":0},{"$f":"COUNTIF(AsistenciaDeJulio[[#This Row],[1]:[31]],Código4)","v":0},{"$f":"SUM(AsistenciaDeJulio[[#This Row],[J]:[I]])","v":0}]
[null,null,{"$f":"IFERROR(VLOOKUP(AsistenciaDeJulio[[#This Row],[Id. de alumno]],ListaDeAlumnos[],18,FALSE),\"\")","v":""},{"$nulls":31},{"$f":"COUNTIF(AsistenciaDeJulio[[#This Row],[1]:[31]],Código1)","v":0},{"$f":"COUNTIF(AsistenciaDeJulio[[#This Row],[1]:[31]],Código2)","v":0},{"$f":"COUNTIF(AsistenciaDeJulio[[#This Row],[1]:[31]],Código3)","v":0},{"$f":"COUNTIF(AsistenciaDeJulio[[#This Row],[1]:[31]],Código4)","v":0},{"$f":"SUM(AsistenciaDeJulio[[#This Row],[J]:[I]])","v":0}]
[null,null,"Total de días ausente",{"$f":"COUNTIF(AsistenciaDeJulio[1],\"J\")+COUNTIF(AsistenciaDeJulio[1],\"I\")","v":0},{"$f":"COUNTIF(AsistenciaDeJulio[2],\"J\")+COUNTIF(AsistenciaDeJulio[2],\"I\")","v":0},{"$f":"COUNTIF(AsistenciaDeJulio[3],\"J\")+COUNTIF(AsistenciaDeJulio[3],\"I\")","v":0},{"$f":"COUNTIF(AsistenciaDeJulio[4],\"J\")+COUNTIF(AsistenciaDeJulio[4],\"I\")","v":0},{"$f":"COUNTIF(AsistenciaDeJulio[5],\"J\")+COUNTIF(AsistenciaDeJulio[5],\"I\")","v":0},{"$f":"COUNTIF(AsistenciaDeJulio[6],\"J\")+COUNTIF(AsistenciaDeJulio[6],\"I\")","v":0},{"$f":"COUNTIF(AsistenciaDeJulio[7],\"J\")+COUNTIF(AsistenciaDeJulio[7],\"I\")","v":0},{"$f":"COUNTIF(AsistenciaDeJulio[8],\"J\")+COUNTIF(AsistenciaDeJulio[8],\"I\")","v":0},{"$f":"COUNTIF(AsistenciaDeJulio[9],\"J\")+COUNTIF(AsistenciaDeJulio[9],\"I\")","v":0},{"$f":"COUNTIF(AsistenciaDeJulio[10],\"J\")+COUNTIF(AsistenciaDeJulio[10],\"I\")","v":0},{"$f":"COUNTIF(AsistenciaDeJulio[11],\"J\")+COUNTIF(AsistenciaDeJulio[11],\"I\")","v":0},{"$f":"COUNTIF(AsistenciaDeJulio[12],\"J\")+COUNTIF(AsistenciaDeJulio[12],\"I\")","v":0},{"$f":"COUNTIF(AsistenciaDeJulio[13],\"J\")+COUNTIF(AsistenciaDeJulio[13],\"I\")","v":0},{"$f":"COUNTIF(AsistenciaDeJulio[14],\"J\")+COUNTIF(AsistenciaDeJulio[14],\"I\")","v":0},{"$f":"COUNTIF(AsistenciaDeJulio[15],\"J\")+COUNTIF(AsistenciaDeJulio[15],\"I\")","v":0},{"$f":"COUNTIF(AsistenciaDeJulio[16],\"J\")+COUNTIF(AsistenciaDeJulio[16],\"I\")","v":0},{"$f":"COUNTIF(AsistenciaDeJulio[17],\"J\")+COUNTIF(AsistenciaDeJulio[17],\"I\")","v":0},{"$f":"COUNTIF(AsistenciaDeJulio[18],\"J\")+COUNTIF(AsistenciaDeJulio[18],\"I\")","v":0},{"$f":"COUNTIF(AsistenciaDeJulio[19],\"J\")+COUNTIF(AsistenciaDeJulio[19],\"I\")","v":0},{"$f":"COUNTIF(AsistenciaDeJulio[20],\"J\")+COUNTIF(AsistenciaDeJulio[20],\"I\")","v":0},{"$f":"COUNTIF(AsistenciaDeJulio[21],\"J\")+COUNTIF(AsistenciaDeJulio[21],\"I\")","v":0},{"$f":"COUNTIF(AsistenciaDeJulio[22],\"J\")+COUNTIF(AsistenciaDeJulio[22],\"I\")","v":0},{"$f":"COUNTIF(AsistenciaDeJulio[23],\"J\")+COUNTIF(AsistenciaDeJulio[23],\"I\")","v":0},{"$f":"COUNTIF(AsistenciaDeJulio[24],\"J\")+COUNTIF(AsistenciaDeJulio[24],\"I\")","v":0},{"$f":"COUNTIF(AsistenciaDeJulio[25],\"J\")+COUNTIF(AsistenciaDeJulio[25],\"I\")","v":0},{"$f":"COUNTIF(AsistenciaDeJulio[26],\"J\")+COUNTIF(AsistenciaDeJulio[26],\"I\")","v":0},{"$f":"COUNTIF(AsistenciaDeJulio[27],\"J\")+COUNTIF(AsistenciaDeJulio[27],\"I\")","v":0},{"$f":"COUNTIF(AsistenciaDeJulio[28],\"J\")+COUNTIF(AsistenciaDeJulio[28],\"I\")","v":0},{"$f":"COUNTIF(AsistenciaDeJulio[29],\"J\")+COUNTIF(AsistenciaDeJulio[29],\"I\")","v":0},{"$f":"COUNTIF(AsistenciaDeJulio[30],\"J\")+COUNTIF(AsistenciaDeJulio[30],\"I\")","v":0},{"$f":"COUNTIF(AsistenciaDeJulio[31],\"J\")+COUNTIF(AsistenciaDeJulio[31],\"I\")","v":0},{"$f":"SUBTOTAL(109,AsistenciaDeJulio[T])","v":0},{"$f":"SUBTOTAL(109,AsistenciaDeJulio[J])","v":0},{"$f":"SUBTOTAL(109,AsistenciaDeJulio[I])","v":0},{"$f":"SUBTOTAL(109,AsistenciaDeJulio[P])","v":0},{"$f":"SUBTOTAL(109,AsistenciaDeJulio[Días ausente])","v":0}]

{"sheet":"Informe asistencia de alumnos","index":14,"n_rows":40,"n_cols":37,"rows_kept":40,"merged":[[2,3,2,14],[2,15,2,17],[2,18,2,21],[2,22,2,29],[2,30,2,31],[2,32,2,35],[3,1,3,2],[3,3,3,14],[3,15,3,17],[3,18,3,21],[3,22,3,29],[3,30,3,31],[3,32,3,35],[4,1,4,9],[4,10,4,21],[4,22,4,29],[4,30,4,36],[5,1,5,9],[5,10,5,21],[5,22,5,29],[5,30,5,36],[6,1,6,9],[6,10,6,21],[6,22,6,29],[6,30,6,36],[7,1,7,9],[7,10,7,21],[7,22,7,29],[7,30,7,36],[8,1,8,9],[8,10,8,21],[8,22,8,29],[8,30,8,36],[9,1,9,9],[9,10,9,21],[9,22,9,29],[9,30,9,36],[13,1,14,32],[13,33,13,36],[15,1,16,1],[15,33,16,33],[15,34,16,34],[15,35,16,35],[15,36,16,36],[17,1,18,1],[17,33,18,33],[17,34,18,34],[17,35,18,35],[17,36,18,36],[19,1,20,1],[19,33,20,33],[19,34,20,34],[19,35,20,35],[19,36,20,36],[21,1,22,1],[21,33,22,33],[21,34,22,34],[21,35,22,35],[21,36,22,36],[23,1,24,1],[23,33,24,33],[23,34,24,34],[23,35,24,35],[23,36,24,36],[25,1,26,1],[25,33,26,33],[25,34,26,34],[25,35,26,35],[25,36,26,36],[27,1,28,1],[27,33,28,33],[27,34,28,34],[27,35,28,35],[27,36,28,36],[29,1,30,1],[29,33,30,33],[29,34,30,34],[29,35,30,35],[29,36,30,36],[31,1,32,1],[31,33,32,33],[31,34,32,34],[31,35,32,35],[31,36,32,36],[33,1,34,1],[33,33,34,33],[33,34,34,34],[33,35,34,35],[33,36,34,36],[35,1,36,1],[35,33,36,33],[35,34,36,34],[35,35,36,35],[35,36,36,36],[37,1,38,1],[37,33,38,33],[37,34,38,34],[37,35,38,35],[37,36,38,36],[39,30,39,32]]}
[{"$f":"\"Registro de asistencia de \"","v":"Registro de asistencia de "},{"$nulls":7},{"$f":"D4","v":"David Alexander"}]
[]
[null,"Id. de alumno",null,"Nombre del alumno",{"$nulls":11},"Sexo",null,null,"Fecha de nacimiento",{"$nulls":3},"Escuela",{"$nulls":7},"Título",null,"Maestro",{"$nulls":3},"Habitación"]
[null,"S001",null,{"$f":"IFERROR(VLOOKUP(ConsultaDeAlumnos,ListaDeAlumnos[],18,FALSE),\"\")","v":"David Alexander"},{"$nulls":11},{"$f":"IFERROR(VLOOKUP(ConsultaDeAlumnos,ListaDeAlumnos[],4,FALSE),\"\")","v":"H"},null,null,{"$f":"IFERROR(VLOOKUP(ConsultaDeAlumnos,ListaDeAlumnos[],5,FALSE),\"\")","v":"1997-03-28"},{"$nulls":3},"Escuela de Bellas Artes ",{"$nulls":7},7,null,"Luca Argentiero",{"$nulls":3},123]
[null,"Nombre del padre o tutor 1",{"$nulls":8},"Relación",{"$nulls":11},"Número del trabajo",{"$nulls":7},"Número particular"]
[null,{"$f":"IFERROR(VLOOKUP(ConsultaDeAlumnos,ListaDeAlumnos[],6,FALSE),\"\")","v":"Michelle"},{"$nulls":8},{"$f":"IFERROR(VLOOKUP(ConsultaDeAlumnos,ListaDeAlumnos[],7,FALSE),\"\")","v":"Alexander"},{"$nulls":11},{"$f":"IFERROR(VLOOKUP(ConsultaDeAlumnos,ListaDeAlumnos[],8,FALSE),\"\")","v":1235550134},{"$nulls":7},{"$f":"IFERROR(VLOOKUP(ConsultaDeAlumnos,ListaDeAlumnos[],9,FALSE),\"\")","v":2345550134}]
[null,"Nombre del padre o tutor 2",{"$nulls":8},"Relación",{"$nulls":11},"Número del trabajo",{"$nulls":7},"Número particular"]
[null,{"$f":"IFERROR(VLOOKUP(ConsultaDeAlumnos,ListaDeAlumnos[],10,FALSE),\"\")","v":"Michael Alexander"},{"$nulls":8},{"$f":"IFERROR(VLOOKUP(ConsultaDeAlumnos,ListaDeAlumnos[],11,FALSE),\"\")","v":"Padre"},{"$nulls":11},{"$f":"IFERROR(VLOOKUP(ConsultaDeAlumnos,ListaDeAlumnos[],12,FALSE),\"\")","v":1235550134},{"$nulls":7},{"$f":"IFERROR(VLOOKUP(ConsultaDeAlumnos,ListaDeAlumnos[],13,FALSE),\"\")","v":2345550134}]
[null,"Contacto de emergencia",{"$nulls":8},"Relación",{"$nulls":11},"Número del trabajo",{"$nulls":7},"Número particular"]
[null,{"$f":"IFERROR(VLOOKUP(ConsultaDeAlumnos,ListaDeAlumnos[],14,FALSE),\"\")","v":"Reed Koch"},{"$nulls":8},{"$f":"IFERROR(VLOOKUP(ConsultaDeAlumnos,ListaDeAlumnos[],15,FALSE),\"\")","v":"Abuelo"},{"$nulls":11},{"$f":"IFERROR(VLOOKUP(ConsultaDeAlumnos,ListaDeAlumnos[],16,FALSE),\"\")","v":7895550189},{"$nulls":7},{"$f":"IFERROR(VLOOKUP(ConsultaDeAlumnos,ListaDeAlumnos[],17,FALSE),\"\")","v":7895550134}]
[]
[null,{"$f":"Agosto!C3","v":"CLAVE DE COLOR "},{"$f":"Agosto!D3","v":"T"},{"$f":"Agosto!E3","v":"Tarde"},null,null,{"$f":"Agosto!H3","v":"J"},{"$f":"Agosto!I3","v":"Justificado"},null,null,{"$f":"Agosto!L3","v":"I"},{"$f":"Agosto!M3","v":"Injustificado"},{"$nulls":3},{"$f":"Agosto!P3","v":"P"},{"$f":"Agosto!Q3","v":"Presente"},null,null,{"$f":"Agosto!T3","v":"N"},{"$f":"Agosto!U3","v":"No hay escuela"}]
[]
[null,"Asistencia",{"$nulls":31},"Total de asistencia"]
[{"$nulls":33},"T","J","I","P"]
[null,"Agosto",1,2,3,4,5,6,7,8,9,10,11,12,13,14,15,16,17,18,19,20,21,22,23,24,25,26,27,28,29,30,31,{"$f":"COUNTIF($D17:$AH17,Código1)","v":2},{"$f":"COUNTIF($D17:$AH17,Código2)","v":1},{"$f":"COUNTIF($D17:$AH17,Código3)","v":0},{"$f":"COUNTIF($D17:$AH17,Código4)","v":19}]
[null,null,{"$f":"IFERROR(VLOOKUP(ConsultaDeAlumnos,AsistenciaDeAgosto[],3,FALSE),\"\")","v":"P"},{"$f":"IFERROR(VLOOKUP(ConsultaDeAlumnos,AsistenciaDeAgosto[],4,FALSE),\"\")","v":"P"},{"$f":"IFERROR(VLOOKUP(ConsultaDeAlumnos,AsistenciaDeAgosto[],5,FALSE),\"\")","v":"T"},{"$f":"IFERROR(VLOOKUP(ConsultaDeAlumnos,AsistenciaDeAgosto[],6,FALSE),\"\")","v":"T"},{"$f":"IFERROR(VLOOKUP(ConsultaDeAlumnos,AsistenciaDeAgosto[],7,FALSE),\"\")","v":"P"},{"$f":"IFERROR(VLOOKUP(ConsultaDeAlumnos,AsistenciaDeAgosto[],8,FALSE),\"\")","v":"N"},{"$f":"IFERROR(VLOOKUP(ConsultaDeAlumnos,AsistenciaDeAgosto[],9,FALSE),\"\")","v":"N"},{"$f":"IFERROR(VLOOKUP(ConsultaDeAlumnos,AsistenciaDeAgosto[],10,FALSE),\"\")","v":"P"},{"$f":"IFERROR(VLOOKUP(ConsultaDeAlumnos,AsistenciaDeAgosto[],11,FALSE),\"\")","v":"P"},{"$f":"IFERROR(VLOOKUP(ConsultaDeAlumnos,AsistenciaDeAgosto[],12,FALSE),\"\")","v":"J"},{"$f":"IFERROR(VLOOKUP(ConsultaDeAlumnos,AsistenciaDeAgosto[],13,FALSE),\"\")","v":"P"},{"$f":"IFERROR(VLOOKUP(ConsultaDeAlumnos,AsistenciaDeAgosto[],14,FALSE),\"\")","v":"P"},{"$f":"IFERROR(VLOOKUP(ConsultaDeAlumnos,AsistenciaDeAgosto[],15,FALSE),\"\")","v":"N"},{"$f":"IFERROR(VLOOKUP(ConsultaDeAlumnos,AsistenciaDeAgosto[],16,FALSE),\"\")","v":"N"},{"$f":"IFERROR(VLOOKUP(ConsultaDeAlumnos,AsistenciaDeAgosto[],17,FALSE),\"\")","v":"P"},{"$f":"IFERROR(VLOOKUP(ConsultaDeAlumnos,AsistenciaDeAgosto[],18,FALSE),\"\")","v":"P"},{"$f":"IFERROR(VLOOKUP(ConsultaDeAlumnos,AsistenciaDeAgosto[],19,FALSE),\"\")","v":"P"},{"$f":"IFERROR(VLOOKUP(ConsultaDeAlumnos,AsistenciaDeAgosto[],20,FALSE),\"\")","v":"P"},{"$f":"IFERROR(VLOOKUP(ConsultaDeAlumnos,AsistenciaDeAgosto[],21,FALSE),\"\")","v":"P"},{"$f":"IFERROR(VLOOKUP(ConsultaDeAlumnos,AsistenciaDeAgosto[],22,FALSE),\"\")","v":"N"},{"$f":"IFERROR(VLOOKUP(ConsultaDeAlumnos,AsistenciaDeAgosto[],23,FALSE),\"\")","v":"N"},{"$f":"IFERROR(VLOOKUP(ConsultaDeAlumnos,AsistenciaDeAgosto[],24,FALSE),\"\")","v":"P"},{"$f":"IFERROR(VLOOKUP(ConsultaDeAlumnos,AsistenciaDeAgosto[],25,FALSE),\"\")","v":"P"},{"$f":"IFERROR(VLOOKUP(ConsultaDeAlumnos,AsistenciaDeAgosto[],26,FALSE),\"\")","v":"P"},{"$f":"IFERROR(VLOOKUP(ConsultaDeAlumnos,AsistenciaDeAgosto[],27,FALSE),\"\")","v":"P"},{"$f":"IFERROR(VLOOKUP(ConsultaDeAlumnos,AsistenciaDeAgosto[],28,FALSE),\"\")","v":"P"},{"$f":"IFERROR(VLOOKUP(ConsultaDeAlumnos,AsistenciaDeAgosto[],29,FALSE),\"\")","v":"N"},{"$f":"IFERROR(VLOOKUP(ConsultaDeAlumnos,AsistenciaDeAgosto[],30,FALSE),\"\")","v":"N"},{"$f":"IFERROR(VLOOKUP(ConsultaDeAlumnos,AsistenciaDeAgosto[],31,FALSE),\"\")","v":"P"},{"$f":"IFERROR(VLOOKUP(ConsultaDeAlumnos,AsistenciaDeAgosto[],32,FALSE),\"\")","v":"P"},{"$f":"IFERROR(VLOOKUP(ConsultaDeAlumnos,AsistenciaDeAgosto[],33,FALSE),\"\")","v":"P"}]
[null,"Septiembre",1,2,3,4,5,6,7,8,9,10,11,12,13,14,15,16,17,18,19,20,21,22,23,24,25,26,27,28,29,30,null,{"$f":"COUNTIF($D19:$AH19,Código1)","v":0},{"$f":"COUNTIF($D19:$AH19,Código2)","v":0},{"$f":"COUNTIF($D19:$AH19,Código3)","v":0},{"$f":"COUNTIF($D19:$AH19,Código4)","v":0}]
[null,null,{"$f":"IFERROR(VLOOKUP(ConsultaDeAlumnos,AsistenciaDeSeptiembre[],3,FALSE),\"\")","v":""},{"$f":"IFERROR(VLOOKUP(ConsultaDeAlumnos,AsistenciaDeSeptiembre[],4,FALSE),\"\")","v":""},{"$f":"IFERROR(VLOOKUP(ConsultaDeAlumnos,AsistenciaDeSeptiembre[],5,FALSE),\"\")","v":""},{"$f":"IFERROR(VLOOKUP(ConsultaDeAlumnos,AsistenciaDeSeptiembre[],6,FALSE),\"\")","v":""},{"$f":"IFERROR(VLOOKUP(ConsultaDeAlumnos,AsistenciaDeSeptiembre[],7,FALSE),\"\")","v":""},{"$f":"IFERROR(VLOOKUP(ConsultaDeAlumnos,AsistenciaDeSeptiembre[],8,FALSE),\"\")","v":""},{"$f":"IFERROR(VLOOKUP(ConsultaDeAlumnos,AsistenciaDeSeptiembre[],9,FALSE),\"\")","v":""},{"$f":"IFERROR(VLOOKUP(ConsultaDeAlumnos,AsistenciaDeSeptiembre[],10,FALSE),\"\")","v":""},{"$f":"IFERROR(VLOOKUP(ConsultaDeAlumnos,AsistenciaDeSeptiembre[],11,FALSE),\"\")","v":""},{"$f":"IFERROR(VLOOKUP(ConsultaDeAlumnos,AsistenciaDeSeptiembre[],12,FALSE),\"\")","v":""},{"$f":"IFERROR(VLOOKUP(ConsultaDeAlumnos,AsistenciaDeSeptiembre[],13,FALSE),\"\")","v":""},{"$f":"IFERROR(VLOOKUP(ConsultaDeAlumnos,AsistenciaDeSeptiembre[],14,FALSE),\"\")","v":""},{"$f":"IFERROR(VLOOKUP(ConsultaDeAlumnos,AsistenciaDeSeptiembre[],15,FALSE),\"\")","v":""},{"$f":"IFERROR(VLOOKUP(ConsultaDeAlumnos,AsistenciaDeSeptiembre[],16,FALSE),\"\")","v":""},{"$f":"IFERROR(VLOOKUP(ConsultaDeAlumnos,AsistenciaDeSeptiembre[],17,FALSE),\"\")","v":""},{"$f":"IFERROR(VLOOKUP(ConsultaDeAlumnos,AsistenciaDeSeptiembre[],18,FALSE),\"\")","v":""},{"$f":"IFERROR(VLOOKUP(ConsultaDeAlumnos,AsistenciaDeSeptiembre[],19,FALSE),\"\")","v":""},{"$f":"IFERROR(VLOOKUP(ConsultaDeAlumnos,AsistenciaDeSeptiembre[],20,FALSE),\"\")","v":""},{"$f":"IFERROR(VLOOKUP(ConsultaDeAlumnos,AsistenciaDeSeptiembre[],21,FALSE),\"\")","v":""},{"$f":"IFERROR(VLOOKUP(ConsultaDeAlumnos,AsistenciaDeSeptiembre[],22,FALSE),\"\")","v":""},{"$f":"IFERROR(VLOOKUP(ConsultaDeAlumnos,AsistenciaDeSeptiembre[],23,FALSE),\"\")","v":""},{"$f":"IFERROR(VLOOKUP(ConsultaDeAlumnos,AsistenciaDeSeptiembre[],24,FALSE),\"\")","v":""},{"$f":"IFERROR(VLOOKUP(ConsultaDeAlumnos,AsistenciaDeSeptiembre[],25,FALSE),\"\")","v":""},{"$f":"IFERROR(VLOOKUP(ConsultaDeAlumnos,AsistenciaDeSeptiembre[],26,FALSE),\"\")","v":""},{"$f":"IFERROR(VLOOKUP(ConsultaDeAlumnos,AsistenciaDeSeptiembre[],27,FALSE),\"\")","v":""},{"$f":"IFERROR(VLOOKUP(ConsultaDeAlumnos,AsistenciaDeSeptiembre[],28,FALSE),\"\")","v":""},{"$f":"IFERROR(VLOOKUP(ConsultaDeAlumnos,AsistenciaDeSeptiembre[],29,FALSE),\"\")","v":""},{"$f":"IFERROR(VLOOKUP(ConsultaDeAlumnos,AsistenciaDeSeptiembre[],30,FALSE),\"\")","v":""},{"$f":"IFERROR(VLOOKUP(ConsultaDeAlumnos,AsistenciaDeSeptiembre[],31,FALSE),\"\")","v":""},{"$f":"IFERROR(VLOOKUP(ConsultaDeAlumnos,AsistenciaDeSeptiembre[],32,FALSE),\"\")","v":""}]
[null,"Octubre",1,2,3,4,5,6,7,8,9,10,11,12,13,14,15,16,17,18,19,20,21,22,23,24,25,26,27,28,29,30,31,{"$f":"COUNTIF($D21:$AH21,Código1)","v":0},{"$f":"COUNTIF($D21:$AH21,Código2)","v":0},{"$f":"COUNTIF($D21:$AH21,Código3)","v":0},{"$f":"COUNTIF($D21:$AH21,Código4)","v":0}]
[null,null,{"$f":"IFERROR(VLOOKUP(ConsultaDeAlumnos,AsistenciaDeOctubre[],3,FALSE),\"\")","v":""},{"$f":"IFERROR(VLOOKUP(ConsultaDeAlumnos,AsistenciaDeOctubre[],4,FALSE),\"\")","v":""},{"$f":"IFERROR(VLOOKUP(ConsultaDeAlumnos,AsistenciaDeOctubre[],5,FALSE),\"\")","v":""},{"$f":"IFERROR(VLOOKUP(ConsultaDeAlumnos,AsistenciaDeOctubre[],6,FALSE),\"\")","v":""},{"$f":"IFERROR(VLOOKUP(ConsultaDeAlumnos,AsistenciaDeOctubre[],7,FALSE),\"\")","v":""},{"$f":"IFERROR(VLOOKUP(ConsultaDeAlumnos,AsistenciaDeOctubre[],8,FALSE),\"\")","v":""},{"$f":"IFERROR(VLOOKUP(ConsultaDeAlumnos,AsistenciaDeOctubre[],9,FALSE),\"\")","v":""},{"$f":"IFERROR(VLOOKUP(ConsultaDeAlumnos,AsistenciaDeOctubre[],10,FALSE),\"\")","v":""},{"$f":"IFERROR(VLOOKUP(ConsultaDeAlumnos,AsistenciaDeOctubre[],11,FALSE),\"\")","v":""},{"$f":"IFERROR(VLOOKUP(ConsultaDeAlumnos,AsistenciaDeOctubre[],12,FALSE),\"\")","v":""},{"$f":"IFERROR(VLOOKUP(ConsultaDeAlumnos,AsistenciaDeOctubre[],13,FALSE),\"\")","v":""},{"$f":"IFERROR(VLOOKUP(ConsultaDeAlumnos,AsistenciaDeOctubre[],14,FALSE),\"\")","v":""},{"$f":"IFERROR(VLOOKUP(ConsultaDeAlumnos,AsistenciaDeOctubre[],15,FALSE),\"\")","v":""},{"$f":"IFERROR(VLOOKUP(ConsultaDeAlumnos,AsistenciaDeOctubre[],16,FALSE),\"\")","v":""},{"$f":"IFERROR(VLOOKUP(ConsultaDeAlumnos,AsistenciaDeOctubre[],17,FALSE),\"\")","v":""},{"$f":"IFERROR(VLOOKUP(ConsultaDeAlumnos,AsistenciaDeOctubre[],18,FALSE),\"\")","v":""},{"$f":"IFERROR(VLOOKUP(ConsultaDeAlumnos,AsistenciaDeOctubre[],19,FALSE),\"\")","v":""},{"$f":"IFERROR(VLOOKUP(ConsultaDeAlumnos,AsistenciaDeOctubre[],20,FALSE),\"\")","v":""},{"$f":"IFERROR(VLOOKUP(ConsultaDeAlumnos,AsistenciaDeOctubre[],21,FALSE),\"\")","v":""},{"$f":"IFERROR(VLOOKUP(ConsultaDeAlumnos,AsistenciaDeOctubre[],22,FALSE),\"\")","v":""},{"$f":"IFERROR(VLOOKUP(ConsultaDeAlumnos,AsistenciaDeOctubre[],23,FALSE),\"\")","v":""},{"$f":"IFERROR(VLOOKUP(ConsultaDeAlumnos,AsistenciaDeOctubre[],24,FALSE),\"\")","v":""},{"$f":"IFERROR(VLOOKUP(ConsultaDeAlumnos,AsistenciaDeOctubre[],25,FALSE),\"\")","v":""},{"$f":"IFERROR(VLOOKUP(ConsultaDeAlumnos,AsistenciaDeOctubre[],26,FALSE),\"\")","v":""},{"$f":"IFERROR(VLOOKUP(ConsultaDeAlumnos,AsistenciaDeOctubre[],27,FALSE),\"\")","v":""},{"$f":"IFERROR(VLOOKUP(ConsultaDeAlumnos,AsistenciaDeOctubre[],28,FALSE),\"\")","v":""},{"$f":"IFERROR(VLOOKUP(ConsultaDeAlumnos,AsistenciaDeOctubre[],29,FALSE),\"\")","v":""},{"$f":"IFERROR(VLOOKUP(ConsultaDeAlumnos,AsistenciaDeOctubre[],30,FALSE),\"\")","v":""},{"$f":"IFERROR(VLOOKUP(ConsultaDeAlumnos,AsistenciaDeOctubre[],31,FALSE),\"\")","v":""},{"$f":"IFERROR(VLOOKUP(ConsultaDeAlumnos,AsistenciaDeOctubre[],32,FALSE),\"\")","v":""},{"$f":"IFERROR(VLOOKUP(ConsultaDeAlumnos,AsistenciaDeOctubre[],33,FALSE),\"\")","v":""}]
[null,"Noviembre",1,2,3,4,5,6,7,8,9,10,11,12,13,14,15,16,17,18,19,20,21,22,23,24,25,26,27,28,29,30,null,{"$f":"COUNTIF($D23:$AH23,Código1)","v":0},{"$f":"COUNTIF($D23:$AH23,Código2)","v":0},{"$f":"COUNTIF($D23:$AH23,Código3)","v":0},{"$f":"COUNTIF($D23:$AH23,Código4)","v":0}]
[null,null,{"$f":"IFERROR(VLOOKUP(ConsultaDeAlumnos,AsistenciaDeNoviembre[],3,FALSE),\"\")","v":""},{"$f":"IFERROR(VLOOKUP(ConsultaDeAlumnos,AsistenciaDeNoviembre[],4,FALSE),\"\")","v":""},{"$f":"IFERROR(VLOOKUP(ConsultaDeAlumnos,AsistenciaDeNoviembre[],5,FALSE),\"\")","v":""},{"$f":"IFERROR(VLOOKUP(ConsultaDeAlumnos,AsistenciaDeNoviembre[],6,FALSE),\"\")","v":""},{"$f":"IFERROR(VLOOKUP(ConsultaDeAlumnos,AsistenciaDeNoviembre[],7,FALSE),\"\")","v":""},{"$f":"IFERROR(VLOOKUP(ConsultaDeAlumnos,AsistenciaDeNoviembre[],8,FALSE),\"\")","v":""},{"$f":"IFERROR(VLOOKUP(ConsultaDeAlumnos,AsistenciaDeNoviembre[],9,FALSE),\"\")","v":""},{"$f":"IFERROR(VLOOKUP(ConsultaDeAlumnos,AsistenciaDeNoviembre[],10,FALSE),\"\")","v":""},{"$f":"IFERROR(VLOOKUP(ConsultaDeAlumnos,AsistenciaDeNoviembre[],11,FALSE),\"\")","v":""},{"$f":"IFERROR(VLOOKUP(ConsultaDeAlumnos,AsistenciaDeNoviembre[],12,FALSE),\"\")","v":""},{"$f":"IFERROR(VLOOKUP(ConsultaDeAlumnos,AsistenciaDeNoviembre[],13,FALSE),\"\")","v":""},{"$f":"IFERROR(VLOOKUP(ConsultaDeAlumnos,AsistenciaDeNoviembre[],14,FALSE),\"\")","v":""},{"$f":"IFERROR(VLOOKUP(ConsultaDeAlumnos,AsistenciaDeNoviembre[],15,FALSE),\"\")","v":""},{"$f":"IFERROR(VLOOKUP(ConsultaDeAlumnos,AsistenciaDeNoviembre[],16,FALSE),\"\")","v":""},{"$f":"IFERROR(VLOOKUP(ConsultaDeAlumnos,AsistenciaDeNoviembre[],17,FALSE),\"\")","v":""},{"$f":"IFERROR(VLOOKUP(ConsultaDeAlumnos,AsistenciaDeNoviembre[],18,FALSE),\"\")","v":""},{"$f":"IFERROR(VLOOKUP(ConsultaDeAlumnos,AsistenciaDeNoviembre[],19,FALSE),\"\")","v":""},{"$f":"IFERROR(VLOOKUP(ConsultaDeAlumnos,AsistenciaDeNoviembre[],20,FALSE),\"\")","v":""},{"$f":"IFERROR(VLOOKUP(ConsultaDeAlumnos,AsistenciaDeNoviembre[],21,FALSE),\"\")","v":""},{"$f":"IFERROR(VLOOKUP(ConsultaDeAlumnos,AsistenciaDeNoviembre[],22,FALSE),\"\")","v":""},{"$f":"IFERROR(VLOOKUP(ConsultaDeAlumnos,AsistenciaDeNoviembre[],23,FALSE),\"\")","v":""},{"$f":"IFERROR(VLOOKUP(ConsultaDeAlumnos,AsistenciaDeNoviembre[],24,FALSE),\"\")","v":""},{"$f":"IFERROR(VLOOKUP(ConsultaDeAlumnos,AsistenciaDeNoviembre[],25,FALSE),\"\")","v":""},{"$f":"IFERROR(VLOOKUP(ConsultaDeAlumnos,AsistenciaDeNoviembre[],26,FALSE),\"\")","v":""},{"$f":"IFERROR(VLOOKUP(ConsultaDeAlumnos,AsistenciaDeNoviembre[],27,FALSE),\"\")","v":""},{"$f":"IFERROR(VLOOKUP(ConsultaDeAlumnos,AsistenciaDeNoviembre[],28,FALSE),\"\")","v":""},{"$f":"IFERROR(VLOOKUP(ConsultaDeAlumnos,AsistenciaDeNoviembre[],29,FALSE),\"\")","v":""},{"$f":"IFERROR(VLOOKUP(ConsultaDeAlumnos,AsistenciaDeNoviembre[],30,FALSE),\"\")","v":""},{"$f":"IFERROR(VLOOKUP(ConsultaDeAlumnos,AsistenciaDeNoviembre[],31,FALSE),\"\")","v":""},{"$f":"IFERROR(VLOOKUP(ConsultaDeAlumnos,AsistenciaDeNoviembre[],32,FALSE),\"\")","v":""}]
[null,"Diciembre",1,2,3,4,5,6,7,8,9,10,11,12,13,14,15,16,17,18,19,20,21,22,23,24,25,26,27,28,29,30,31,{"$f":"COUNTIF($D25:$AH25,Código1)","v":0},{"$f":"COUNTIF($D25:$AH25,Código2)","v":0},{"$f":"COUNTIF($D25:$AH25,Código3)","v":0},{"$f":"COUNTIF($D25:$AH25,Código4)","v":0}]
[null,null,{"$f":"IFERROR(VLOOKUP(ConsultaDeAlumnos,AsistenciaDeDiciembre[],3,FALSE),\"\")","v":""},{"$f":"IFERROR(VLOOKUP(ConsultaDeAlumnos,AsistenciaDeDiciembre[],4,FALSE),\"\")","v":""},{"$f":"IFERROR(VLOOKUP(ConsultaDeAlumnos,AsistenciaDeDiciembre[],5,FALSE),\"\")","v":""},{"$f":"IFERROR(VLOOKUP(ConsultaDeAlumnos,AsistenciaDeDiciembre[],6,FALSE),\"\")","v":""},{"$f":"IFERROR(VLOOKUP(ConsultaDeAlumnos,AsistenciaDeDiciembre[],7,FALSE),\"\")","v":""},{"$f":"IFERROR(VLOOKUP(ConsultaDeAlumnos,AsistenciaDeDiciembre[],8,FALSE),\"\")","v":""},{"$f":"IFERROR(VLOOKUP(ConsultaDeAlumnos,AsistenciaDeDiciembre[],9,FALSE),\"\")","v":""},{"$f":"IFERROR(VLOOKUP(ConsultaDeAlumnos,AsistenciaDeDiciembre[],10,FALSE),\"\")","v":""},{"$f":"IFERROR(VLOOKUP(ConsultaDeAlumnos,AsistenciaDeDiciembre[],11,FALSE),\"\")","v":""},{"$f":"IFERROR(VLOOKUP(ConsultaDeAlumnos,AsistenciaDeDiciembre[],12,FALSE),\"\")","v":""},{"$f":"IFERROR(VLOOKUP(ConsultaDeAlumnos,AsistenciaDeDiciembre[],13,FALSE),\"\")","v":""},{"$f":"IFERROR(VLOOKUP(ConsultaDeAlumnos,AsistenciaDeDiciembre[],14,FALSE),\"\")","v":""},{"$f":"IFERROR(VLOOKUP(ConsultaDeAlumnos,AsistenciaDeDiciembre[],15,FALSE),\"\")","v":""},{"$f":"IFERROR(VLOOKUP(ConsultaDeAlumnos,AsistenciaDeDiciembre[],16,FALSE),\"\")","v":""},{"$f":"IFERROR(VLOOKUP(ConsultaDeAlumnos,AsistenciaDeDiciembre[],17,FALSE),\"\")","v":""},{"$f":"IFERROR(VLOOKUP(ConsultaDeAlumnos,AsistenciaDeDiciembre[],18,FALSE),\"\")","v":""},{"$f":"IFERROR(VLOOKUP(ConsultaDeAlumnos,AsistenciaDeDiciembre[],19,FALSE),\"\")","v":""},{"$f":"IFERROR(VLOOKUP(ConsultaDeAlumnos,AsistenciaDeDiciembre[],20,FALSE),\"\")","v":""},{"$f":"IFERROR(VLOOKUP(ConsultaDeAlumnos,AsistenciaDeDiciembre[],21,FALSE),\"\")","v":""},{"$f":"IFERROR(VLOOKUP(ConsultaDeAlumnos,AsistenciaDeDiciembre[],22,FALSE),\"\")","v":""},{"$f":"IFERROR(VLOOKUP(ConsultaDeAlumnos,AsistenciaDeDiciembre[],23,FALSE),\"\")","v":""},{"$f":"IFERROR(VLOOKUP(ConsultaDeAlumnos,AsistenciaDeDiciembre[],24,FALSE),\"\")","v":""},{"$f":"IFERROR(VLOOKUP(ConsultaDeAlumnos,AsistenciaDeDiciembre[],25,FALSE),\"\")","v":""},{"$f":"IFERROR(VLOOKUP(ConsultaDeAlumnos,AsistenciaDeDiciembre[],26,FALSE),\"\")","v":""},{"$f":"IFERROR(VLOOKUP(ConsultaDeAlumnos,AsistenciaDeDiciembre[],27,FALSE),\"\")","v":""},{"$f":"IFERROR(VLOOKUP(ConsultaDeAlumnos,AsistenciaDeDiciembre[],28,FALSE),\"\")","v":""},{"$f":"IFERROR(VLOOKUP(ConsultaDeAlumnos,AsistenciaDeDiciembre[],29,FALSE),\"\")","v":""},{"$f":"IFERROR(VLOOKUP(ConsultaDeAlumnos,AsistenciaDeDiciembre[],30,FALSE),\"\")","v":""},{"$f":"IFERROR(VLOOKUP(ConsultaDeAlumnos,AsistenciaDeDiciembre[],31,FALSE),\"\")","v":""},{"$f":"IFERROR(VLOOKUP(ConsultaDeAlumnos,AsistenciaDeDiciembre[],32,FALSE),\"\")","v":""},{"$f":"IFERROR(VLOOKUP(ConsultaDeAlumnos,AsistenciaDeDiciembre[],33,FALSE),\"\")","v":""}]
[null,"Enero",1,2,3,4,5,6,7,8,9,10,11,12,13,14,15,16,17,18,19,20,21,22,23,24,25,26,27,28,29,30,31,{"$f":"COUNTIF($D27:$AH27,Código1)","v":0},{"$f":"COUNTIF($D27:$AH27,Código2)","v":0},{"$f":"COUNTIF($D27:$AH27,Código3)","v":0},{"$f":"COUNTIF($D27:$AH27,Código4)","v":0}]
[null,null,{"$f":"IFERROR(VLOOKUP(ConsultaDeAlumnos,AsistenciaDeEnero[],3,FALSE),\"\")","v":""},{"$f":"IFERROR(VLOOKUP(ConsultaDeAlumnos,AsistenciaDeEnero[],4,FALSE),\"\")","v":""},{"$f":"IFERROR(VLOOKUP(ConsultaDeAlumnos,AsistenciaDeEnero[],5,FALSE),\"\")","v":""},{"$f":"IFERROR(VLOOKUP(ConsultaDeAlumnos,AsistenciaDeEnero[],6,FALSE),\"\")","v":""},{"$f":"IFERROR(VLOOKUP(ConsultaDeAlumnos,AsistenciaDeEnero[],7,FALSE),\"\")","v":""},{"$f":"IFERROR(VLOOKUP(ConsultaDeAlumnos,AsistenciaDeEnero[],8,FALSE),\"\")","v":""},{"$f":"IFERROR(VLOOKUP(ConsultaDeAlumnos,AsistenciaDeEnero[],9,FALSE),\"\")","v":""},{"$f":"IFERROR(VLOOKUP(ConsultaDeAlumnos,AsistenciaDeEnero[],10,FALSE),\"\")","v":""},{"$f":"IFERROR(VLOOKUP(ConsultaDeAlumnos,AsistenciaDeEnero[],11,FALSE),\"\")","v":""},{"$f":"IFERROR(VLOOKUP(ConsultaDeAlumnos,AsistenciaDeEnero[],12,FALSE),\"\")","v":""},{"$f":"IFERROR(VLOOKUP(ConsultaDeAlumnos,AsistenciaDeEnero[],13,FALSE),\"\")","v":""},{"$f":"IFERROR(VLOOKUP(ConsultaDeAlumnos,AsistenciaDeEnero[],14,FALSE),\"\")","v":""},{"$f":"IFERROR(VLOOKUP(ConsultaDeAlumnos,AsistenciaDeEnero[],15,FALSE),\"\")","v":""},{"$f":"IFERROR(VLOOKUP(ConsultaDeAlumnos,AsistenciaDeEnero[],16,FALSE),\"\")","v":""},{"$f":"IFERROR(VLOOKUP(ConsultaDeAlumnos,AsistenciaDeEnero[],17,FALSE),\"\")","v":""},{"$f":"IFERROR(VLOOKUP(ConsultaDeAlumnos,AsistenciaDeEnero[],18,FALSE),\"\")","v":""},{"$f":"IFERROR(VLOOKUP(ConsultaDeAlumnos,AsistenciaDeEnero[],19,FALSE),\"\")","v":""},{"$f":"IFERROR(VLOOKUP(ConsultaDeAlumnos,AsistenciaDeEnero[],20,FALSE),\"\")","v":""},{"$f":"IFERROR(VLOOKUP(ConsultaDeAlumnos,AsistenciaDeEnero[],21,FALSE),\"\")","v":""},{"$f":"IFERROR(VLOOKUP(ConsultaDeAlumnos,AsistenciaDeEnero[],22,FALSE),\"\")","v":""},{"$f":"IFERROR(VLOOKUP(ConsultaDeAlumnos,AsistenciaDeEnero[],23,FALSE),\"\")","v":""},{"$f":"IFERROR(VLOOKUP(ConsultaDeAlumnos,AsistenciaDeEnero[],24,FALSE),\"\")","v":""},{"$f":"IFERROR(VLOOKUP(ConsultaDeAlumnos,AsistenciaDeEnero[],25,FALSE),\"\")","v":""},{"$f":"IFERROR(VLOOKUP(ConsultaDeAlumnos,AsistenciaDeEnero[],26,FALSE),\"\")","v":""},{"$f":"IFERROR(VLOOKUP(ConsultaDeAlumnos,AsistenciaDeEnero[],27,FALSE),\"\")","v":""},{"$f":"IFERROR(VLOOKUP(ConsultaDeAlumnos,AsistenciaDeEnero[],28,FALSE),\"\")","v":""},{"$f":"IFERROR(VLOOKUP(ConsultaDeAlumnos,AsistenciaDeEnero[],29,FALSE),\"\")","v":""},{"$f":"IFERROR(VLOOKUP(ConsultaDeAlumnos,AsistenciaDeEnero[],30,FALSE),\"\")","v":""},{"$f":"IFERROR(VLOOKUP(ConsultaDeAlumnos,AsistenciaDeEnero[],31,FALSE),\"\")","v":""},{"$f":"IFERROR(VLOOKUP(ConsultaDeAlumnos,AsistenciaDeEnero[],32,FALSE),\"\")","v":""},{"$f":"IFERROR(VLOOKUP(ConsultaDeAlumnos,AsistenciaDeEnero[],33,FALSE),\"\")","v":""}]
[null,"Febrero",1,2,3,4,5,6,7,8,9,10,11,12,13,14,15,16,17,18,19,20,21,22,23,24,25,26,27,28,29,null,null,{"$f":"COUNTIF($D29:$AH29,Código1)","v":0},{"$f":"COUNTIF($D29:$AH29,Código2)","v":0},{"$f":"COUNTIF($D29:$AH29,Código3)","v":0},{"$f":"COUNTIF($D29:$AH29,Código4)","v":0}]
[null,null,{"$f":"IFERROR(VLOOKUP(ConsultaDeAlumnos,AsistenciaDeFebrero[],3,FALSE),\"\")","v":""},{"$f":"IFERROR(VLOOKUP(ConsultaDeAlumnos,AsistenciaDeFebrero[],4,FALSE),\"\")","v":""},{"$f":"IFERROR(VLOOKUP(ConsultaDeAlumnos,AsistenciaDeFebrero[],5,FALSE),\"\")","v":""},{"$f":"IFERROR(VLOOKUP(ConsultaDeAlumnos,AsistenciaDeFebrero[],6,FALSE),\"\")","v":""},{"$f":"IFERROR(VLOOKUP(ConsultaDeAlumnos,AsistenciaDeFebrero[],7,FALSE),\"\")","v":""},{"$f":"IFERROR(VLOOKUP(ConsultaDeAlumnos,AsistenciaDeFebrero[],8,FALSE),\"\")","v":""},{"$f":"IFERROR(VLOOKUP(ConsultaDeAlumnos,AsistenciaDeFebrero[],9,FALSE),\"\")","v":""},{"$f":"IFERROR(VLOOKUP(ConsultaDeAlumnos,AsistenciaDeFebrero[],10,FALSE),\"\")","v":""},{"$f":"IFERROR(VLOOKUP(ConsultaDeAlumnos,AsistenciaDeFebrero[],11,FALSE),\"\")","v":""},{"$f":"IFERROR(VLOOKUP(ConsultaDeAlumnos,AsistenciaDeFebrero[],12,FALSE),\"\")","v":""},{"$f":"IFERROR(VLOOKUP(ConsultaDeAlumnos,AsistenciaDeFebrero[],13,FALSE),\"\")","v":""},{"$f":"IFERROR(VLOOKUP(ConsultaDeAlumnos,AsistenciaDeFebrero[],14,FALSE),\"\")","v":""},{"$f":"IFERROR(VLOOKUP(ConsultaDeAlumnos,AsistenciaDeFebrero[],15,FALSE),\"\")","v":""},{"$f":"IFERROR(VLOOKUP(ConsultaDeAlumnos,AsistenciaDeFebrero[],16,FALSE),\"\")","v":""},{"$f":"IFERROR(VLOOKUP(ConsultaDeAlumnos,AsistenciaDeFebrero[],17,FALSE),\"\")","v":""},{"$f":"IFERROR(VLOOKUP(ConsultaDeAlumnos,AsistenciaDeFebrero[],18,FALSE),\"\")","v":""},{"$f":"IFERROR(VLOOKUP(ConsultaDeAlumnos,AsistenciaDeFebrero[],19,FALSE),\"\")","v":""},{"$f":"IFERROR(VLOOKUP(ConsultaDeAlumnos,AsistenciaDeFebrero[],20,FALSE),\"\")","v":""},{"$f":"IFERROR(VLOOKUP(ConsultaDeAlumnos,AsistenciaDeFebrero[],21,FALSE),\"\")","v":""},{"$f":"IFERROR(VLOOKUP(ConsultaDeAlumnos,AsistenciaDeFebrero[],22,FALSE),\"\")","v":""},{"$f":"IFERROR(VLOOKUP(ConsultaDeAlumnos,AsistenciaDeFebrero[],23,FALSE),\"\")","v":""},{"$f":"IFERROR(VLOOKUP(ConsultaDeAlumnos,AsistenciaDeFebrero[],24,FALSE),\"\")","v":""},{"$f":"IFERROR(VLOOKUP(ConsultaDeAlumnos,AsistenciaDeFebrero[],25,FALSE),\"\")","v":""},{"$f":"IFERROR(VLOOKUP(ConsultaDeAlumnos,AsistenciaDeFebrero[],26,FALSE),\"\")","v":""},{"$f":"IFERROR(VLOOKUP(ConsultaDeAlumnos,AsistenciaDeFebrero[],27,FALSE),\"\")","v":""},{"$f":"IFERROR(VLOOKUP(ConsultaDeAlumnos,AsistenciaDeFebrero[],28,FALSE),\"\")","v":""},{"$f":"IFERROR(VLOOKUP(ConsultaDeAlumnos,AsistenciaDeFebrero[],29,FALSE),\"\")","v":""},{"$f":"IFERROR(VLOOKUP(ConsultaDeAlumnos,AsistenciaDeFebrero[],30,FALSE),\"\")","v":""},{"$f":"IFERROR(VLOOKUP(ConsultaDeAlumnos,AsistenciaDeFebrero[],31,FALSE),\"\")","v":""}]
[null,"Marzo",1,2,3,4,5,6,7,8,9,10,11,12,13,14,15,16,17,18,19,20,21,22,23,24,25,26,27,28,29,30,31,{"$f":"COUNTIF($D31:$AH31,Código1)","v":0},{"$f":"COUNTIF($D31:$AH31,Código2)","v":0},{"$f":"COUNTIF($D31:$AH31,Código3)","v":0},{"$f":"COUNTIF($D31:$AH31,Código4)","v":0}]
[null,null,{"$f":"IFERROR(VLOOKUP(ConsultaDeAlumnos,AsistenciaDeMarzo[],3,FALSE),\"\")","v":""},{"$f":"IFERROR(VLOOKUP(ConsultaDeAlumnos,AsistenciaDeMarzo[],4,FALSE),\"\")","v":""},{"$f":"IFERROR(VLOOKUP(ConsultaDeAlumnos,AsistenciaDeMarzo[],5,FALSE),\"\")","v":""},{"$f":"IFERROR(VLOOKUP(ConsultaDeAlumnos,AsistenciaDeMarzo[],6,FALSE),\"\")","v":""},{"$f":"IFERROR(VLOOKUP(ConsultaDeAlumnos,AsistenciaDeMarzo[],7,FALSE),\"\")","v":""},{"$f":"IFERROR(VLOOKUP(ConsultaDeAlumnos,AsistenciaDeMarzo[],8,FALSE),\"\")","v":""},{"$f":"IFERROR(VLOOKUP(ConsultaDeAlumnos,AsistenciaDeMarzo[],9,FALSE),\"\")","v":""},{"$f":"IFERROR(VLOOKUP(ConsultaDeAlumnos,AsistenciaDeMarzo[],10,FALSE),\"\")","v":""},{"$f":"IFERROR(VLOOKUP(ConsultaDeAlumnos,AsistenciaDeMarzo[],11,FALSE),\"\")","v":""},{"$f":"IFERROR(VLOOKUP(ConsultaDeAlumnos,AsistenciaDeMarzo[],12,FALSE),\"\")","v":""},{"$f":"IFERROR(VLOOKUP(ConsultaDeAlumnos,AsistenciaDeMarzo[],13,FALSE),\"\")","v":""},{"$f":"IFERROR(VLOOKUP(ConsultaDeAlumnos,AsistenciaDeMarzo[],14,FALSE),\"\")","v":""},{"$f":"IFERROR(VLOOKUP(ConsultaDeAlumnos,AsistenciaDeMarzo[],15,FALSE),\"\")","v":""},{"$f":"IFERROR(VLOOKUP(ConsultaDeAlumnos,AsistenciaDeMarzo[],16,FALSE),\"\")","v":""},{"$f":"IFERROR(VLOOKUP(ConsultaDeAlumnos,AsistenciaDeMarzo[],17,FALSE),\"\")","v":""},{"$f":"IFERROR(VLOOKUP(ConsultaDeAlumnos,AsistenciaDeMarzo[],18,FALSE),\"\")","v":""},{"$f":"IFERROR(VLOOKUP(ConsultaDeAlumnos,AsistenciaDeMarzo[],19,FALSE),\"\")","v":""},{"$f":"IFERROR(VLOOKUP(ConsultaDeAlumnos,AsistenciaDeMarzo[],20,FALSE),\"\")","v":""},{"$f":"IFERROR(VLOOKUP(ConsultaDeAlumnos,AsistenciaDeMarzo[],21,FALSE),\"\")","v":""},{"$f":"IFERROR(VLOOKUP(ConsultaDeAlumnos,AsistenciaDeMarzo[],22,FALSE),\"\")","v":""},{"$f":"IFERROR(VLOOKUP(ConsultaDeAlumnos,AsistenciaDeMarzo[],23,FALSE),\"\")","v":""},{"$f":"IFERROR(VLOOKUP(ConsultaDeAlumnos,AsistenciaDeMarzo[],24,FALSE),\"\")","v":""},{"$f":"IFERROR(VLOOKUP(ConsultaDeAlumnos,AsistenciaDeMarzo[],25,FALSE),\"\")","v":""},{"$f":"IFERROR(VLOOKUP(ConsultaDeAlumnos,AsistenciaDeMarzo[],26,FALSE),\"\")","v":""},{"$f":"IFERROR(VLOOKUP(ConsultaDeAlumnos,AsistenciaDeMarzo[],27,FALSE),\"\")","v":""},{"$f":"IFERROR(VLOOKUP(ConsultaDeAlumnos,AsistenciaDeMarzo[],28,FALSE),\"\")","v":""},{"$f":"IFERROR(VLOOKUP(ConsultaDeAlumnos,AsistenciaDeMarzo[],29,FALSE),\"\")","v":""},{"$f":"IFERROR(VLOOKUP(ConsultaDeAlumnos,AsistenciaDeMarzo[],30,FALSE),\"\")","v":""},{"$f":"IFERROR(VLOOKUP(ConsultaDeAlumnos,AsistenciaDeMarzo[],31,FALSE),\"\")","v":""},{"$f":"IFERROR(VLOOKUP(ConsultaDeAlumnos,AsistenciaDeMarzo[],32,FALSE),\"\")","v":""},{"$f":"IFERROR(VLOOKUP(ConsultaDeAlumnos,AsistenciaDeMarzo[],33,FALSE),\"\")","v":""}]
[null,"Abril",1,2,3,4,5,6,7,8,9,10,11,12,13,14,15,16,17,18,19,20,21,22,23,24,25,26,27,28,29,30,null,{"$f":"COUNTIF($D33:$AH33,Código1)","v":0},{"$f":"COUNTIF($D33:$AH33,Código2)","v":0},{"$f":"COUNTIF($D33:$AH33,Código3)","v":0},{"$f":"COUNTIF($D33:$AH33,Código4)","v":0}]
[null,null,{"$f":"IFERROR(VLOOKUP(ConsultaDeAlumnos,AsistenciaDeAbril[],3,FALSE),\"\")","v":""},{"$f":"IFERROR(VLOOKUP(ConsultaDeAlumnos,AsistenciaDeAbril[],4,FALSE),\"\")","v":""},{"$f":"IFERROR(VLOOKUP(ConsultaDeAlumnos,AsistenciaDeAbril[],5,FALSE),\"\")","v":""},{"$f":"IFERROR(VLOOKUP(ConsultaDeAlumnos,AsistenciaDeAbril[],6,FALSE),\"\")","v":""},{"$f":"IFERROR(VLOOKUP(ConsultaDeAlumnos,AsistenciaDeAbril[],7,FALSE),\"\")","v":""},{"$f":"IFERROR(VLOOKUP(ConsultaDeAlumnos,AsistenciaDeAbril[],8,FALSE),\"\")","v":""},{"$f":"IFERROR(VLOOKUP(ConsultaDeAlumnos,AsistenciaDeAbril[],9,FALSE),\"\")","v":""},{"$f":"IFERROR(VLOOKUP(ConsultaDeAlumnos,AsistenciaDeAbril[],10,FALSE),\"\")","v":""},{"$f":"IFERROR(VLOOKUP(ConsultaDeAlumnos,AsistenciaDeAbril[],11,FALSE),\"\")","v":""},{"$f":"IFERROR(VLOOKUP(ConsultaDeAlumnos,AsistenciaDeAbril[],12,FALSE),\"\")","v":""},{"$f":"IFERROR(VLOOKUP(ConsultaDeAlumnos,AsistenciaDeAbril[],13,FALSE),\"\")","v":""},{"$f":"IFERROR(VLOOKUP(ConsultaDeAlumnos,AsistenciaDeAbril[],14,FALSE),\"\")","v":""},{"$f":"IFERROR(VLOOKUP(ConsultaDeAlumnos,AsistenciaDeAbril[],15,FALSE),\"\")","v":""},{"$f":"IFERROR(VLOOKUP(ConsultaDeAlumnos,AsistenciaDeAbril[],16,FALSE),\"\")","v":""},{"$f":"IFERROR(VLOOKUP(ConsultaDeAlumnos,AsistenciaDeAbril[],17,FALSE),\"\")","v":""},{"$f":"IFERROR(VLOOKUP(ConsultaDeAlumnos,AsistenciaDeAbril[],18,FALSE),\"\")","v":""},{"$f":"IFERROR(VLOOKUP(ConsultaDeAlumnos,AsistenciaDeAbril[],19,FALSE),\"\")","v":""},{"$f":"IFERROR(VLOOKUP(ConsultaDeAlumnos,AsistenciaDeAbril[],20,FALSE),\"\")","v":""},{"$f":"IFERROR(VLOOKUP(ConsultaDeAlumnos,AsistenciaDeAbril[],21,FALSE),\"\")","v":""},{"$f":"IFERROR(VLOOKUP(ConsultaDeAlumnos,AsistenciaDeAbril[],22,FALSE),\"\")","v":""},{"$f":"IFERROR(VLOOKUP(ConsultaDeAlumnos,AsistenciaDeAbril[],23,FALSE),\"\")","v":""},{"$f":"IFERROR(VLOOKUP(ConsultaDeAlumnos,AsistenciaDeAbril[],24,FALSE),\"\")","v":""},{"$f":"IFERROR(VLOOKUP(ConsultaDeAlumnos,AsistenciaDeAbril[],25,FALSE),\"\")","v":""},{"$f":"IFERROR(VLOOKUP(ConsultaDeAlumnos,AsistenciaDeAbril[],26,FALSE),\"\")","v":""},{"$f":"IFERROR(VLOOKUP(ConsultaDeAlumnos,AsistenciaDeAbril[],27,FALSE),\"\")","v":""},{"$f":"IFERROR(VLOOKUP(ConsultaDeAlumnos,AsistenciaDeAbril[],28,FALSE),\"\")","v":""},{"$f":"IFERROR(VLOOKUP(ConsultaDeAlumnos,AsistenciaDeAbril[],29,FALSE),\"\")","v":""},{"$f":"IFERROR(VLOOKUP(ConsultaDeAlumnos,AsistenciaDeAbril[],30,FALSE),\"\")","v":""},{"$f":"IFERROR(VLOOKUP(ConsultaDeAlumnos,AsistenciaDeAbril[],31,FALSE),\"\")","v":""},{"$f":"IFERROR(VLOOKUP(ConsultaDeAlumnos,AsistenciaDeAbril[],32,FALSE),\"\")","v":""}]
[null,"Mayo",1,2,3,4,5,6,7,8,9,10,11,12,13,14,15,16,17,18,19,20,21,22,23,24,25,26,27,28,29,30,31,{"$f":"COUNTIF($D35:$AH35,Código1)","v":0},{"$f":"COUNTIF($D35:$AH35,Código2)","v":0},{"$f":"COUNTIF($D35:$AH35,Código3)","v":0},{"$f":"COUNTIF($D35:$AH35,Código4)","v":0}]
[null,null,{"$f":"IFERROR(VLOOKUP(ConsultaDeAlumnos,AsistenciaDeMayo[],3,FALSE),\"\")","v":""},{"$f":"IFERROR(VLOOKUP(ConsultaDeAlumnos,AsistenciaDeMayo[],4,FALSE),\"\")","v":""},{"$f":"IFERROR(VLOOKUP(ConsultaDeAlumnos,AsistenciaDeMayo[],5,FALSE),\"\")","v":""},{"$f":"IFERROR(VLOOKUP(ConsultaDeAlumnos,AsistenciaDeMayo[],6,FALSE),\"\")","v":""},{"$f":"IFERROR(VLOOKUP(ConsultaDeAlumnos,AsistenciaDeMayo[],7,FALSE),\"\")","v":""},{"$f":"IFERROR(VLOOKUP(ConsultaDeAlumnos,AsistenciaDeMayo[],8,FALSE),\"\")","v":""},{"$f":"IFERROR(VLOOKUP(ConsultaDeAlumnos,AsistenciaDeMayo[],9,FALSE),\"\")","v":""},{"$f":"IFERROR(VLOOKUP(ConsultaDeAlumnos,AsistenciaDeMayo[],10,FALSE),\"\")","v":""},{"$f":"IFERROR(VLOOKUP(ConsultaDeAlumnos,AsistenciaDeMayo[],11,FALSE),\"\")","v":""},{"$f":"IFERROR(VLOOKUP(ConsultaDeAlumnos,AsistenciaDeMayo[],12,FALSE),\"\")","v":""},{"$f":"IFERROR(VLOOKUP(ConsultaDeAlumnos,AsistenciaDeMayo[],13,FALSE),\"\")","v":""},{"$f":"IFERROR(VLOOKUP(ConsultaDeAlumnos,AsistenciaDeMayo[],14,FALSE),\"\")","v":""},{"$f":"IFERROR(VLOOKUP(ConsultaDeAlumnos,AsistenciaDeMayo[],15,FALSE),\"\")","v":""},{"$f":"IFERROR(VLOOKUP(ConsultaDeAlumnos,AsistenciaDeMayo[],16,FALSE),\"\")","v":""},{"$f":"IFERROR(VLOOKUP(ConsultaDeAlumnos,AsistenciaDeMayo[],17,FALSE),\"\")","v":""},{"$f":"IFERROR(VLOOKUP(ConsultaDeAlumnos,AsistenciaDeMayo[],18,FALSE),\"\")","v":""},{"$f":"IFERROR(VLOOKUP(ConsultaDeAlumnos,AsistenciaDeMayo[],19,FALSE),\"\")","v":""},{"$f":"IFERROR(VLOOKUP(ConsultaDeAlumnos,AsistenciaDeMayo[],20,FALSE),\"\")","v":""},{"$f":"IFERROR(VLOOKUP(ConsultaDeAlumnos,AsistenciaDeMayo[],21,FALSE),\"\")","v":""},{"$f":"IFERROR(VLOOKUP(ConsultaDeAlumnos,AsistenciaDeMayo[],22,FALSE),\"\")","v":""},{"$f":"IFERROR(VLOOKUP(ConsultaDeAlumnos,AsistenciaDeMayo[],23,FALSE),\"\")","v":""},{"$f":"IFERROR(VLOOKUP(ConsultaDeAlumnos,AsistenciaDeMayo[],24,FALSE),\"\")","v":""},{"$f":"IFERROR(VLOOKUP(ConsultaDeAlumnos,AsistenciaDeMayo[],25,FALSE),\"\")","v":""},{"$f":"IFERROR(VLOOKUP(ConsultaDeAlumnos,AsistenciaDeMayo[],26,FALSE),\"\")","v":""},{"$f":"IFERROR(VLOOKUP(ConsultaDeAlumnos,AsistenciaDeMayo[],27,FALSE),\"\")","v":""},{"$f":"IFERROR(VLOOKUP(ConsultaDeAlumnos,AsistenciaDeMayo[],28,FALSE),\"\")","v":""},{"$f":"IFERROR(VLOOKUP(ConsultaDeAlumnos,AsistenciaDeMayo[],29,FALSE),\"\")","v":""},{"$f":"IFERROR(VLOOKUP(ConsultaDeAlumnos,AsistenciaDeMayo[],30,FALSE),\"\")","v":""},{"$f":"IFERROR(VLOOKUP(ConsultaDeAlumnos,AsistenciaDeMayo[],31,FALSE),\"\")","v":""},{"$f":"IFERROR(VLOOKUP(ConsultaDeAlumnos,AsistenciaDeMayo[],32,FALSE),\"\")","v":""},{"$f":"IFERROR(VLOOKUP(ConsultaDeAlumnos,AsistenciaDeMayo[],33,FALSE),\"\")","v":""}]
[null,"Junio",1,2,3,4,5,6,7,8,9,10,11,12,13,14,15,16,17,18,19,20,21,22,23,24,25,26,27,28,29,30,null,{"$f":"COUNTIF($D37:$AH37,Código1)","v":0},{"$f":"COUNTIF($D37:$AH37,Código2)","v":0},{"$f":"COUNTIF($D37:$AH37,Código3)","v":0},{"$f":"COUNTIF($D37:$AH37,Código4)","v":0}]
[null,null,{"$f":"IFERROR(VLOOKUP(ConsultaDeAlumnos,AsistenciaDeJunio[],3,FALSE),\"\")","v":""},{"$f":"IFERROR(VLOOKUP(ConsultaDeAlumnos,AsistenciaDeJunio[],4,FALSE),\"\")","v":""},{"$f":"IFERROR(VLOOKUP(ConsultaDeAlumnos,AsistenciaDeJunio[],5,FALSE),\"\")","v":""},{"$f":"IFERROR(VLOOKUP(ConsultaDeAlumnos,AsistenciaDeJunio[],6,FALSE),\"\")","v":""},{"$f":"IFERROR(VLOOKUP(ConsultaDeAlumnos,AsistenciaDeJunio[],7,FALSE),\"\")","v":""},{"$f":"IFERROR(VLOOKUP(ConsultaDeAlumnos,AsistenciaDeJunio[],8,FALSE),\"\")","v":""},{"$f":"IFERROR(VLOOKUP(ConsultaDeAlumnos,AsistenciaDeJunio[],9,FALSE),\"\")","v":""},{"$f":"IFERROR(VLOOKUP(ConsultaDeAlumnos,AsistenciaDeJunio[],10,FALSE),\"\")","v":""},{"$f":"IFERROR(VLOOKUP(ConsultaDeAlumnos,AsistenciaDeJunio[],11,FALSE),\"\")","v":""},{"$f":"IFERROR(VLOOKUP(ConsultaDeAlumnos,AsistenciaDeJunio[],12,FALSE),\"\")","v":""},{"$f":"IFERROR(VLOOKUP(ConsultaDeAlumnos,AsistenciaDeJunio[],13,FALSE),\"\")","v":""},{"$f":"IFERROR(VLOOKUP(ConsultaDeAlumnos,AsistenciaDeJunio[],14,FALSE),\"\")","v":""},{"$f":"IFERROR(VLOOKUP(ConsultaDeAlumnos,AsistenciaDeJunio[],15,FALSE),\"\")","v":""},{"$f":"IFERROR(VLOOKUP(ConsultaDeAlumnos,AsistenciaDeJunio[],16,FALSE),\"\")","v":""},{"$f":"IFERROR(VLOOKUP(ConsultaDeAlumnos,AsistenciaDeJunio[],17,FALSE),\"\")","v":""},{"$f":"IFERROR(VLOOKUP(ConsultaDeAlumnos,AsistenciaDeJunio[],18,FALSE),\"\")","v":""},{"$f":"IFERROR(VLOOKUP(ConsultaDeAlumnos,AsistenciaDeJunio[],19,FALSE),\"\")","v":""},{"$f":"IFERROR(VLOOKUP(ConsultaDeAlumnos,AsistenciaDeJunio[],20,FALSE),\"\")","v":""},{"$f":"IFERROR(VLOOKUP(ConsultaDeAlumnos,AsistenciaDeJunio[],21,FALSE),\"\")","v":""},{"$f":"IFERROR(VLOOKUP(ConsultaDeAlumnos,AsistenciaDeJunio[],22,FALSE),\"\")","v":""},{"$f":"IFERROR(VLOOKUP(ConsultaDeAlumnos,AsistenciaDeJunio[],23,FALSE),\"\")","v":""},{"$f":"IFERROR(VLOOKUP(ConsultaDeAlumnos,AsistenciaDeJunio[],24,FALSE),\"\")","v":""},{"$f":"IFERROR(VLOOKUP(ConsultaDeAlumnos,AsistenciaDeJunio[],25,FALSE),\"\")","v":""},{"$f":"IFERROR(VLOOKUP(ConsultaDeAlumnos,AsistenciaDeJunio[],26,FALSE),\"\")","v":""},{"$f":"IFERROR(VLOOKUP(ConsultaDeAlumnos,AsistenciaDeJunio[],27,FALSE),\"\")","v":""},{"$f":"IFERROR(VLOOKUP(ConsultaDeAlumnos,AsistenciaDeJunio[],28,FALSE),\"\")","v":""},{"$f":"IFERROR(VLOOKUP(ConsultaDeAlumnos,AsistenciaDeJunio[],29,FALSE),\"\")","v":""},{"$f":"IFERROR(VLOOKUP(ConsultaDeAlumnos,AsistenciaDeJunio[],30,FALSE),\"\")","v":""},{"$f":"IFERROR(VLOOKUP(ConsultaDeAlumnos,AsistenciaDeJunio[],31,FALSE),\"\")","v":""},{"$f":"IFERROR(VLOOKUP(ConsultaDeAlumnos,AsistenciaDeJunio[],32,FALSE),\"\")","v":""}]
[null,"Julio",1,2,3,4,5,6,7,8,9,10,11,12,13,14,15,16,17,18,19,20,21,22,23,24,25,26,27,28,29,30,31,{"$f":"COUNTIF($D39:$AH39,Código1)","v":0},{"$f":"COUNTIF($D39:$AH39,Código2)","v":0},{"$f":"COUNTIF($D39:$AH39,Código3)","v":0},{"$f":"COUNTIF($D39:$AH39,Código4)","v":0}]
[null,null,{"$f":"IFERROR(VLOOKUP(ConsultaDeAlumnos,AsistenciaDeJulio[],3,FALSE),\"\")","v":""},{"$f":"IFERROR(VLOOKUP(ConsultaDeAlumnos,AsistenciaDeJulio[],4,FALSE),\"\")","v":""},{"$f":"IFERROR(VLOOKUP(ConsultaDeAlumnos,AsistenciaDeJulio[],5,FALSE),\"\")","v":""},{"$f":"IFERROR(VLOOKUP(ConsultaDeAlumnos,AsistenciaDeJulio[],6,FALSE),\"\")","v":""},{"$f":"IFERROR(VLOOKUP(ConsultaDeAlumnos,AsistenciaDeJulio[],7,FALSE),\"\")","v":""},{"$f":"IFERROR(VLOOKUP(ConsultaDeAlumnos,AsistenciaDeJulio[],8,FALSE),\"\")","v":""},{"$f":"IFERROR(VLOOKUP(ConsultaDeAlumnos,AsistenciaDeJulio[],9,FALSE),\"\")","v":""},{"$f":"IFERROR(VLOOKUP(ConsultaDeAlumnos,AsistenciaDeJulio[],10,FALSE),\"\")","v":""},{"$f":"IFERROR(VLOOKUP(ConsultaDeAlumnos,AsistenciaDeJulio[],11,FALSE),\"\")","v":""},{"$f":"IFERROR(VLOOKUP(ConsultaDeAlumnos,AsistenciaDeJulio[],12,FALSE),\"\")","v":""},{"$f":"IFERROR(VLOOKUP(ConsultaDeAlumnos,AsistenciaDeJulio[],13,FALSE),\"\")","v":""},{"$f":"IFERROR(VLOOKUP(ConsultaDeAlumnos,AsistenciaDeJulio[],14,FALSE),\"\")","v":""},{"$f":"IFERROR(VLOOKUP(ConsultaDeAlumnos,AsistenciaDeJulio[],15,FALSE),\"\")","v":""},{"$f":"IFERROR(VLOOKUP(ConsultaDeAlumnos,AsistenciaDeJulio[],16,FALSE),\"\")","v":""},{"$f":"IFERROR(VLOOKUP(ConsultaDeAlumnos,AsistenciaDeJulio[],17,FALSE),\"\")","v":""},{"$f":"IFERROR(VLOOKUP(ConsultaDeAlumnos,AsistenciaDeJulio[],18,FALSE),\"\")","v":""},{"$f":"IFERROR(VLOOKUP(ConsultaDeAlumnos,AsistenciaDeJulio[],19,FALSE),\"\")","v":""},{"$f":"IFERROR(VLOOKUP(ConsultaDeAlumnos,AsistenciaDeJulio[],20,FALSE),\"\")","v":""},{"$f":"IFERROR(VLOOKUP(ConsultaDeAlumnos,AsistenciaDeJulio[],21,FALSE),\"\")","v":""},{"$f":"IFERROR(VLOOKUP(ConsultaDeAlumnos,AsistenciaDeJulio[],22,FALSE),\"\")","v":""},{"$f":"IFERROR(VLOOKUP(ConsultaDeAlumnos,AsistenciaDeJulio[],23,FALSE),\"\")","v":""},{"$f":"IFERROR(VLOOKUP(ConsultaDeAlumnos,AsistenciaDeJulio[],24,FALSE),\"\")","v":""},{"$f":"IFERROR(VLOOKUP(ConsultaDeAlumnos,AsistenciaDeJulio[],25,FALSE),\"\")","v":""},{"$f":"IFERROR(VLOOKUP(ConsultaDeAlumnos,AsistenciaDeJulio[],26,FALSE),\"\")","v":""},{"$f":"IFERROR(VLOOKUP(ConsultaDeAlumnos,AsistenciaDeJulio[],27,FALSE),\"\")","v":""},{"$f":"IFERROR(VLOOKUP(ConsultaDeAlumnos,AsistenciaDeJulio[],28,FALSE),\"\")","v":""},{"$f":"IFERROR(VLOOKUP(ConsultaDeAlumnos,AsistenciaDeJulio[],29,FALSE),\"\")","v":""},{"$f":"IFERROR(VLOOKUP(ConsultaDeAlumnos,AsistenciaDeJulio[],30,FALSE),\"\")","v":""},{"$f":"IFERROR(VLOOKUP(ConsultaDeAlumnos,AsistenciaDeJulio[],31,FALSE),\"\")","v":""},{"$f":"IFERROR(VLOOKUP(ConsultaDeAlumnos,AsistenciaDeJulio[],32,FALSE),\"\")","v":""},{"$f":"IFERROR(VLOOKUP(ConsultaDeAlumnos,AsistenciaDeJulio[],33,FALSE),\"\")","v":""}]
[{"$nulls":30},"Totales",null,null,{"$f":"SUM(AH16:AH39)","v":2},{"$f":"SUM(AI16:AI39)","v":1},{"$f":"SUM(AJ16:AJ39)","v":0},{"$f":"SUM(AK16:AK39)","v":19}]